Local authority department which incurred the expenditure,Service Division,Cost Centre,Summary of the Purpose of Expenditure,Expense Type,Expense Code,Detailed Expense Type,Date of Transaction,Transaction Number,Beneficiary,Merchant Category Number,Merchant Category,Gross Amount,VAT,Net Amount
Children and Young Peoples Services,Head of Early Help Inclusion & Vulnerable Children.,085965,Barnard,Supplies and Services,384302,Miscellaneous Expenses,01-Mar-2022,000009945253053,Amazon.co.uk 2R2ES0U54,5969,Activity expenses,64.98,10.83,54.15
Children and Young Peoples Services,Head of Early Help Inclusion & Vulnerable Children.,085956,Lumley,Supplies and Services,304259,Equipment and Materials,01-Mar-2022,000009945253059,AMZNMktplace,5999,Equipment-purchase and rental,27.98,4.66,23.32
Children and Young Peoples Services,Head of Childrens Social Care,085334,West Rainton Satelite Home,Supplies and Services,304403,Equipment and Materials,01-Mar-2022,000009945253271,AMZNMktplace,5999,Other consumables,376.97,0.00,376.97
Regeneration Economy and Growth,Business Durham CL0850,030689,Inward Investment and Aftercare,Supplies and Services,304403,Equipment and Materials,01-Mar-2022,000009949028367,CLOUD CAMPAIGN,5734,Other consumables,149.63,0.00,149.63
Regeneration Economy and Growth,Business Durham CL0850,030689,Inward Investment and Aftercare,Supplies and Services,336005,Advertising E336,01-Mar-2022,000009949028373,LINKEDIN-760 7867684,7311,Advertising other than for staff,3.26,0.00,3.26
Children and Young Peoples Services,Head of Childrens Social Care,085612,Families First Consett,Supplies and Services,364301,Grants to Voluntary Organisations,01-Mar-2022,000009949028399,AMZNMktplace,5999,Hardship,159.18,26.54,132.64
Children and Young Peoples Services,Head of Childrens Social Care,085612,Families First Consett,Supplies and Services,364301,Grants to Voluntary Organisations,01-Mar-2022,000009949028405,AMZNMktplace,5999,Hardship,13.98,2.34,11.64
Children and Young Peoples Services,Head of Childrens Social Care,085612,Families First Consett,Supplies and Services,364301,Grants to Voluntary Organisations,01-Mar-2022,000009949028409,Amazon.co.uk 2R3FN4W74,5969,Hardship,69.99,11.67,58.32
Children and Young Peoples Services,Head of Childrens Social Care,085612,Families First Consett,Supplies and Services,364301,Grants to Voluntary Organisations,01-Mar-2022,000009949028413,Amazon.co.uk 2R7BE9WS4,5969,Hardship,69.99,11.67,58.32
Children and Young Peoples Services,Head of Education and Skills,071801,Selby Cottage Childcare Centre,Supplies and Services,304403,Equipment and Materials,01-Mar-2022,000009949028423,AMZNMKTPLACE AMAZON.CO,5999,Other consumables,18.95,3.16,15.79
Children and Young Peoples Services,Head of Childrens Social Care,085404,COMF bid Targeted interventions for CYPS,Supplies and Services,384999,Miscellaneous Expenses,01-Mar-2022,000009949028443,Amazon.co.uk 2R1QU9RI4,5969,Other expenses,498.87,0.00,498.87
Children and Young Peoples Services,Head of Childrens Social Care,085404,COMF bid Targeted interventions for CYPS,Supplies and Services,304403,Equipment and Materials,01-Mar-2022,000009949028447,AMZNMktplace,5999,Other consumables,219.80,0.00,219.80
Resources BK0010,Digital and Customer Services,065487,ICT Telephony Recharges,Supplies and Services,304403,Equipment and Materials,01-Mar-2022,000009949028449,AMZNMktplace,5999,Other consumables,194.40,32.40,162.00
Children and Young Peoples Services,Head of Childrens Social Care,085404,COMF bid Targeted interventions for CYPS,Supplies and Services,304403,Equipment and Materials,01-Mar-2022,000009949028449 - 1,AMZNMktplace,5999,Other consumables,0.30,,0.30
Children and Young Peoples Services,Head of Childrens Social Care,085404,COMF bid Targeted interventions for CYPS,Supplies and Services,304403,Equipment and Materials,01-Mar-2022,000009949028453,AMZNMktplace,5999,Other consumables,34.77,0.00,34.77
Children and Young Peoples Services,Head of Childrens Social Care,085404,COMF bid Targeted interventions for CYPS,Supplies and Services,304403,Equipment and Materials,01-Mar-2022,000009949028455,AMZNMktplace,5999,Other consumables,23.18,0.00,23.18
Children and Young Peoples Services,Head of Childrens Social Care,085404,COMF bid Targeted interventions for CYPS,Supplies and Services,304403,Equipment and Materials,01-Mar-2022,000009949028461,AMZNMktplace,5999,Other consumables,11.59,0.00,11.59
Children and Young Peoples Services,Head of Childrens Social Care,085404,COMF bid Targeted interventions for CYPS,Supplies and Services,304403,Equipment and Materials,01-Mar-2022,000009949028463,AMZNMktplace,5999,Other consumables,23.18,0.00,23.18
Children and Young Peoples Services,Head of Childrens Social Care,085404,COMF bid Targeted interventions for CYPS,Supplies and Services,384999,Miscellaneous Expenses,01-Mar-2022,000009949028467,Amazon.co.uk 2R25G2W44,5969,Other expenses,17.94,0.00,17.94
Resources BK0010,Legal & Democratic Services,067910,Democratic Representation 067910,Supplies and Services,304403,Equipment and Materials,01-Mar-2022,000009949028469,AMZNMktplace,5999,Other consumables,13.59,2.27,11.32
Children and Young Peoples Services,Head of Childrens Social Care,085404,COMF bid Targeted interventions for CYPS,Supplies and Services,304403,Equipment and Materials,01-Mar-2022,000009949028471,AMZNMktplace,5999,Other consumables,23.18,0.00,23.18
Children and Young Peoples Services,Head of Childrens Social Care,085404,COMF bid Targeted interventions for CYPS,Supplies and Services,304403,Equipment and Materials,01-Mar-2022,000009949028473,AMZNMktplace,5999,Other consumables,54.95,0.00,54.95
Children and Young Peoples Services,Head of Childrens Social Care,085404,COMF bid Targeted interventions for CYPS,Supplies and Services,304403,Equipment and Materials,01-Mar-2022,000009949028477,AMZNMktplace,5999,Other consumables,23.18,0.00,23.18
Children and Young Peoples Services,Head of Childrens Social Care,085404,COMF bid Targeted interventions for CYPS,Supplies and Services,304403,Equipment and Materials,01-Mar-2022,000009949028479,AMZNMktplace,5999,Other consumables,54.95,0.00,54.95
Children and Young Peoples Services,Head of Education and Skills,075035,DurhamDirections Re-engagement,Supplies and Services,364301,Grants to Voluntary Organisations,01-Mar-2022,000009949028541,AMZNMktplace,5999,Hardship,13.79,2.30,11.49
Children and Young Peoples Services,Head of Education and Skills,075035,DurhamDirections Re-engagement,Supplies and Services,364301,Grants to Voluntary Organisations,01-Mar-2022,000009949028543,AMZNMktplace,5999,Hardship,14.43,2.41,12.02
Children and Young Peoples Services,Head of Education and Skills,075035,DurhamDirections Re-engagement,Supplies and Services,364301,Grants to Voluntary Organisations,01-Mar-2022,000009949028547,AMZNMktplace,5999,Hardship,8.40,1.40,7.00
Neighbourhoods and Climate Change,Environmental Services,031249,North Pennines - Nature for Climate,Supplies and Services,304999,Equipment and Materials,01-Mar-2022,000009949028649,ONEDIRECT UK,5818,Misc equipment tools and materials,167.62,0.00,167.62
Children and Young Peoples Services,Head of Education and Skills,054640,Durham Learning Resources 054640,Supplies and Services,384999,Miscellaneous Expenses,01-Mar-2022,000009949028651,Amazon.co.uk 2R5LZ9RD4,5969,Other expenses,29.01,0.00,29.01
Children and Young Peoples Services,Head of Education and Skills,054640,Durham Learning Resources 054640,Supplies and Services,384999,Miscellaneous Expenses,01-Mar-2022,000009949028653,Amazon.co.uk 2R56V6RO4,5969,Other expenses,10.64,0.00,10.64
Children and Young Peoples Services,Head of Education and Skills,054640,Durham Learning Resources 054640,Supplies and Services,304403,Equipment and Materials,01-Mar-2022,000009949028655,AMZNMktplace,5999,Other consumables,5.03,0.00,5.03
Children and Young Peoples Services,Head of Education and Skills,054640,Durham Learning Resources 054640,Supplies and Services,304403,Equipment and Materials,01-Mar-2022,000009949028657,AMZNMktplace,5999,Other consumables,59.90,10.00,49.90
Children and Young Peoples Services,Head of Early Help Inclusion & Vulnerable Children.,071489,Winter Family Fund,Supplies and Services,384700,Miscellaneous Expenses,01-Mar-2022,000009949028717,FRANKS THE FLOORING ST,5713,Miscellaneous grants,464.00,0.00,464.00
Children and Young Peoples Services,Head of Childrens Social Care,085347,Solo Home The Manse,Transport,235057,Public Transport,01-Mar-2022,000009949028737,WWW.GONORTHEAST.CO.UK,4111,Staff travelling,60.00,0.00,60.00
Regeneration Economy and Growth,Development and Housing,030772,CLLD South,Supplies and Services,304259,Equipment and Materials,01-Mar-2022,000009949028857,WWW.NORTHYORKS.GOV.UK,9399,Equipment-purchase and rental,11.00,0.00,11.00
Children and Young Peoples Services,Head of Childrens Social Care,085551,Short Break Services-Park Hse Sher,Supplies and Services,324117,Provisions E324,01-Mar-2022,000009949028961,TESCO STORES 2371,5411,Catering costs - provisions,59.70,0.00,59.70
Children and Young Peoples Services,Head of Childrens Social Care,085358,Orchard House Sacriston Solo Home,Supplies and Services,344033,Telephones,01-Mar-2022,000009949028967,giffgaff,4814,Telephones general-all costs,10.00,0.00,10.00
Children and Young Peoples Services,Head of Childrens Social Care,085358,Orchard House Sacriston Solo Home,Transport,235057,Public Transport,01-Mar-2022,000009949028969,3C_ NSL Durham WAP,7523,Staff travelling,2.40,0.00,2.40
Children and Young Peoples Services,Head of Childrens Social Care,085358,Orchard House Sacriston Solo Home,Supplies and Services,324117,Provisions E324,01-Mar-2022,000009949028973,ICELAND,5411,Catering costs - provisions,104.45,0.00,104.45
Regeneration Economy and Growth,Development and Housing,030776,LINKCD Flexible Fund,Supplies and Services,304403,Equipment and Materials,01-Mar-2022,000009949029173,AMZNMKTPLACE AMAZON.CO,5999,Other consumables,419.98,0.00,419.98
Regeneration Economy and Growth,Development and Housing,031581,Prevention Fund,Payments In advance A932,932001,Payments in advance,01-Mar-2022,000009949029189,TELEPHONE PAYMENT,9399,Payments in advance,302.43,0.00,302.43
Regeneration Economy and Growth,Development and Housing,031623,Rough Sleeping,Transport,235073,Public Transport,01-Mar-2022,000009949029259,GO NORTH EAST LIMITED,4131,Travel-clients/students/children,6.20,0.00,6.20
Children and Young Peoples Services,Head of Early Help Inclusion & Vulnerable Children.,085956,Lumley,Transfer Payments,515002,Social Services Clients,01-Mar-2022,000009949029301,FOOTASYLUM ORDER,5691,Pocket money,16.94,0.00,16.94
Children and Young Peoples Services,Head of Early Help Inclusion & Vulnerable Children.,085956,Lumley,Transfer Payments,515002,Social Services Clients,01-Mar-2022,000009949029305,WWW.MISSGUIDED.CO.UK,5691,Pocket money,58.59,0.00,58.59
Children and Young Peoples Services,Head of Education and Skills,070169,Durham SSP,Supplies and Services,384999,Miscellaneous Expenses,01-Mar-2022,000009949029323,SMYTHS TOYS DURHAM,5945,Other expenses,51.96,0.00,51.96
Resources BK0010,People & Talent Management,010984,Training and Development,Employees,040149,Recruitment Instruction and Training,01-Mar-2022,000009949029367,WWW.JIB.ORG.UK,8699,Training-all costs,250.00,0.00,250.00
Neighbourhoods and Climate Change,Environmental Services,031238,North Pennines - Tees Swale,Supplies and Services,304999,Equipment and Materials,01-Mar-2022,000009949029395,SP SAM TURNER & SONS,5399,Misc equipment tools and materials,432.12,0.00,432.12
Children and Young Peoples Services,Head of Childrens Social Care,085331,New Lea Childrens Home,Supplies and Services,372009,Subscriptions E372,01-Mar-2022,000009949029425,NETFLIX.COM,4899,Subscriptions 372009,13.99,0.00,13.99
Adult and Health Services,Head of Adults,055643,Hawthorn House LD Respite Unit,Supplies and Services,304403,Equipment and Materials,01-Mar-2022,000009949029689,AMZNMKTPLACE AMAZON.CO,5999,Other consumables,37.99,6.33,31.66
Neighbourhoods and Climate Change,Environmental Services,010367,C&G - South Grounds Maintenance,Supplies and Services,304221,Equipment and Materials,01-Mar-2022,000009949029761,MACHINE MART WEB,7394,Direct materials,101.97,0.00,101.97
Regeneration Economy and Growth,Culture Sport and Tourism,054399,Local Delivery-Libraries,Supplies and Services,312009,Newspapers books and periodicals E312,01-Mar-2022,000009949029895,AMZNMktplace,5999,Newspapers books and periodicals,44.82,7.47,37.35
Regeneration Economy and Growth,Culture Sport and Tourism,054399,Local Delivery-Libraries,Supplies and Services,312009,Newspapers books and periodicals E312,01-Mar-2022,000009949029895 - 1,AMZNMktplace,5999,Newspapers books and periodicals,0.03,,0.03
Regeneration Economy and Growth,Culture Sport and Tourism,054399,Local Delivery-Libraries,Supplies and Services,384237,Miscellaneous Expenses,01-Mar-2022,000009949029897,AMZNMktplace,5999,Recreational exps outings parties,16.99,2.83,14.16
Regeneration Economy and Growth,Culture Sport and Tourism,054399,Local Delivery-Libraries,Supplies and Services,384237,Miscellaneous Expenses,01-Mar-2022,000009949029901,AMZNMktplace,5999,Recreational exps outings parties,4.90,0.82,4.08
Children and Young Peoples Services,Head of Childrens Social Care,085334,West Rainton Satelite Home,Supplies and Services,324117,Provisions E324,01-Mar-2022,000009949029959,TESCO STORES 2371,5411,Catering costs - provisions,149.79,0.00,149.79
Children and Young Peoples Services,Head of Early Help Inclusion & Vulnerable Children.,088115,Young Parents Programme 088115,Supplies and Services,384302,Miscellaneous Expenses,01-Mar-2022,000009949029983,ASDA GROCERIES ONLINE,5411,Activity expenses,26.90,0.00,26.90
Resources BK0010,Digital and Customer Services,065323,Operations - Installations,Supplies and Services,304639,Equipment and Materials,01-Mar-2022,000009949030025,Connect Distribution S,5722,Technicians-supplies,31.68,0.00,31.68
Children and Young Peoples Services,Head of Early Help Inclusion & Vulnerable Children.,085956,Lumley,Supplies and Services,304259,Equipment and Materials,01-Mar-2022,000009949030079,AMZNMktplace,5999,Equipment-purchase and rental,19.35,3.24,16.11
Children and Young Peoples Services,Head of Childrens Social Care,085404,COMF bid Targeted interventions for CYPS,Supplies and Services,384999,Miscellaneous Expenses,01-Mar-2022,000009949030087,Amazon.co.uk 2R5CA8WC4,5969,Other expenses,370.50,61.80,308.70
Children and Young Peoples Services,Head of Education and Skills,071903,Early Years Sustainability,Supplies and Services,304999,Equipment and Materials,01-Mar-2022,000009949030119,SIREN FILMS LTD.,5818,Misc equipment tools and materials,"1,558.80",0.00,1558.80
Children and Young Peoples Services,Head of Childrens Social Care,085351,Framwellgate Moor CU,Supplies and Services,304259,Equipment and Materials,01-Mar-2022,000009949030221,CURRYS ONLINE,5732,Equipment-purchase and rental,339.98,0.00,339.98
Children and Young Peoples Services,Head of Childrens Social Care,085333,Coxhoe Satelite Home,Supplies and Services,324117,Provisions E324,01-Mar-2022,000009949030231,WALKERS BUTCHERS & BAK,5499,Catering costs - provisions,27.00,0.00,27.00
Children and Young Peoples Services,Head of Childrens Social Care,085333,Coxhoe Satelite Home,Supplies and Services,324117,Provisions E324,01-Mar-2022,000009949030235,TESCO STORES 2916,5411,Catering costs - provisions,21.85,0.00,21.85
Children and Young Peoples Services,Head of Early Help Inclusion & Vulnerable Children.,088107,Wheatley Hill & N. Aycliffe Family Centre,Supplies and Services,324117,Provisions E324,01-Mar-2022,000009949030327,ASDA GROCERIES ONLINE,5411,Catering costs - provisions,51.29,0.00,51.29
Children and Young Peoples Services,Head of Early Help Inclusion & Vulnerable Children.,088107,Wheatley Hill & N. Aycliffe Family Centre,Supplies and Services,324117,Provisions E324,01-Mar-2022,000009949030331,ASDA GROCERIES ONLINE,5411,Catering costs - provisions,46.26,0.00,46.26
Children and Young Peoples Services,Head of Early Help Inclusion & Vulnerable Children.,085962,Aycliffe Secure - Durham,Supplies and Services,304403,Equipment and Materials,01-Mar-2022,000009949030351,AMZNMktplace,5999,Other consumables,4.99,0.83,4.16
Children and Young Peoples Services,Head of Childrens Social Care,085332,Middlestone Moor CU,Transport,235057,Public Transport,01-Mar-2022,000009949030477,WWW.GONORTHEAST.CO.UK,4111,Staff travelling,20.00,0.00,20.00
Children and Young Peoples Services,Head of Childrens Social Care,085332,Middlestone Moor CU,Supplies and Services,324117,Provisions E324,01-Mar-2022,000009949030481,LIDL GB SPENNYMOOR,5411,Catering costs - provisions,2.37,0.00,2.37
Resources BK0010,Procurement Sales & Business Services,065500,Business Support - Management,Supplies and Services,336005,Advertising E336,01-Mar-2022,000009949030509,LINKEDIN-737 6027663,7311,Advertising other than for staff,53.23,0.00,53.23
Neighbourhoods and Climate Change,Community Protection,011035,Consumer Protection 011035,Supplies and Services,304403,Equipment and Materials,01-Mar-2022,000009949030531,CANFORD AUDIO PLC,5065,Other consumables,269.28,0.00,269.28
Regeneration Economy and Growth,Development and Housing,031634,LOCAL LETTINGS AGENCY,Supplies and Services,304999,Equipment and Materials,01-Mar-2022,000009949030555,R DEFTY,5251,Misc equipment tools and materials,16.00,0.00,16.00
Children and Young Peoples Services,Head of Childrens Social Care,085334,West Rainton Satelite Home,Supplies and Services,308011,Furniture,01-Mar-2022,000009949030567,FRANKS THE FLOORING ST,5713,Furniture repair and replacement,500.00,0.00,500.00
Regeneration Economy and Growth,Corporate Property and Land,010525,Catering - Green Lane,Supplies and Services,384999,Miscellaneous Expenses,01-Mar-2022,000009949146853,G M PACKAGING UK LTD,5046,Other expenses,44.94,0.00,44.94
Regeneration Economy and Growth,Corporate Property and Land,011296,Catering - Crimdon Dene Hub,Supplies and Services,384999,Miscellaneous Expenses,01-Mar-2022,000009949146855,G M PACKAGING UK LTD,5046,Other expenses,311.70,0.00,311.70
Regeneration Economy and Growth,Culture Sport and Tourism,054235,Bishop Auckland Town Hall Cafe,Supplies and Services,324117,Provisions E324,01-Mar-2022,000009949146859,JR HOLLAND FOODSERVICE,5499,Catering costs - provisions,33.64,0.00,33.64
Neighbourhoods and Climate Change,Environmental Services,011060,C&G - Hardwick Park Catering,Supplies and Services,324117,Provisions E324,01-Mar-2022,000009949146861,JR HOLLAND FOODSERVICE,5499,Catering costs - provisions,48.30,0.00,48.30
Regeneration Economy and Growth,Culture Sport and Tourism,054812,Gala Theatre - Catering etc,Supplies and Services,324117,Provisions E324,01-Mar-2022,000009949146867,JR HOLLAND FOODSERVICE,5499,Catering costs - provisions,74.47,0.00,74.47
Regeneration Economy and Growth,Corporate Property and Land,021242,Catering - County Hall,Supplies and Services,324117,Provisions E324,01-Mar-2022,000009949146869,JR HOLLAND FOODSERVICE,5499,Catering costs - provisions,30.27,0.00,30.27
Children and Young Peoples Services,Head of Education and Skills,071801,Selby Cottage Childcare Centre,Supplies and Services,304403,Equipment and Materials,01-Mar-2022,000009953520697,AMZNMKTPLACE AMAZON.CO,5999,Other consumables,11.99,2.00,9.99
Children and Young Peoples Services,Head of Education and Skills,071801,Selby Cottage Childcare Centre,Supplies and Services,304403,Equipment and Materials,01-Mar-2022,000009953520699,AMZNMKTPLACE AMAZON.CO,5999,Other consumables,8.99,1.50,7.49
Children and Young Peoples Services,Head of Childrens Social Care,085341,High Etherley Satelite Home,Supplies and Services,304259,Equipment and Materials,01-Mar-2022,000009953520719,WWW.DURHAM.GOV.UK,9399,Equipment-purchase and rental,16.00,0.00,16.00
Neighbourhoods and Climate Change,Environmental Services,010383,C&G - South Street Cleansing,Supplies and Services,304221,Equipment and Materials,01-Mar-2022,000009953520729,WWW.ARCO.CO.UK,5085,Direct materials,192.35,0.00,192.35
Resources BK0010,Procurement Sales & Business Services,065503,Business Support - Spectrum,Supplies and Services,304259,Equipment and Materials,01-Mar-2022,000009953520825,GEN REGISTER OFFICE,9399,Equipment-purchase and rental,11.00,0.00,11.00
Children and Young Peoples Services,Head of Early Help Inclusion & Vulnerable Children.,085956,Lumley,Transfer Payments,515002,Social Services Clients,01-Mar-2022,000009953520913,www.asos.com,5691,Pocket money,103.85,0.00,103.85
Children and Young Peoples Services,Head of Early Help Inclusion & Vulnerable Children.,085954,Walworth,Transfer Payments,515002,Social Services Clients,01-Mar-2022,000009953520915,JD SPORTS INTERNET,5941,Pocket money,198.00,0.00,198.00
Children and Young Peoples Services,Head of Early Help Inclusion & Vulnerable Children.,085954,Walworth,Transfer Payments,515002,Social Services Clients,01-Mar-2022,000009953520917,JD SPORTS INTERNET,5941,Pocket money,75.00,0.00,75.00
Children and Young Peoples Services,Head of Early Help Inclusion & Vulnerable Children.,085954,Walworth,Transfer Payments,515002,Social Services Clients,01-Mar-2022,000009953520919,JD SPORTS INTERNET,5941,Pocket money,75.00,0.00,75.00
Children and Young Peoples Services,Head of Early Help Inclusion & Vulnerable Children.,085962,Aycliffe Secure - Durham,Transfer Payments,515002,Social Services Clients,01-Mar-2022,000009953520921,JD SPORTS INTERNET,5941,Pocket money,61.99,0.00,61.99
Children and Young Peoples Services,Head of Early Help Inclusion & Vulnerable Children.,085956,Lumley,Transfer Payments,515002,Social Services Clients,01-Mar-2022,000009953520923,JD SPORTS INTERNET,5941,Pocket money,61.99,0.00,61.99
Children and Young Peoples Services,Head of Early Help Inclusion & Vulnerable Children.,085956,Lumley,Transfer Payments,515002,Social Services Clients,01-Mar-2022,000009953520925,JD SPORTS INTERNET,5941,Pocket money,171.00,0.00,171.00
Neighbourhoods and Climate Change,Environmental Services,010367,C&G - South Grounds Maintenance,Supplies and Services,304221,Equipment and Materials,01-Mar-2022,000009953520949,SCREWFIX DIR LTD,5211,Direct materials,29.78,0.00,29.78
Regeneration Economy and Growth,Business Durham CL0850,030672,Operations Team,Supplies and Services,352001,Conference Expenses,01-Mar-2022,000009953521065,HOTEL INDIGO DURHAM,7011,Conferencesseminars fees etc,147.40,0.00,147.40
Regeneration Economy and Growth,Culture Sport and Tourism,011263,Louisa Centre 011263,Supplies and Services,304259,Equipment and Materials,01-Mar-2022,000009953521131,AO RETAIL LIMITED,5722,Equipment-purchase and rental,263.00,0.00,263.00
Children and Young Peoples Services,Head of Education and Skills,078550,Discretionary Learning Support,Supplies and Services,304259,Equipment and Materials,01-Mar-2022,000009953521137,SCREWFIX DIRECT,5211,Equipment-purchase and rental,24.99,0.00,24.99
Neighbourhoods and Climate Change,Environmental Services,011060,C&G - Hardwick Park Catering,Supplies and Services,324117,Provisions E324,01-Mar-2022,000009953578617,BATLEYS PERTH,5300,Catering costs - provisions,239.88,39.98,199.90
Neighbourhoods and Climate Change,Environmental Services,011060,C&G - Hardwick Park Catering,Supplies and Services,324117,Provisions E324,01-Mar-2022,000009953578617 - 1,BATLEYS PERTH,5300,Catering costs - provisions,32.74,,32.74
Regeneration Economy and Growth,Corporate Property and Land,021234,Catering - Locomotion,Supplies and Services,324117,Provisions E324,01-Mar-2022,000009953578619,BATLEYS PERTH,5300,Catering costs - provisions,367.98,61.33,306.65
Regeneration Economy and Growth,Corporate Property and Land,021234,Catering - Locomotion,Supplies and Services,324117,Provisions E324,01-Mar-2022,000009953578619 - 1,BATLEYS PERTH,5300,Catering costs - provisions,38.59,,38.59
Regeneration Economy and Growth,Business Durham CL0850,030689,Inward Investment and Aftercare,Supplies and Services,342222,Computers and Communications,01-Mar-2022,000009958791261,FASTHOSTS,4816,Comp hardware purch-network servers,12.59,0.00,12.59
Children and Young Peoples Services,Head of Early Help Inclusion & Vulnerable Children.,074000,National Supporting Families Programme,Transfer Payments,525033,Other,01-Mar-2022,9953520835,ARGOS LTD,5310,Grants to individuals,-2.95,0.00,-2.95
Children and Young Peoples Services,Head of Early Help Inclusion & Vulnerable Children.,074000,National Supporting Families Programme,Transfer Payments,525033,Other,01-Mar-2022,9953520837,ARGOS LTD,5310,Grants to individuals,-140.00,0.00,-140.00
Children and Young Peoples Services,Head of Education and Skills,071732,Dean Bank Childcare,Supplies and Services,324117,Provisions E324,01-Mar-2022,9953520883,Wm Morrisons Store Pic,5411,Catering costs - provisions,71.85,0.00,71.85
Regeneration Economy and Growth,Business Durham CL0850,030689,Inward Investment and Aftercare,Supplies and Services,304403,Equipment and Materials,02-Mar-2022,000009949028377,CLOUD CAMPAIGN,5734,Other consumables,4.11,0.00,4.11
Children and Young Peoples Services,Head of Childrens Social Care,085332,Middlestone Moor CU,Supplies and Services,304999,Equipment and Materials,02-Mar-2022,000009949028593,AMZNMktplace,5999,Misc equipment tools and materials,114.15,19.03,95.12
Regeneration Economy and Growth,Development and Housing,030554,International Relations 030554,Transport,235057,Public Transport,02-Mar-2022,000009949029555,RYANAIR,3246,Staff travelling,191.24,0.00,191.24
Regeneration Economy and Growth,Development and Housing,030554,International Relations 030554,Transport,235057,Public Transport,02-Mar-2022,000009949029557,RYANAIR,3246,Staff travelling,68.85,0.00,68.85
Regeneration Economy and Growth,Business Durham CL0850,030689,Inward Investment and Aftercare,Supplies and Services,304403,Equipment and Materials,02-Mar-2022,000009953520687,ADOBE CREATIVE CLOUD,5734,Other consumables,49.94,0.00,49.94
Regeneration Economy and Growth,Business Durham CL0850,030689,Inward Investment and Aftercare,Supplies and Services,336005,Advertising E336,02-Mar-2022,000009953520689,Twitter Online Ads,7311,Advertising other than for staff,10.21,0.00,10.21
Children and Young Peoples Services,Head of Childrens Social Care,085552,Services for Disabled Children,Supplies and Services,352001,Conference Expenses,02-Mar-2022,000009953520693,EB CREATIVE LIFE STOR,7399,Conferencesseminars fees etc,30.00,0.00,30.00
Children and Young Peoples Services,Head of Education and Skills,071801,Selby Cottage Childcare Centre,Supplies and Services,304403,Equipment and Materials,02-Mar-2022,000009953520695,AMZNMKTPLACE AMAZON.CO,5999,Other consumables,13.99,2.33,11.66
Children and Young Peoples Services,Head of Education and Skills,071801,Selby Cottage Childcare Centre,Supplies and Services,324117,Provisions E324,02-Mar-2022,000009953520701,ASDA GROCERIES ONLINE,5411,Catering costs - provisions,90.14,0.00,90.14
Children and Young Peoples Services,Head of Education and Skills,071801,Selby Cottage Childcare Centre,Supplies and Services,324117,Provisions E324,02-Mar-2022,000009953520703,ASDA GROCERIES ONLINE,5411,Catering costs - provisions,-0.10,0.00,-0.10
Children and Young Peoples Services,Head of Childrens Social Care,085404,COMF bid Targeted interventions for CYPS,Supplies and Services,384999,Miscellaneous Expenses,02-Mar-2022,000009953520705,Amazon.co.uk 2X0IL9C24,5969,Other expenses,89.70,0.00,89.70
Children and Young Peoples Services,Head of Childrens Social Care,085404,COMF bid Targeted interventions for CYPS,Supplies and Services,384999,Miscellaneous Expenses,02-Mar-2022,000009953520707,Amazon.co.uk 2X5VV0CX4,5969,Other expenses,151.83,0.00,151.83
Children and Young Peoples Services,Head of Childrens Social Care,085404,COMF bid Targeted interventions for CYPS,Supplies and Services,384999,Miscellaneous Expenses,02-Mar-2022,000009953520709,Amazon.co.uk 2X1QB9CZ4,5969,Other expenses,17.94,0.00,17.94
Children and Young Peoples Services,Head of Childrens Social Care,085404,COMF bid Targeted interventions for CYPS,Supplies and Services,384999,Miscellaneous Expenses,02-Mar-2022,000009953520711,Amazon.co.uk 2X69J4OO4,5969,Other expenses,35.88,0.00,35.88
Children and Young Peoples Services,Head of Childrens Social Care,085404,COMF bid Targeted interventions for CYPS,Supplies and Services,384999,Miscellaneous Expenses,02-Mar-2022,000009953520713,Amazon.co.uk 2X9QN1CZ4,5969,Other expenses,17.94,0.00,17.94
Children and Young Peoples Services,Head of Childrens Social Care,085341,High Etherley Satelite Home,Supplies and Services,324117,Provisions E324,02-Mar-2022,000009953520721,ASDA GEORGE COM LEEDS,5411,Catering costs - provisions,13.95,0.00,13.95
Children and Young Peoples Services,Head of Education and Skills,075035,DurhamDirections Re-engagement,Supplies and Services,364301,Grants to Voluntary Organisations,02-Mar-2022,000009953520723,AMZNMktplace,5999,Hardship,14.95,2.49,12.46
Children and Young Peoples Services,Head of Education and Skills,075035,DurhamDirections Re-engagement,Supplies and Services,364301,Grants to Voluntary Organisations,02-Mar-2022,000009953520725,AMZNMktplace,5999,Hardship,17.10,2.85,14.25
Regeneration Economy and Growth,Culture Sport and Tourism,054820,Gala Theatre - Overheads,Supplies and Services,304252,Equipment and Materials,02-Mar-2022,000009953520731,Amazon.co.uk 2R9S38YW4,5969,Equipment-repairsserviceinsurance,86.00,14.33,71.67
Regeneration Economy and Growth,Culture Sport and Tourism,030712,VCD - Project Delivery,Supplies and Services,384199,Miscellaneous Expenses,02-Mar-2022,000009953520733,MAILCHIMP MISC,5968,Other hired and contracted services,265.19,0.00,265.19
Dedicated Schools Grant BG0015,DSG High Needs Block,079050,SENSS-Sensory,Employees,040149,Recruitment Instruction and Training,02-Mar-2022,000009953520743,COMMUNICATE-ED,8299,Training-all costs,190.00,0.00,190.00
Children and Young Peoples Services,Head of Childrens Social Care,085332,Middlestone Moor CU,Supplies and Services,324117,Provisions E324,02-Mar-2022,000009953520745,HOME BARGAINS SPENNYMO,5251,Catering costs - provisions,15.16,0.00,15.16
Children and Young Peoples Services,Head of Childrens Social Care,085332,Middlestone Moor CU,Supplies and Services,324117,Provisions E324,02-Mar-2022,000009953520747,ICELAND,5411,Catering costs - provisions,11.00,0.00,11.00
Children and Young Peoples Services,Head of Childrens Social Care,085332,Middlestone Moor CU,Supplies and Services,324117,Provisions E324,02-Mar-2022,000009953520749,LIDL GB SPENNYMOOR,5411,Catering costs - provisions,6.96,0.00,6.96
Children and Young Peoples Services,Head of Childrens Social Care,085332,Middlestone Moor CU,Supplies and Services,324117,Provisions E324,02-Mar-2022,000009953520751,TESCO STORES 2371,5411,Catering costs - provisions,183.21,0.00,183.21
Children and Young Peoples Services,Head of Childrens Social Care,085341,High Etherley Satelite Home,Supplies and Services,304259,Equipment and Materials,02-Mar-2022,000009953520761,COUNTY HALL CANTEEN,9399,Equipment-purchase and rental,4.50,0.00,4.50
Adult and Health Services,Head of Adults,055302,Durham Pathways,Supplies and Services,324117,Provisions E324,02-Mar-2022,000009953520763,LIDL GB DURHAM,5411,Catering costs - provisions,9.52,0.00,9.52
Regeneration Economy and Growth,Development and Housing,031576,B& B - Temp Accom,Supplies and Services,352001,Conference Expenses,02-Mar-2022,000009953520769,Mugsys Manor,7011,Conferencesseminars fees etc,69.00,0.00,69.00
Regeneration Economy and Growth,Corporate Property and Land,021242,Catering - County Hall,Supplies and Services,304403,Equipment and Materials,02-Mar-2022,000009953520811,AMZNMktplace,5999,Other consumables,136.50,22.75,113.75
Children and Young Peoples Services,Head of Childrens Social Care,085511,Emergency Duty Team,Supplies and Services,352001,Conference Expenses,02-Mar-2022,000009953520813,TRAVELODGE,3615,Conferencesseminars fees etc,66.79,0.00,66.79
Regeneration Economy and Growth,Development and Housing,030772,CLLD South,Supplies and Services,304259,Equipment and Materials,02-Mar-2022,000009953520823,SECURITY INDUSTRY AUTH,9399,Equipment-purchase and rental,190.00,0.00,190.00
Children and Young Peoples Services,Head of Childrens Social Care,085358,Orchard House Sacriston Solo Home,Supplies and Services,324117,Provisions E324,02-Mar-2022,000009953520861,WILKO RETAIL LIMITED,5399,Catering costs - provisions,9.20,0.00,9.20
Children and Young Peoples Services,Head of Childrens Social Care,085358,Orchard House Sacriston Solo Home,Supplies and Services,324117,Provisions E324,02-Mar-2022,000009953520863,TESCO STORES 6334,5411,Catering costs - provisions,29.00,0.00,29.00
Children and Young Peoples Services,Head of Childrens Social Care,085358,Orchard House Sacriston Solo Home,Supplies and Services,328041,Clothing uniforms and laundry E328,02-Mar-2022,000009953520865,NEXT RETAIL LTD,5651,Clothing uniforms and laundry,6.00,0.00,6.00
Children and Young Peoples Services,Head of Childrens Social Care,085358,Orchard House Sacriston Solo Home,Supplies and Services,304999,Equipment and Materials,02-Mar-2022,000009953520867,"BOOTS, 6551",5912,Misc equipment tools and materials,2.90,0.00,2.90
Regeneration Economy and Growth,Development and Housing,030771,Durham Advance Flexible Fund,Supplies and Services,340001,Postages E340,02-Mar-2022,000009953520911,POST OFFICE COUNTER,9402,Postages,10.20,0.00,10.20
Children and Young Peoples Services,Head of Early Help Inclusion & Vulnerable Children.,085957,Secure Management,Supplies and Services,340001,Postages E340,02-Mar-2022,000009953520927,TSB Returns Ltd,4215,Postages,2.50,0.00,2.50
Children and Young Peoples Services,Head of Early Help Inclusion & Vulnerable Children.,085956,Lumley,Transfer Payments,515002,Social Services Clients,02-Mar-2022,000009953520929,SPORTSDIRECT.COM,5691,Pocket money,14.99,2.50,12.49
Children and Young Peoples Services,Head of Early Help Inclusion & Vulnerable Children.,085956,Lumley,Supplies and Services,304083,Equipment and Materials,02-Mar-2022,000009953520931,AMZNMktplace,5999,Catering equipment,64.98,10.83,54.15
Children and Young Peoples Services,Head of Early Help Inclusion & Vulnerable Children.,085956,Lumley,Supplies and Services,304083,Equipment and Materials,02-Mar-2022,000009953520933,ASDA GEORGE COM LEEDS,5411,Catering equipment,102.00,0.00,102.00
Children and Young Peoples Services,Head of Early Help Inclusion & Vulnerable Children.,085962,Aycliffe Secure - Durham,Supplies and Services,324117,Provisions E324,02-Mar-2022,000009953520935,TESCO STORES 6329,5411,Catering costs - provisions,128.18,0.00,128.18
Resources BK0010,People & Talent Management,010984,Training and Development,Supplies and Services,304259,Equipment and Materials,02-Mar-2022,000009953520957,PAYPAL SWIMENGLAND,5941,Equipment-purchase and rental,40.80,0.00,40.80
Resources BK0010,People & Talent Management,010984,Training and Development,Supplies and Services,304259,Equipment and Materials,02-Mar-2022,000009953520959,PAYPAL SWIMENGLAND,5941,Equipment-purchase and rental,40.80,0.00,40.80
Resources BK0010,People & Talent Management,010984,Training and Development,Supplies and Services,304259,Equipment and Materials,02-Mar-2022,000009953520961,PAYPAL SWIMENGLAND,5941,Equipment-purchase and rental,40.80,0.00,40.80
Children and Young Peoples Services,Head of Childrens Social Care,085331,New Lea Childrens Home,Supplies and Services,304999,Equipment and Materials,02-Mar-2022,000009953520983,HOME BARGAINS,5251,Misc equipment tools and materials,7.40,0.00,7.40
Children and Young Peoples Services,Head of Early Help Inclusion & Vulnerable Children.,071441,Bishop Auckland One Point Hub,Supplies and Services,304259,Equipment and Materials,02-Mar-2022,000009953521035,POUNDSTRETCHER 692,5331,Equipment-purchase and rental,26.93,0.00,26.93
Children and Young Peoples Services,Head of Childrens Social Care,085367,Children Looked After Team 4,Supplies and Services,304259,Equipment and Materials,02-Mar-2022,000009953521037,HM PASSPORT OFFICE,9399,Equipment-purchase and rental,49.00,0.00,49.00
Children and Young Peoples Services,Head of Childrens Social Care,085365,Children Looked After Team 2,Supplies and Services,304259,Equipment and Materials,02-Mar-2022,000009953521039,HM PASSPORT OFFICE,9399,Equipment-purchase and rental,49.00,0.00,49.00
Children and Young Peoples Services,Head of Childrens Social Care,085365,Children Looked After Team 2,Supplies and Services,304259,Equipment and Materials,02-Mar-2022,000009953521041,HM PASSPORT OFFICE,9399,Equipment-purchase and rental,49.00,0.00,49.00
Resources BK0010,Procurement Sales & Business Services,065503,Business Support - Spectrum,Supplies and Services,338045,Services,02-Mar-2022,000009953521043,HM PASSPORT OFFICE,9399,Legal expenses 338045,49.00,0.00,49.00
Children and Young Peoples Services,Head of Early Help Inclusion & Vulnerable Children.,071441,Bishop Auckland One Point Hub,Supplies and Services,304259,Equipment and Materials,02-Mar-2022,000009953521045,HOME BARGAINS,5251,Equipment-purchase and rental,27.81,0.00,27.81
Neighbourhoods and Climate Change,Environmental Services,010367,C&G - South Grounds Maintenance,Supplies and Services,304221,Equipment and Materials,02-Mar-2022,000009953521051,MKM BUILD SUPP (BISHOP,5211,Direct materials,260.39,0.00,260.39
Neighbourhoods and Climate Change,Environmental Services,010367,C&G - South Grounds Maintenance,Supplies and Services,324117,Provisions E324,02-Mar-2022,000009953521053,SP RBLI,5399,Catering costs - provisions,145.99,0.00,145.99
Children and Young Peoples Services,Head of Childrens Social Care,085333,Coxhoe Satelite Home,Supplies and Services,324117,Provisions E324,02-Mar-2022,000009953521071,TESCO STORES 2371,5411,Catering costs - provisions,205.32,0.00,205.32
Children and Young Peoples Services,Head of Education and Skills,071732,Dean Bank Childcare,Supplies and Services,384999,Miscellaneous Expenses,02-Mar-2022,000009953521079,Amazon.co.uk 2X5V98CB4,5969,Other expenses,3.49,0.00,3.49
Children and Young Peoples Services,Head of Education and Skills,071732,Dean Bank Childcare,Supplies and Services,324117,Provisions E324,02-Mar-2022,000009953521081,B&M 147 - FERRYHILL,5399,Catering costs - provisions,3.89,0.00,3.89
Regeneration Economy and Growth,Culture Sport and Tourism,011292,Seaham Leisure Centre,Supplies and Services,304259,Equipment and Materials,02-Mar-2022,000009953521085,AMZNMktplace,5999,Equipment-purchase and rental,47.98,8.00,39.98
Resources BK0010,Procurement Sales & Business Services,065503,Business Support - Spectrum,Transport,235057,Public Transport,02-Mar-2022,000009953521105,Trainline.COM,4112,Staff travelling,65.27,0.00,65.27
Resources BK0010,Procurement Sales & Business Services,065503,Business Support - Spectrum,Transport,235057,Public Transport,02-Mar-2022,000009953521107,thetrainline.com,4112,Staff travelling,65.27,0.00,65.27
Resources BK0010,Procurement Sales & Business Services,065503,Business Support - Spectrum,Supplies and Services,304403,Equipment and Materials,02-Mar-2022,000009953521109,AMZNMktplace,5999,Other consumables,12.99,2.17,10.82
Resources BK0010,Procurement Sales & Business Services,065503,Business Support - Spectrum,Supplies and Services,304403,Equipment and Materials,02-Mar-2022,000009953521111,AMZNMktplace,5999,Other consumables,8.95,1.49,7.46
Children and Young Peoples Services,Head of Early Help Inclusion & Vulnerable Children.,085957,Secure Management,Supplies and Services,384302,Miscellaneous Expenses,02-Mar-2022,000009953521169,Amazon MP3,5735,Activity expenses,0.98,0.00,0.98
Children and Young Peoples Services,Head of Early Help Inclusion & Vulnerable Children.,085957,Secure Management,Supplies and Services,384302,Miscellaneous Expenses,02-Mar-2022,000009953521171,Amazon MP3,5735,Activity expenses,0.98,0.00,0.98
Children and Young Peoples Services,Head of Early Help Inclusion & Vulnerable Children.,085957,Secure Management,Supplies and Services,384302,Miscellaneous Expenses,02-Mar-2022,000009953521173,Amazon MP3,5735,Activity expenses,0.98,0.00,0.98
Children and Young Peoples Services,Head of Early Help Inclusion & Vulnerable Children.,085957,Secure Management,Supplies and Services,384302,Miscellaneous Expenses,02-Mar-2022,000009953521175,Amazon MP3,5735,Activity expenses,0.98,0.00,0.98
Children and Young Peoples Services,Head of Early Help Inclusion & Vulnerable Children.,085957,Secure Management,Supplies and Services,384302,Miscellaneous Expenses,02-Mar-2022,000009953521177,Amazon MP3,5735,Activity expenses,0.98,0.00,0.98
Children and Young Peoples Services,Head of Early Help Inclusion & Vulnerable Children.,085957,Secure Management,Supplies and Services,384302,Miscellaneous Expenses,02-Mar-2022,000009953521179,Amazon MP3,5735,Activity expenses,0.98,0.00,0.98
Children and Young Peoples Services,Head of Early Help Inclusion & Vulnerable Children.,085957,Secure Management,Supplies and Services,384302,Miscellaneous Expenses,02-Mar-2022,000009953521181,Amazon MP3,5735,Activity expenses,0.98,0.00,0.98
Children and Young Peoples Services,Head of Early Help Inclusion & Vulnerable Children.,085957,Secure Management,Supplies and Services,384302,Miscellaneous Expenses,02-Mar-2022,000009953521183,Amazon MP3,5735,Activity expenses,0.98,0.00,0.98
Children and Young Peoples Services,Head of Early Help Inclusion & Vulnerable Children.,085957,Secure Management,Supplies and Services,384302,Miscellaneous Expenses,02-Mar-2022,000009953521185,Amazon MP3,5735,Activity expenses,0.98,0.00,0.98
Children and Young Peoples Services,Head of Early Help Inclusion & Vulnerable Children.,085957,Secure Management,Supplies and Services,384302,Miscellaneous Expenses,02-Mar-2022,000009953521187,Amazon MP3,5735,Activity expenses,0.59,0.00,0.59
Children and Young Peoples Services,Head of Early Help Inclusion & Vulnerable Children.,085957,Secure Management,Supplies and Services,384302,Miscellaneous Expenses,02-Mar-2022,000009953521189,Amazon MP3,5735,Activity expenses,0.98,0.00,0.98
Children and Young Peoples Services,Head of Early Help Inclusion & Vulnerable Children.,085957,Secure Management,Supplies and Services,384302,Miscellaneous Expenses,02-Mar-2022,000009953521191,Amazon MP3,5735,Activity expenses,0.98,0.00,0.98
Children and Young Peoples Services,Head of Early Help Inclusion & Vulnerable Children.,085957,Secure Management,Supplies and Services,384302,Miscellaneous Expenses,02-Mar-2022,000009953521193,Amazon MP3,5735,Activity expenses,0.98,0.00,0.98
Children and Young Peoples Services,Head of Early Help Inclusion & Vulnerable Children.,085957,Secure Management,Supplies and Services,384302,Miscellaneous Expenses,02-Mar-2022,000009953521195,Amazon MP3,5735,Activity expenses,0.98,0.00,0.98
Children and Young Peoples Services,Head of Early Help Inclusion & Vulnerable Children.,085957,Secure Management,Supplies and Services,384302,Miscellaneous Expenses,02-Mar-2022,000009953521197,Amazon MP3,5735,Activity expenses,0.98,0.00,0.98
Children and Young Peoples Services,Head of Early Help Inclusion & Vulnerable Children.,085957,Secure Management,Supplies and Services,384302,Miscellaneous Expenses,02-Mar-2022,000009953521199,Amazon MP3,5735,Activity expenses,0.98,0.00,0.98
Children and Young Peoples Services,Head of Early Help Inclusion & Vulnerable Children.,085957,Secure Management,Supplies and Services,384302,Miscellaneous Expenses,02-Mar-2022,000009953521201,Amazon MP3,5735,Activity expenses,0.98,0.00,0.98
Children and Young Peoples Services,Head of Early Help Inclusion & Vulnerable Children.,085957,Secure Management,Supplies and Services,384302,Miscellaneous Expenses,02-Mar-2022,000009953521203,Amazon MP3,5735,Activity expenses,0.98,0.00,0.98
Children and Young Peoples Services,Head of Early Help Inclusion & Vulnerable Children.,085957,Secure Management,Supplies and Services,384302,Miscellaneous Expenses,02-Mar-2022,000009953521205,Amazon MP3,5735,Activity expenses,0.98,0.00,0.98
Children and Young Peoples Services,Head of Childrens Social Care,085351,Framwellgate Moor CU,Supplies and Services,384999,Miscellaneous Expenses,02-Mar-2022,000009953521241,BODYCARE,5977,Other expenses,13.33,0.00,13.33
Children and Young Peoples Services,Head of Childrens Social Care,085351,Framwellgate Moor CU,Supplies and Services,384999,Miscellaneous Expenses,02-Mar-2022,000009953521243,BODYCARE,5977,Other expenses,25.00,0.00,25.00
Children and Young Peoples Services,Head of Childrens Social Care,085351,Framwellgate Moor CU,Supplies and Services,304403,Equipment and Materials,02-Mar-2022,000009953521245,CEX,5065,Other consumables,55.00,0.00,55.00
Children and Young Peoples Services,Head of Childrens Social Care,085351,Framwellgate Moor CU,Supplies and Services,324117,Provisions E324,02-Mar-2022,000009953521247,Shakeoholic,5441,Catering costs - provisions,8.10,0.00,8.10
Children and Young Peoples Services,Head of Education and Skills,071802,Louisa Cent Nursery,Supplies and Services,324117,Provisions E324,02-Mar-2022,000009953521253,ASDA SUPERSTORE,5411,Catering costs - provisions,16.25,0.00,16.25
Resources BK0010,Procurement Sales & Business Services,065503,Business Support - Spectrum,Supplies and Services,384999,Miscellaneous Expenses,02-Mar-2022,000009953521257,Amazon.co.uk 2X6WC9OM4,5969,Other expenses,39.99,6.67,33.32
Regeneration Economy and Growth,Development and Housing,030554,International Relations 030554,Supplies and Services,348037,Subsistence E348,02-Mar-2022,000009953521265,TAPAS FACTORY,5812,Subsistence,800.00,0.00,800.00
Regeneration Economy and Growth,Culture Sport and Tourism,054233,Bishop Auckland Town Hall Library,Supplies and Services,324117,Provisions E324,02-Mar-2022,000009953521283,HERON FOODS,5411,Catering costs - provisions,20.80,0.00,20.80
Regeneration Economy and Growth,Development and Housing,030776,LINKCD Flexible Fund,Supplies and Services,324117,Provisions E324,02-Mar-2022,000009953521313,TESCO STORES 2371,5411,Catering costs - provisions,5.60,0.00,5.60
Children and Young Peoples Services,Head of Childrens Social Care,085332,Middlestone Moor CU,Supplies and Services,304403,Equipment and Materials,02-Mar-2022,000009953521323,AMZNMktplace,5999,Other consumables,30.95,5.16,25.79
Children and Young Peoples Services,Head of Childrens Social Care,085332,Middlestone Moor CU,Supplies and Services,304403,Equipment and Materials,02-Mar-2022,000009953521325,AMZNMktplace,5999,Other consumables,20.67,3.45,17.22
Children and Young Peoples Services,Head of Childrens Social Care,085332,Middlestone Moor CU,Supplies and Services,304403,Equipment and Materials,02-Mar-2022,000009953521327,AMZNMktplace,5999,Other consumables,23.19,3.87,19.32
Children and Young Peoples Services,Head of Childrens Social Care,085332,Middlestone Moor CU,Supplies and Services,304403,Equipment and Materials,02-Mar-2022,000009953521329,AMZNMktplace,5999,Other consumables,11.97,2.00,9.97
Resources BK0010,Procurement Sales & Business Services,065500,Business Support - Management,Supplies and Services,372009,Subscriptions E372,02-Mar-2022,000009953521339,MA EDUCATION LTD,2741,Subscriptions 372009,90.00,0.00,90.00
Resources BK0010,Procurement Sales & Business Services,065500,Business Support - Management,Supplies and Services,342033,Computers and Communications,02-Mar-2022,000009953521341,Envato,7372,Computer hardware,145.89,0.00,145.89
Resources BK0010,Procurement Sales & Business Services,065500,Business Support - Management,Supplies and Services,304403,Equipment and Materials,02-Mar-2022,000009953521343,AMZNMKTPLACE AMAZON.CO,5999,Other consumables,49.44,0.00,49.44
Resources BK0010,Procurement Sales & Business Services,065500,Business Support - Management,Supplies and Services,304403,Equipment and Materials,02-Mar-2022,000009953521345,AMZNMKTPLACE AMAZON.CO,5999,Other consumables,128.52,0.00,128.52
Resources BK0010,Procurement Sales & Business Services,065500,Business Support - Management,Supplies and Services,304403,Equipment and Materials,02-Mar-2022,000009953521347,AMZNMKTPLACE AMAZON.CO,5999,Other consumables,32.99,5.50,27.49
Resources BK0010,Procurement Sales & Business Services,065500,Business Support - Management,Supplies and Services,384999,Miscellaneous Expenses,02-Mar-2022,000009953521349,Amazon.co.uk 2X0SI4CG4,5969,Other expenses,26.00,4.34,21.66
Regeneration Economy and Growth,Development and Housing,030771,Durham Advance Flexible Fund,Supplies and Services,304999,Equipment and Materials,02-Mar-2022,000009953521383,HIGHSPEEDTRAINING.CO.U,8244,Misc equipment tools and materials,30.00,0.00,30.00
Regeneration Economy and Growth,Development and Housing,030771,Durham Advance Flexible Fund,Supplies and Services,324117,Provisions E324,02-Mar-2022,000009953521385,STARBUCKS CONSETT,5499,Catering costs - provisions,2.40,0.00,2.40
Regeneration Economy and Growth,Corporate Property and Land,010525,Catering - Green Lane,Supplies and Services,324117,Provisions E324,02-Mar-2022,000009953578607,JR HOLLAND FOODSERVICE,5499,Catering costs - provisions,22.07,0.00,22.07
Regeneration Economy and Growth,Corporate Property and Land,010525,Catering - Green Lane,Supplies and Services,324117,Provisions E324,02-Mar-2022,000009953578609,JR HOLLAND FOODSERVICE,5499,Catering costs - provisions,28.89,0.00,28.89
Regeneration Economy and Growth,Corporate Property and Land,011275,Catering -Durham Leadership Centre,Supplies and Services,324117,Provisions E324,02-Mar-2022,000009953578611,JR HOLLAND FOODSERVICE,5499,Catering costs - provisions,72.11,0.00,72.11
Regeneration Economy and Growth,Corporate Property and Land,030691,Catering - Durham Dales Centre,Supplies and Services,324117,Provisions E324,02-Mar-2022,000009953578613,JR HOLLAND FOODSERVICE,5499,Catering costs - provisions,161.90,0.00,161.90
Adult and Health Services,Head of Adults,055643,Hawthorn House LD Respite Unit,Supplies and Services,324117,Provisions E324,02-Mar-2022,000009953578615,JR HOLLAND FOODSERVICE,5499,Catering costs - provisions,11.50,0.00,11.50
Regeneration Economy and Growth,Corporate Property and Land,021234,Catering - Locomotion,Supplies and Services,324117,Provisions E324,02-Mar-2022,000009953578621,JR HOLLAND FOODSERVICE,5499,Catering costs - provisions,8.40,0.00,8.40
Regeneration Economy and Growth,Corporate Property and Land,021234,Catering - Locomotion,Supplies and Services,324117,Provisions E324,02-Mar-2022,000009953578623,JR HOLLAND FOODSERVICE,5499,Catering costs - provisions,40.20,0.00,40.20
Regeneration Economy and Growth,Corporate Property and Land,021234,Catering - Locomotion,Supplies and Services,324117,Provisions E324,02-Mar-2022,000009953578625,JR HOLLAND FOODSERVICE,5499,Catering costs - provisions,2.40,0.00,2.40
Regeneration Economy and Growth,Corporate Property and Land,021234,Catering - Locomotion,Supplies and Services,324117,Provisions E324,02-Mar-2022,000009953578627,JR HOLLAND FOODSERVICE,5499,Catering costs - provisions,68.19,0.00,68.19
Regeneration Economy and Growth,Corporate Property and Land,021234,Catering - Locomotion,Supplies and Services,324117,Provisions E324,02-Mar-2022,000009953578629,JR HOLLAND FOODSERVICE,5499,Catering costs - provisions,1.70,0.00,1.70
Regeneration Economy and Growth,Corporate Property and Land,021234,Catering - Locomotion,Supplies and Services,324117,Provisions E324,02-Mar-2022,000009953578631,JR HOLLAND FOODSERVICE,5499,Catering costs - provisions,28.56,0.00,28.56
Regeneration Economy and Growth,Culture Sport and Tourism,011263,Louisa Centre 011263,Supplies and Services,324117,Provisions E324,02-Mar-2022,000009953578633,JR HOLLAND FOODSERVICE,5499,Catering costs - provisions,33.14,0.00,33.14
Regeneration Economy and Growth,Culture Sport and Tourism,011263,Louisa Centre 011263,Supplies and Services,324117,Provisions E324,02-Mar-2022,000009953578635,JR HOLLAND FOODSERVICE,5499,Catering costs - provisions,2.60,0.00,2.60
Regeneration Economy and Growth,Culture Sport and Tourism,054812,Gala Theatre - Catering etc,Supplies and Services,384999,Miscellaneous Expenses,02-Mar-2022,000009953578637,G M PACKAGING UK LTD,5046,Other expenses,616.13,0.00,616.13
Regeneration Economy and Growth,Culture Sport and Tourism,054812,Gala Theatre - Catering etc,Supplies and Services,324117,Provisions E324,02-Mar-2022,000009953578639,JR HOLLAND FOODSERVICE,5499,Catering costs - provisions,9.99,0.00,9.99
Regeneration Economy and Growth,Business Durham CL0850,030689,Inward Investment and Aftercare,Supplies and Services,342222,Computers and Communications,02-Mar-2022,000009958791259,FASTHOSTS,4816,Comp hardware purch-network servers,63.00,0.00,63.00
Regeneration Economy and Growth,Business Durham CL0850,030689,Inward Investment and Aftercare,Supplies and Services,342222,Computers and Communications,02-Mar-2022,000009958791263,FASTHOSTS,4816,Comp hardware purch-network servers,75.06,0.00,75.06
Regeneration Economy and Growth,Development and Housing,031623,Rough Sleeping,Supplies and Services,328041,Clothing uniforms and laundry E328,02-Mar-2022,000009958791351,CLEARANCE BARGAINS,5310,Clothing uniforms and laundry,109.99,0.00,109.99
Regeneration Economy and Growth,Corporate Property and Land,021242,Catering - County Hall,Supplies and Services,324117,Provisions E324,02-Mar-2022,000009958791395,SAINSBURYS S/MKTS,5411,Catering costs - provisions,16.80,0.00,16.80
Children and Young Peoples Services,Head of Education and Skills,071732,Dean Bank Childcare,Supplies and Services,324117,Provisions E324,02-Mar-2022,000009958791439,SAINSBURYS S/MKTS,5411,Catering costs - provisions,14.17,0.00,14.17
Children and Young Peoples Services,Head of Education and Skills,071732,Dean Bank Childcare,Supplies and Services,304403,Equipment and Materials,02-Mar-2022,000009958791443,AMZNMKTPLACE AMAZON.CO,5999,Other consumables,28.36,0.00,28.36
Children and Young Peoples Services,Head of Early Help Inclusion & Vulnerable Children.,085954,Walworth,Transfer Payments,515002,Social Services Clients,02-Mar-2022,000009958791483,JD SPORTS INTERNET,5941,Pocket money,38.99,0.00,38.99
Children and Young Peoples Services,Head of Early Help Inclusion & Vulnerable Children.,085954,Walworth,Supplies and Services,308011,Furniture,02-Mar-2022,000009958791487,Dunelm,5712,Furniture repair and replacement,324.00,0.00,324.00
Children and Young Peoples Services,Head of Early Help Inclusion & Vulnerable Children.,088105,W/Close and Willington Family Centre,Supplies and Services,384302,Miscellaneous Expenses,02-Mar-2022,000009958791573,WM MORRISONS STORE,5411,Activity expenses,44.15,0.00,44.15
Children and Young Peoples Services,Head of Childrens Social Care,085364,Children Looked After Team 1,Supplies and Services,338045,Services,02-Mar-2022,000009958791579,GEN REGISTER OFFICE,9399,Legal expenses 338045,22.00,0.00,22.00
Regeneration Economy and Growth,Development and Housing,031030,Development Management 031030,Supplies and Services,338048,Services,02-Mar-2022,000009958791683,ROYAL COURTS OF JUSTIC,9222,Court costs 338048,275.00,0.00,275.00
Children and Young Peoples Services,Head of Childrens Social Care,085351,Framwellgate Moor CU,Supplies and Services,328041,Clothing uniforms and laundry E328,02-Mar-2022,000009958791711,PRIMARK 670 GATESHEAD,5651,Clothing uniforms and laundry,48.00,0.00,48.00
Children and Young Peoples Services,Head of Childrens Social Care,085332,Middlestone Moor CU,Supplies and Services,344033,Telephones,02-Mar-2022,000009958791787,THREE,4814,Telephones general-all costs,10.00,0.00,10.00
Resources BK0010,Procurement Sales & Business Services,065503,Business Support - Spectrum,Supplies and Services,304403,Equipment and Materials,03-Mar-2022,000009953521113,AMZNMktplace,5999,Other consumables,44.99,7.50,37.49
Resources BK0010,Procurement Sales & Business Services,065500,Business Support - Management,Supplies and Services,342033,Computers and Communications,03-Mar-2022,000009953521351,Envato,7372,Computer hardware,4.01,0.00,4.01
Children and Young Peoples Services,Head of Childrens Social Care,085611,Families First Stanley,Supplies and Services,352001,Conference Expenses,03-Mar-2022,000009958791271,EB CREATIVE LIFE STOR,7399,Conferencesseminars fees etc,30.00,0.00,30.00
Children and Young Peoples Services,Head of Childrens Social Care,085404,COMF bid Targeted interventions for CYPS,Supplies and Services,384999,Miscellaneous Expenses,03-Mar-2022,000009958791281,Amazon.co.uk 2X9DC04U4,5969,Other expenses,80.91,0.00,80.91
Children and Young Peoples Services,Head of Childrens Social Care,085404,COMF bid Targeted interventions for CYPS,Supplies and Services,304403,Equipment and Materials,03-Mar-2022,000009958791283,AMZNMktplace,5999,Other consumables,46.80,0.00,46.80
Children and Young Peoples Services,Head of Childrens Social Care,085404,COMF bid Targeted interventions for CYPS,Supplies and Services,304403,Equipment and Materials,03-Mar-2022,000009958791285,AMZNMktplace,5999,Other consumables,265.20,0.00,265.20
Resources BK0010,Legal & Democratic Services,067910,Democratic Representation 067910,Supplies and Services,304403,Equipment and Materials,03-Mar-2022,000009958791287,AMZNMktplace,5999,Other consumables,27.98,4.66,23.32
Resources BK0010,Corporate Finance & Commercial Services,065109,Pensions 065109,Supplies and Services,304403,Equipment and Materials,03-Mar-2022,000009958791289,AMZNMKTPLACE AMAZON.CO,5999,Other consumables,54.53,9.09,45.44
Resources BK0010,Digital and Customer Services,065351,Microsoft Office 365,Supplies and Services,384999,Miscellaneous Expenses,03-Mar-2022,000009958791291,Amazon.co.uk 2X02Q2454,5969,Other expenses,67.46,11.24,56.22
Children and Young Peoples Services,Head of Childrens Social Care,085404,COMF bid Targeted interventions for CYPS,Supplies and Services,384999,Miscellaneous Expenses,03-Mar-2022,000009958791293,Amazon.co.uk 2X3JT14O4,5969,Other expenses,26.97,0.00,26.97
Children and Young Peoples Services,Head of Childrens Social Care,085404,COMF bid Targeted interventions for CYPS,Supplies and Services,384999,Miscellaneous Expenses,03-Mar-2022,000009958791295,Amazon.co.uk 2X6KW44H4,5969,Other expenses,53.94,0.00,53.94
Children and Young Peoples Services,Head of Childrens Social Care,085404,COMF bid Targeted interventions for CYPS,Supplies and Services,384999,Miscellaneous Expenses,03-Mar-2022,000009958791297,Amazon.co.uk 2X72W24X4,5969,Other expenses,32.98,5.50,27.48
Children and Young Peoples Services,Head of Childrens Social Care,085404,COMF bid Targeted interventions for CYPS,Supplies and Services,384999,Miscellaneous Expenses,03-Mar-2022,000009958791299,Amazon.co.uk 2X8K394L4,5969,Other expenses,26.97,0.00,26.97
Neighbourhoods and Climate Change,Technical Services CM0300,018700,Highways Services - Management and Administration,Supplies and Services,304403,Equipment and Materials,03-Mar-2022,000009958791301,AMZNMktplace,5999,Other consumables,6.29,1.05,5.24
Resources BK0010,Digital and Customer Services,065481,Technical Services 065481,Employees,040149,Recruitment Instruction and Training,03-Mar-2022,000009958791303,Pluralsight,8299,Training-all costs,-196.54,0.00,-196.54
Regeneration Economy and Growth,Culture Sport and Tourism,054300,Blackhall Library,Supplies and Services,304252,Equipment and Materials,03-Mar-2022,000009958791313,AMZNMktplace,5999,Equipment-repairsserviceinsurance,31.95,5.33,26.62
Regeneration Economy and Growth,Culture Sport and Tourism,054300,Blackhall Library,Supplies and Services,304252,Equipment and Materials,03-Mar-2022,000009958791315,AMZNMktplace,5999,Equipment-repairsserviceinsurance,75.90,12.65,63.25
Regeneration Economy and Growth,Culture Sport and Tourism,054300,Blackhall Library,Supplies and Services,304252,Equipment and Materials,03-Mar-2022,000009958791315 - 1,AMZNMktplace,5999,Equipment-repairsserviceinsurance,0.03,,0.03
Neighbourhoods and Climate Change,Environmental Services,010367,C&G - South Grounds Maintenance,Supplies and Services,304221,Equipment and Materials,03-Mar-2022,000009958791367,CARRS BILLINGTON SPENN,5599,Direct materials,120.24,20.04,100.20
Children and Young Peoples Services,Head of Early Help Inclusion & Vulnerable Children.,071489,Winter Family Fund,Supplies and Services,384700,Miscellaneous Expenses,03-Mar-2022,000009958791369,FRANKS THE FLOORING ST,5713,Miscellaneous grants,500.00,0.00,500.00
Regeneration Economy and Growth,Development and Housing,030544,Rural Employability - Client Engagement,Supplies and Services,308011,Furniture,03-Mar-2022,000009958791371,ALBANY OFFICE,5712,Furniture repair and replacement,92.40,0.00,92.40
Children and Young Peoples Services,Head of Childrens Social Care,085347,Solo Home The Manse,Transport,235057,Public Transport,03-Mar-2022,000009958791373,WWW.GONORTHEAST.CO.UK,4111,Staff travelling,17.00,0.00,17.00
Children and Young Peoples Services,Head of Childrens Social Care,085511,Emergency Duty Team,Supplies and Services,352001,Conference Expenses,03-Mar-2022,000009958791397,DERWENT MANOR HOTEL,7011,Conferencesseminars fees etc,87.00,0.00,87.00
Children and Young Peoples Services,Head of Education and Skills,071732,Dean Bank Childcare,Supplies and Services,324117,Provisions E324,03-Mar-2022,000009958791441,B&M 035 - SHILDON,5399,Catering costs - provisions,26.14,0.00,26.14
Regeneration Economy and Growth,Culture Sport and Tourism,054967,Theatre - Technical Staffing,Supplies and Services,304403,Equipment and Materials,03-Mar-2022,000009958791445,AMZNMktplace,5999,Other consumables,14.99,2.50,12.49
Regeneration Economy and Growth,Culture Sport and Tourism,054967,Theatre - Technical Staffing,Supplies and Services,304403,Equipment and Materials,03-Mar-2022,000009958791447,AMZNMktplace,5999,Other consumables,35.98,6.00,29.98
Children and Young Peoples Services,Head of Childrens Social Care,085341,High Etherley Satelite Home,Supplies and Services,348037,Subsistence E348,03-Mar-2022,000009958791455,KFC PETERLEE,5814,Subsistence,14.48,0.00,14.48
Regeneration Economy and Growth,Business Durham CL0850,030690,Durham Dales Centre - Tourist Information Centre,Supplies and Services,328041,Clothing uniforms and laundry E328,03-Mar-2022,000009958791461,ZELLY UK TRADING LIMIT,5137,Clothing uniforms and laundry,299.28,0.00,299.28
Regeneration Economy and Growth,Business Durham CL0850,030690,Durham Dales Centre - Tourist Information Centre,Supplies and Services,328041,Clothing uniforms and laundry E328,03-Mar-2022,000009958791463,GOOSE ISLAND,7296,Clothing uniforms and laundry,351.24,0.00,351.24
Neighbourhoods and Climate Change,Environmental Services,010301,C&G - North Grounds Maintenance,Supplies and Services,304221,Equipment and Materials,03-Mar-2022,000009958791469,AZTEC CHEMICALS LTD,5169,Direct materials,443.52,73.92,369.60
Neighbourhoods and Climate Change,Environmental Services,010301,C&G - North Grounds Maintenance,Supplies and Services,304221,Equipment and Materials,03-Mar-2022,000009958791471,AZTEC CHEMICALS LTD,5169,Direct materials,477.78,79.63,398.15
Children and Young Peoples Services,Head of Early Help Inclusion & Vulnerable Children.,085965,Barnard,Supplies and Services,384302,Miscellaneous Expenses,03-Mar-2022,000009958791485,AMZNMktplace,5999,Activity expenses,90.36,0.00,90.36
Resources BK0010,People & Talent Management,010984,Training and Development,Employees,040149,Recruitment Instruction and Training,03-Mar-2022,000009958791497,CHARTEREDIN,8699,Training-all costs,59.75,0.00,59.75
Children and Young Peoples Services,Head of Early Help Inclusion & Vulnerable Children.,088106,Ferryhill & N. Aycliffe Intensive Family Support Team,Supplies and Services,304259,Equipment and Materials,03-Mar-2022,000009958791535,Amazon.co.uk 2X0RM5F14,5969,Equipment-purchase and rental,25.99,4.33,21.66
Children and Young Peoples Services,Head of Early Help Inclusion & Vulnerable Children.,088107,Wheatley Hill & N. Aycliffe Family Centre,Supplies and Services,324117,Provisions E324,03-Mar-2022,000009958791537,WALKERS BUTCHERS & BAK,5499,Catering costs - provisions,27.52,0.00,27.52
Children and Young Peoples Services,Head of Early Help Inclusion & Vulnerable Children.,088106,Ferryhill & N. Aycliffe Intensive Family Support Team,Supplies and Services,304259,Equipment and Materials,03-Mar-2022,000009958791539,AMZNMKTPLACE AMAZON.CO,5999,Equipment-purchase and rental,43.20,7.20,36.00
Children and Young Peoples Services,Head of Early Help Inclusion & Vulnerable Children.,088106,Ferryhill & N. Aycliffe Intensive Family Support Team,Supplies and Services,304259,Equipment and Materials,03-Mar-2022,000009958791539 - 1,AMZNMKTPLACE AMAZON.CO,5999,Equipment-purchase and rental,0.40,,0.40
Children and Young Peoples Services,Head of Early Help Inclusion & Vulnerable Children.,088106,Ferryhill & N. Aycliffe Intensive Family Support Team,Supplies and Services,304259,Equipment and Materials,03-Mar-2022,000009958791541,AMZNMKTPLACE AMAZON.CO,5999,Equipment-purchase and rental,11.99,2.00,9.99
Children and Young Peoples Services,Head of Childrens Social Care,085331,New Lea Childrens Home,Supplies and Services,324117,Provisions E324,03-Mar-2022,000009958791543,LIDL GB SPENNYMOOR,5411,Catering costs - provisions,41.43,0.00,41.43
Resources BK0010,Legal & Democratic Services,060131,County Records,Supplies and Services,304221,Equipment and Materials,03-Mar-2022,000009958791553,UK WATER FILTERS LTD,5085,Direct materials,13.95,0.00,13.95
Children and Young Peoples Services,Head of Childrens Social Care,085352,New Childrens Home (previously Tow Law),Supplies and Services,372009,Subscriptions E372,03-Mar-2022,000009958791565,Netflix.com,4899,Subscriptions 372009,13.99,0.00,13.99
Children and Young Peoples Services,Head of Childrens Social Care,085365,Children Looked After Team 2,Supplies and Services,340001,Postages E340,03-Mar-2022,000009958791575,POST OFFICE COUNTER,9402,Postages,2.69,0.00,2.69
Children and Young Peoples Services,Head of Childrens Social Care,085364,Children Looked After Team 1,Supplies and Services,340001,Postages E340,03-Mar-2022,000009958791577,POST OFFICE COUNTER,9402,Postages,4.50,0.00,4.50
Children and Young Peoples Services,Head of Early Help Inclusion & Vulnerable Children.,088105,W/Close and Willington Family Centre,Supplies and Services,384302,Miscellaneous Expenses,03-Mar-2022,000009958791581,ASDA GROCERIES ONLINE,5411,Activity expenses,66.07,0.00,66.07
Children and Young Peoples Services,Head of Early Help Inclusion & Vulnerable Children.,088105,W/Close and Willington Family Centre,Supplies and Services,384302,Miscellaneous Expenses,03-Mar-2022,000009958791583,ASDA GROCERIES ONLINE,5411,Activity expenses,-1.50,0.00,-1.50
Resources BK0010,Procurement Sales & Business Services,065503,Business Support - Spectrum,Supplies and Services,304403,Equipment and Materials,03-Mar-2022,000009958791631,AMZNMktplace,5999,Other consumables,6.99,1.17,5.82
Children and Young Peoples Services,Head of Childrens Social Care,085363,Childrens Permanence Team,Supplies and Services,338045,Services,03-Mar-2022,000009958791639,HM PASSPORT OFFICE,9399,Legal expenses 338045,49.00,0.00,49.00
Children and Young Peoples Services,Head of Childrens Social Care,085363,Childrens Permanence Team,Supplies and Services,338045,Services,03-Mar-2022,000009958791641,HM PASSPORT OFFICE,9399,Legal expenses 338045,49.00,0.00,49.00
Children and Young Peoples Services,Head of Early Help Inclusion & Vulnerable Children.,088115,Young Parents Programme 088115,Supplies and Services,324117,Provisions E324,03-Mar-2022,000009958791643,ASDA GROCERIES ONLINE,5411,Catering costs - provisions,42.19,0.00,42.19
Children and Young Peoples Services,Head of Early Help Inclusion & Vulnerable Children.,085957,Secure Management,Supplies and Services,384302,Miscellaneous Expenses,03-Mar-2022,000009958791665,Amazon MP3,5735,Activity expenses,0.98,0.00,0.98
Children and Young Peoples Services,Head of Early Help Inclusion & Vulnerable Children.,085956,Lumley,Supplies and Services,304259,Equipment and Materials,03-Mar-2022,000009958791667,AMZN Mktp UK 2X9BJ84V4,5942,Equipment-purchase and rental,84.84,0.00,84.84
Children and Young Peoples Services,Head of Early Help Inclusion & Vulnerable Children.,085957,Secure Management,Supplies and Services,304259,Equipment and Materials,03-Mar-2022,000009958791669,Amazon.co.uk 2X13Y9FR4,5969,Equipment-purchase and rental,79.92,13.36,66.56
Children and Young Peoples Services,Head of Early Help Inclusion & Vulnerable Children.,085956,Lumley,Supplies and Services,304259,Equipment and Materials,03-Mar-2022,000009958791671,AMZN Mktp UK 2X52H14X4,5942,Equipment-purchase and rental,84.84,0.00,84.84
Children and Young Peoples Services,Head of Early Help Inclusion & Vulnerable Children.,085956,Lumley,Supplies and Services,304259,Equipment and Materials,03-Mar-2022,000009958791673,AMZN Mktp UK 2X9SL44O4,5942,Equipment-purchase and rental,84.84,0.00,84.84
Children and Young Peoples Services,Head of Early Help Inclusion & Vulnerable Children.,085956,Lumley,Supplies and Services,304259,Equipment and Materials,03-Mar-2022,000009958791675,AMZNMktplace,5999,Equipment-purchase and rental,42.68,0.00,42.68
Children and Young Peoples Services,Head of Early Help Inclusion & Vulnerable Children.,085956,Lumley,Supplies and Services,304259,Equipment and Materials,03-Mar-2022,000009958791677,AMZNMktplace,5999,Equipment-purchase and rental,42.68,0.00,42.68
Children and Young Peoples Services,Head of Early Help Inclusion & Vulnerable Children.,085957,Secure Management,Supplies and Services,304405,Equipment and Materials,03-Mar-2022,000009958791679,AMZNMktplace,5999,Medical supplies,53.99,9.00,44.99
Resources BK0010,Procurement Sales & Business Services,065503,Business Support - Spectrum,Supplies and Services,324117,Provisions E324,03-Mar-2022,000009958791685,ASDA STORES LTD,5411,Catering costs - provisions,16.65,0.00,16.65
Children and Young Peoples Services,Head of Early Help Inclusion & Vulnerable Children.,085801,CDYJS - Support,Supplies and Services,328041,Clothing uniforms and laundry E328,03-Mar-2022,000009958791701,ONE4ALL,5311,Clothing uniforms and laundry,20.99,0.00,20.99
Children and Young Peoples Services,Head of Early Help Inclusion & Vulnerable Children.,085801,CDYJS - Support,Supplies and Services,328041,Clothing uniforms and laundry E328,03-Mar-2022,000009958791703,ONE4ALL,5311,Clothing uniforms and laundry,20.99,0.00,20.99
Children and Young Peoples Services,Head of Childrens Social Care,085351,Framwellgate Moor CU,Employees,040149,Recruitment Instruction and Training,03-Mar-2022,000009958791713,MILL HOUSE RIDING CENT,8299,Training-all costs,30.00,0.00,30.00
Regeneration Economy and Growth,Culture Sport and Tourism,054233,Bishop Auckland Town Hall Library,Supplies and Services,324117,Provisions E324,03-Mar-2022,000009958791767,WILKO RETAIL LIMITED,5399,Catering costs - provisions,4.00,0.00,4.00
Regeneration Economy and Growth,Culture Sport and Tourism,054233,Bishop Auckland Town Hall Library,Supplies and Services,324117,Provisions E324,03-Mar-2022,000009958791769,HERON FOODS,5411,Catering costs - provisions,7.39,0.00,7.39
Children and Young Peoples Services,Head of Childrens Social Care,085331,New Lea Childrens Home,Supplies and Services,332047,Printing Stationery and Gen Off Exps,03-Mar-2022,000009958791785,CINEWORLD,7832,Stationery,21.48,0.00,21.48
Children and Young Peoples Services,Head of Childrens Social Care,085332,Middlestone Moor CU,Supplies and Services,328041,Clothing uniforms and laundry E328,03-Mar-2022,000009958791789,MATALAN,5691,Clothing uniforms and laundry,11.00,0.00,11.00
Children and Young Peoples Services,Head of Childrens Social Care,085332,Middlestone Moor CU,Supplies and Services,324117,Provisions E324,03-Mar-2022,000009958791791,ASDA STORE 4731,5411,Catering costs - provisions,12.30,0.00,12.30
Resources BK0010,Procurement Sales & Business Services,065500,Business Support - Management,Supplies and Services,336005,Advertising E336,03-Mar-2022,000009958791795,LINKEDIN-738 4506783,7311,Advertising other than for staff,112.98,0.00,112.98
Children and Young Peoples Services,Head of Early Help Inclusion & Vulnerable Children.,088107,Wheatley Hill & N. Aycliffe Family Centre,Supplies and Services,384302,Miscellaneous Expenses,03-Mar-2022,000009958791821,AMZN Mktp UK 2X3DO6484,5942,Activity expenses,11.18,1.86,9.32
Children and Young Peoples Services,Head of Early Help Inclusion & Vulnerable Children.,088112,Seaham & Central Durham Intensive Family Support Team,Supplies and Services,384302,Miscellaneous Expenses,03-Mar-2022,000009958791823,AMZNMktplace,5999,Activity expenses,18.60,3.10,15.50
Children and Young Peoples Services,Head of Early Help Inclusion & Vulnerable Children.,088112,Seaham & Central Durham Intensive Family Support Team,Supplies and Services,384302,Miscellaneous Expenses,03-Mar-2022,000009958791823 - 1,AMZNMktplace,5999,Activity expenses,0.40,,0.40
Children and Young Peoples Services,Head of Early Help Inclusion & Vulnerable Children.,088112,Seaham & Central Durham Intensive Family Support Team,Supplies and Services,384302,Miscellaneous Expenses,03-Mar-2022,000009958791825,AMZNMktplace,5999,Activity expenses,21.18,3.53,17.65
Children and Young Peoples Services,Head of Early Help Inclusion & Vulnerable Children.,088112,Seaham & Central Durham Intensive Family Support Team,Supplies and Services,384302,Miscellaneous Expenses,03-Mar-2022,000009958791825 - 1,AMZNMktplace,5999,Activity expenses,16.04,,16.04
Children and Young Peoples Services,Head of Early Help Inclusion & Vulnerable Children.,088112,Seaham & Central Durham Intensive Family Support Team,Supplies and Services,384302,Miscellaneous Expenses,03-Mar-2022,000009958791827,AMZNMktplace,5999,Activity expenses,9.96,1.66,8.30
Children and Young Peoples Services,Head of Early Help Inclusion & Vulnerable Children.,088112,Seaham & Central Durham Intensive Family Support Team,Supplies and Services,384302,Miscellaneous Expenses,03-Mar-2022,000009958791829,AMZNMktplace,5999,Activity expenses,35.60,5.94,29.66
Children and Young Peoples Services,Head of Early Help Inclusion & Vulnerable Children.,088112,Seaham & Central Durham Intensive Family Support Team,Supplies and Services,384302,Miscellaneous Expenses,03-Mar-2022,000009958791831,AMZNMktplace,5999,Activity expenses,76.44,12.74,63.70
Children and Young Peoples Services,Head of Early Help Inclusion & Vulnerable Children.,088112,Seaham & Central Durham Intensive Family Support Team,Supplies and Services,384302,Miscellaneous Expenses,03-Mar-2022,000009958791831 - 1,AMZNMktplace,5999,Activity expenses,66.39,,66.39
Regeneration Economy and Growth,Corporate Property and Land,011296,Catering - Crimdon Dene Hub,Supplies and Services,324117,Provisions E324,03-Mar-2022,000009958887771,JR HOLLAND FOODSERVICE,5499,Catering costs - provisions,3.90,0.00,3.90
Regeneration Economy and Growth,Corporate Property and Land,011296,Catering - Crimdon Dene Hub,Supplies and Services,324117,Provisions E324,03-Mar-2022,000009958887773,JR HOLLAND FOODSERVICE,5499,Catering costs - provisions,102.33,0.00,102.33
Regeneration Economy and Growth,Corporate Property and Land,011296,Catering - Crimdon Dene Hub,Supplies and Services,324117,Provisions E324,03-Mar-2022,000009958887775,JR HOLLAND FOODSERVICE,5499,Catering costs - provisions,41.56,0.00,41.56
Regeneration Economy and Growth,Corporate Property and Land,011296,Catering - Crimdon Dene Hub,Supplies and Services,324117,Provisions E324,03-Mar-2022,000009958887777,JR HOLLAND FOODSERVICE,5499,Catering costs - provisions,65.49,0.00,65.49
Regeneration Economy and Growth,Corporate Property and Land,011296,Catering - Crimdon Dene Hub,Supplies and Services,324117,Provisions E324,03-Mar-2022,000009958887779,JR HOLLAND FOODSERVICE,5499,Catering costs - provisions,61.32,0.00,61.32
Regeneration Economy and Growth,Corporate Property and Land,011296,Catering - Crimdon Dene Hub,Supplies and Services,324117,Provisions E324,03-Mar-2022,000009958887781,JR HOLLAND FOODSERVICE,5499,Catering costs - provisions,82.20,0.00,82.20
Regeneration Economy and Growth,Corporate Property and Land,011296,Catering - Crimdon Dene Hub,Supplies and Services,324117,Provisions E324,03-Mar-2022,000009958887783,JR HOLLAND FOODSERVICE,5499,Catering costs - provisions,156.32,0.00,156.32
Regeneration Economy and Growth,Corporate Property and Land,011296,Catering - Crimdon Dene Hub,Supplies and Services,324117,Provisions E324,03-Mar-2022,000009958887785,JR HOLLAND FOODSERVICE,5499,Catering costs - provisions,53.46,0.00,53.46
Regeneration Economy and Growth,Corporate Property and Land,011296,Catering - Crimdon Dene Hub,Supplies and Services,324117,Provisions E324,03-Mar-2022,000009958887787,JR HOLLAND FOODSERVICE,5499,Catering costs - provisions,141.59,0.00,141.59
Regeneration Economy and Growth,Corporate Property and Land,011296,Catering - Crimdon Dene Hub,Supplies and Services,324117,Provisions E324,03-Mar-2022,000009958887789,JR HOLLAND FOODSERVICE,5499,Catering costs - provisions,76.61,0.00,76.61
Regeneration Economy and Growth,Corporate Property and Land,011296,Catering - Crimdon Dene Hub,Supplies and Services,324117,Provisions E324,03-Mar-2022,000009958887791,JR HOLLAND FOODSERVICE,5499,Catering costs - provisions,50.98,0.00,50.98
Regeneration Economy and Growth,Corporate Property and Land,011296,Catering - Crimdon Dene Hub,Supplies and Services,324117,Provisions E324,03-Mar-2022,000009958887793,JR HOLLAND FOODSERVICE,5499,Catering costs - provisions,68.15,0.00,68.15
Regeneration Economy and Growth,Corporate Property and Land,011296,Catering - Crimdon Dene Hub,Supplies and Services,324117,Provisions E324,03-Mar-2022,000009958887795,JR HOLLAND FOODSERVICE,5499,Catering costs - provisions,-6.49,0.00,-6.49
Regeneration Economy and Growth,Culture Sport and Tourism,054235,Bishop Auckland Town Hall Cafe,Supplies and Services,324117,Provisions E324,03-Mar-2022,000009958887797,JR HOLLAND FOODSERVICE,5499,Catering costs - provisions,395.57,0.00,395.57
Regeneration Economy and Growth,Culture Sport and Tourism,054235,Bishop Auckland Town Hall Cafe,Supplies and Services,324117,Provisions E324,03-Mar-2022,000009958887799,JR HOLLAND FOODSERVICE,5499,Catering costs - provisions,3.25,0.00,3.25
Neighbourhoods and Climate Change,Environmental Services,011060,C&G - Hardwick Park Catering,Supplies and Services,324117,Provisions E324,03-Mar-2022,000009958887801,JR HOLLAND FOODSERVICE,5499,Catering costs - provisions,90.33,0.00,90.33
Neighbourhoods and Climate Change,Environmental Services,011060,C&G - Hardwick Park Catering,Supplies and Services,324117,Provisions E324,03-Mar-2022,000009958887803,JR HOLLAND FOODSERVICE,5499,Catering costs - provisions,27.60,0.00,27.60
Regeneration Economy and Growth,Corporate Property and Land,021234,Catering - Locomotion,Supplies and Services,384999,Miscellaneous Expenses,03-Mar-2022,000009958887805,ON A ROLL SANDWICH COM,5199,Other expenses,447.02,0.00,447.02
Regeneration Economy and Growth,Culture Sport and Tourism,011263,Louisa Centre 011263,Supplies and Services,324117,Provisions E324,03-Mar-2022,000009958887807,JR HOLLAND FOODSERVICE,5499,Catering costs - provisions,46.88,0.00,46.88
Regeneration Economy and Growth,Corporate Property and Land,021242,Catering - County Hall,Supplies and Services,384999,Miscellaneous Expenses,03-Mar-2022,000009958887809,ON A ROLL SANDWICH COM,5199,Other expenses,192.01,0.00,192.01
Regeneration Economy and Growth,Corporate Property and Land,021242,Catering - County Hall,Supplies and Services,324117,Provisions E324,03-Mar-2022,000009958887811,JR HOLLAND FOODSERVICE,5499,Catering costs - provisions,96.46,0.00,96.46
Children and Young Peoples Services,Head of Education and Skills,071801,Selby Cottage Childcare Centre,Supplies and Services,324117,Provisions E324,03-Mar-2022,000009964281395,WM MORRISONS STORE,5411,Catering costs - provisions,32.22,0.00,32.22
Resources BK0010,Procurement Sales & Business Services,065506,Business Support - Green Lane,Supplies and Services,344033,Telephones,03-Mar-2022,000009964281397,BIRMINGHAM TELECOMMUNI,4812,Telephones general-all costs,79.08,0.00,79.08
Regeneration Economy and Growth,Culture Sport and Tourism,030705,Visit County Durham 030705,Supplies and Services,304259,Equipment and Materials,03-Mar-2022,000009964281431,FASTHOSTS,4816,Equipment-purchase and rental,7.54,1.26,6.28
Children and Young Peoples Services,Head of Early Help Inclusion & Vulnerable Children.,085965,Barnard,Supplies and Services,384302,Miscellaneous Expenses,03-Mar-2022,000009964281697,ARGOS LTD,5310,Activity expenses,62.95,0.00,62.95
Children and Young Peoples Services,Head of Education and Skills,075021,DurhamWorks Progression and Learning,Supplies and Services,304259,Equipment and Materials,03-Mar-2022,000009964281733,WWW.DURHAM.GOV.UK,9399,Equipment-purchase and rental,11.00,0.00,11.00
Children and Young Peoples Services,Head of Early Help Inclusion & Vulnerable Children.,088106,Ferryhill & N. Aycliffe Intensive Family Support Team,Supplies and Services,338045,Services,03-Mar-2022,000009964281753,Durham County CNCL,9399,Legal expenses 338045,33.00,0.00,33.00
Children and Young Peoples Services,Head of Childrens Social Care,085331,New Lea Childrens Home,Supplies and Services,308011,Furniture,03-Mar-2022,000009964281767,Dunelm,5712,Furniture repair and replacement,121.00,0.00,121.00
Children and Young Peoples Services,Head of Childrens Social Care,085364,Children Looked After Team 1,Supplies and Services,338045,Services,03-Mar-2022,000009964281837,GEN REGISTER OFFICE,9399,Legal expenses 338045,11.00,0.00,11.00
Neighbourhoods and Climate Change,Environmental Services,010367,C&G - South Grounds Maintenance,Supplies and Services,304221,Equipment and Materials,03-Mar-2022,000009964281859,BREWERS,5211,Direct materials,33.29,0.00,33.29
Neighbourhoods and Climate Change,Environmental Services,010367,C&G - South Grounds Maintenance,Supplies and Services,304221,Equipment and Materials,03-Mar-2022,000009964281861,SCREWFIX DIR LTD,5211,Direct materials,14.38,0.00,14.38
Children and Young Peoples Services,Head of Childrens Social Care,085333,Coxhoe Satelite Home,Supplies and Services,324117,Provisions E324,03-Mar-2022,000009964281893,CO-OP GROUP 310016,5411,Catering costs - provisions,4.50,0.00,4.50
Regeneration Economy and Growth,Culture Sport and Tourism,010608,Teesdale Leisure Centre,Supplies and Services,304259,Equipment and Materials,03-Mar-2022,000009964281927,AMZNMKTPLACE AMAZON.CO,5999,Equipment-purchase and rental,28.99,4.83,24.16
Regeneration Economy and Growth,Culture Sport and Tourism,010605,Woodhouse Close Leisure Complex,Supplies and Services,304259,Equipment and Materials,03-Mar-2022,000009964281929,AMZNMKTPLACE AMAZON.CO,5999,Equipment-purchase and rental,28.99,4.83,24.16
Regeneration Economy and Growth,Culture Sport and Tourism,011263,Louisa Centre 011263,Supplies and Services,304221,Equipment and Materials,03-Mar-2022,000009964281953,WWW.SCREWFIX.COM,5211,Direct materials,48.18,0.00,48.18
Children and Young Peoples Services,Head of Childrens Social Care,085351,Framwellgate Moor CU,Supplies and Services,328041,Clothing uniforms and laundry E328,03-Mar-2022,000009964282099,Argos Durham Arnis,5310,Clothing uniforms and laundry,329.99,0.00,329.99
Children and Young Peoples Services,Head of Childrens Social Care,085351,Framwellgate Moor CU,Supplies and Services,324117,Provisions E324,03-Mar-2022,000009964282101,SAINSBURYS S/MKTS,5411,Catering costs - provisions,56.00,0.00,56.00
Children and Young Peoples Services,Head of Childrens Social Care,085351,Framwellgate Moor CU,Supplies and Services,304259,Equipment and Materials,03-Mar-2022,000009964282103,J D SPORTS,5941,Equipment-purchase and rental,105.10,0.00,105.10
Children and Young Peoples Services,Head of Early Help Inclusion & Vulnerable Children.,088107,Wheatley Hill & N. Aycliffe Family Centre,Supplies and Services,384302,Miscellaneous Expenses,03-Mar-2022,000009964282259,WWW.THEWORKS.CO.UK,5310,Activity expenses,146.50,0.00,146.50
Neighbourhoods and Climate Change,Environmental Services,011060,C&G - Hardwick Park Catering,Supplies and Services,324117,Provisions E324,03-Mar-2022,000009964375943,BATLEYS PERTH,5300,Catering costs - provisions,121.14,20.19,100.95
Neighbourhoods and Climate Change,Environmental Services,011060,C&G - Hardwick Park Catering,Supplies and Services,324117,Provisions E324,03-Mar-2022,000009964375943 - 1,BATLEYS PERTH,5300,Catering costs - provisions,63.99,,63.99
Regeneration Economy and Growth,Culture Sport and Tourism,054812,Gala Theatre - Catering etc,Supplies and Services,324117,Provisions E324,03-Mar-2022,000009964375955,BATLEYS PERTH,5300,Catering costs - provisions,17.76,0.00,17.76
Regeneration Economy and Growth,Corporate Property and Land,021242,Catering - County Hall,Supplies and Services,324117,Provisions E324,03-Mar-2022,000009964375959,BATLEYS PERTH,5300,Catering costs - provisions,86.46,14.41,72.05
Regeneration Economy and Growth,Corporate Property and Land,021242,Catering - County Hall,Supplies and Services,324117,Provisions E324,03-Mar-2022,000009964375959 - 1,BATLEYS PERTH,5300,Catering costs - provisions,103.44,,103.44
Regeneration Economy and Growth,Corporate Property and Land,021242,Catering - County Hall,Supplies and Services,324117,Provisions E324,03-Mar-2022,000009964375961,BATLEYS PERTH,5300,Catering costs - provisions,118.26,19.71,98.55
Regeneration Economy and Growth,Corporate Property and Land,021242,Catering - County Hall,Supplies and Services,324117,Provisions E324,03-Mar-2022,000009964375961 - 1,BATLEYS PERTH,5300,Catering costs - provisions,0.03,,0.03
Children and Young Peoples Services,Head of Early Help Inclusion & Vulnerable Children.,085965,Barnard,Supplies and Services,384302,Miscellaneous Expenses,04-Mar-2022,000009958791489,AMZNMktplace,5999,Activity expenses,119.98,20.00,99.98
Children and Young Peoples Services,Head of Early Help Inclusion & Vulnerable Children.,085801,CDYJS - Support,Supplies and Services,384999,Miscellaneous Expenses,04-Mar-2022,000009958791705,Amazon.co.uk 2X14574X4,5969,Other expenses,14.33,2.39,11.94
Regeneration Economy and Growth,Business Durham CL0850,030689,Inward Investment and Aftercare,Supplies and Services,336005,Advertising E336,04-Mar-2022,000009964281387,Google ADS6853017821,7311,Advertising other than for staff,37.49,0.00,37.49
Regeneration Economy and Growth,Business Durham CL0850,030689,Inward Investment and Aftercare,Supplies and Services,342222,Computers and Communications,04-Mar-2022,000009964281389,FASTHOSTS,4816,Comp hardware purch-network servers,7.54,0.00,7.54
Children and Young Peoples Services,Head of Childrens Social Care,085404,COMF bid Targeted interventions for CYPS,Supplies and Services,304403,Equipment and Materials,04-Mar-2022,000009964281399,AMZNMKTPLACE AMAZON.CO,5999,Other consumables,284.94,0.00,284.94
Resources BK0010,Legal & Democratic Services,069326,Practice Management,Supplies and Services,304259,Equipment and Materials,04-Mar-2022,000009964281417,HARTLEPOOL BC,9399,Equipment-purchase and rental,11.00,0.00,11.00
Resources BK0010,Legal & Democratic Services,069326,Practice Management,Supplies and Services,304259,Equipment and Materials,04-Mar-2022,000009964281419,HARTLEPOOL BC,9399,Equipment-purchase and rental,-11.00,0.00,-11.00
Regeneration Economy and Growth,Development and Housing,030773,CLLD North,Supplies and Services,308011,Furniture,04-Mar-2022,000009964281425,Dunelm,5712,Furniture repair and replacement,79.00,0.00,79.00
Regeneration Economy and Growth,Culture Sport and Tourism,030705,Visit County Durham 030705,Supplies and Services,304259,Equipment and Materials,04-Mar-2022,000009964281433,FASTHOSTS,4816,Equipment-purchase and rental,30.00,5.00,25.00
Children and Young Peoples Services,Head of Childrens Social Care,085341,High Etherley Satelite Home,Supplies and Services,304403,Equipment and Materials,04-Mar-2022,000009964281461,AMZNMktplace,5999,Other consumables,262.35,43.73,218.62
Regeneration Economy and Growth,Development and Housing,031623,Rough Sleeping,Supplies and Services,304403,Equipment and Materials,04-Mar-2022,000009964281463,B&M 681 - DURHAM,5399,Other consumables,83.86,0.00,83.86
Regeneration Economy and Growth,Development and Housing,031623,Rough Sleeping,Supplies and Services,304403,Equipment and Materials,04-Mar-2022,000009964281467,TESCO STORES 2371,5411,Other consumables,146.21,0.00,146.21
Regeneration Economy and Growth,Development and Housing,031623,Rough Sleeping,Supplies and Services,304403,Equipment and Materials,04-Mar-2022,000009964281469,TESCO STORES 2371,5411,Other consumables,130.96,0.00,130.96
Regeneration Economy and Growth,Development and Housing,031623,Rough Sleeping,Supplies and Services,304403,Equipment and Materials,04-Mar-2022,000009964281473,DUNELM LTD,5714,Other consumables,74.50,0.00,74.50
Children and Young Peoples Services,Head of Childrens Social Care,085341,High Etherley Satelite Home,Supplies and Services,304403,Equipment and Materials,04-Mar-2022,000009964281489,KANDY KAYE,5947,Other consumables,9.60,0.00,9.60
Regeneration Economy and Growth,Development and Housing,030776,LINKCD Flexible Fund,Supplies and Services,348037,Subsistence E348,04-Mar-2022,000009964281517,CHESTER LE STREET,5814,Subsistence,3.72,0.62,3.10
Regeneration Economy and Growth,Development and Housing,030776,LINKCD Flexible Fund,Supplies and Services,348037,Subsistence E348,04-Mar-2022,000009964281517 - 1,CHESTER LE STREET,5814,Subsistence,1.88,,1.88
Regeneration Economy and Growth,Development and Housing,030544,Rural Employability - Client Engagement,Transport,235057,Public Transport,04-Mar-2022,000009964281521,WWW.GONORTHEAST.CO.UK,4111,Staff travelling,4.00,0.00,4.00
Regeneration Economy and Growth,Development and Housing,030544,Rural Employability - Client Engagement,Transport,235057,Public Transport,04-Mar-2022,000009964281523,WWW.GONORTHEAST.CO.UK,4111,Staff travelling,4.00,0.00,4.00
Children and Young Peoples Services,Head of Childrens Social Care,085380,Operations Manager LAC Resources,Supplies and Services,304403,Equipment and Materials,04-Mar-2022,000009964281525,AMZNMktplace,5999,Other consumables,40.20,6.70,33.50
Children and Young Peoples Services,Head of Childrens Social Care,085380,Operations Manager LAC Resources,Supplies and Services,304403,Equipment and Materials,04-Mar-2022,000009964281525 - 1,AMZNMktplace,5999,Other consumables,299.98,,299.98
Children and Young Peoples Services,Head of Childrens Social Care,085380,Operations Manager LAC Resources,Supplies and Services,304403,Equipment and Materials,04-Mar-2022,000009964281527,AMZNMktplace,5999,Other consumables,22.92,3.82,19.10
Children and Young Peoples Services,Head of Childrens Social Care,085380,Operations Manager LAC Resources,Supplies and Services,304403,Equipment and Materials,04-Mar-2022,000009964281529,AMZNMktplace,5999,Other consumables,7.37,1.23,6.14
Children and Young Peoples Services,Head of Childrens Social Care,085380,Operations Manager LAC Resources,Supplies and Services,304403,Equipment and Materials,04-Mar-2022,000009964281531,AMZNMktplace,5999,Other consumables,14.99,2.50,12.49
Children and Young Peoples Services,Head of Childrens Social Care,085380,Operations Manager LAC Resources,Supplies and Services,304403,Equipment and Materials,04-Mar-2022,000009964281533,AMZNMktplace,5999,Other consumables,11.98,2.00,9.98
Children and Young Peoples Services,Head of Childrens Social Care,085380,Operations Manager LAC Resources,Supplies and Services,304403,Equipment and Materials,04-Mar-2022,000009964281535,AMZNMktplace,5999,Other consumables,3.99,0.67,3.32
Children and Young Peoples Services,Head of Childrens Social Care,085380,Operations Manager LAC Resources,Supplies and Services,328041,Clothing uniforms and laundry E328,04-Mar-2022,000009964281537,ARGOS LTD,5310,Clothing uniforms and laundry,186.95,0.00,186.95
Children and Young Peoples Services,Head of Childrens Social Care,085332,Middlestone Moor CU,Supplies and Services,384999,Miscellaneous Expenses,04-Mar-2022,000009964281539,Cult Beauty,5977,Other expenses,44.20,0.00,44.20
Neighbourhoods and Climate Change,Environmental Services,010367,C&G - South Grounds Maintenance,Supplies and Services,304221,Equipment and Materials,04-Mar-2022,000009964281569,JT ATKINSON & SONS LTD,5211,Direct materials,164.88,0.00,164.88
Children and Young Peoples Services,Head of Childrens Social Care,085358,Orchard House Sacriston Solo Home,Supplies and Services,324117,Provisions E324,04-Mar-2022,000009964281627,ASDA GROCERIES ONLINE,5411,Catering costs - provisions,172.20,0.00,172.20
Children and Young Peoples Services,Head of Childrens Social Care,085358,Orchard House Sacriston Solo Home,Supplies and Services,348037,Subsistence E348,04-Mar-2022,000009964281629,MCDONALDS,5812,Subsistence,17.25,0.00,17.25
Children and Young Peoples Services,Head of Education and Skills,071732,Dean Bank Childcare,Supplies and Services,324117,Provisions E324,04-Mar-2022,000009964281655,Wm Morrisons Store Pic,5411,Catering costs - provisions,8.00,0.00,8.00
Neighbourhoods and Climate Change,Environmental Services,026591,C&G - Hardwick Park,Supplies and Services,332047,Printing Stationery and Gen Off Exps,04-Mar-2022,000009964281659,Amazon.co.uk 2X7DD0ZY4,5969,Stationery,26.65,4.44,22.21
Neighbourhoods and Climate Change,Environmental Services,026591,C&G - Hardwick Park,Supplies and Services,332047,Printing Stationery and Gen Off Exps,04-Mar-2022,000009964281661,AMZNMktplace,5999,Stationery,21.90,3.66,18.24
Children and Young Peoples Services,Head of Childrens Social Care,085511,Emergency Duty Team,Supplies and Services,328041,Clothing uniforms and laundry E328,04-Mar-2022,000009964281679,ARGOS LTD,5310,Clothing uniforms and laundry,54.95,0.00,54.95
Regeneration Economy and Growth,Development and Housing,030771,Durham Advance Flexible Fund,Transport,235057,Public Transport,04-Mar-2022,000009964281695,WWW.GONORTHEAST.CO.UK,4111,Staff travelling,20.00,0.00,20.00
Children and Young Peoples Services,Head of Early Help Inclusion & Vulnerable Children.,085965,Barnard,Supplies and Services,324117,Provisions E324,04-Mar-2022,000009964281699,TESCO STORES 6329,5411,Catering costs - provisions,71.89,0.00,71.89
Neighbourhoods and Climate Change,Environmental Services,031228,North Pennines - Fellfoot Forward,Supplies and Services,340001,Postages E340,04-Mar-2022,000009964281735,POST OFFICE COUNTER,9402,Postages,2.25,0.00,2.25
Children and Young Peoples Services,Head of Early Help Inclusion & Vulnerable Children.,088106,Ferryhill & N. Aycliffe Intensive Family Support Team,Supplies and Services,338045,Services,04-Mar-2022,000009964281755,DARLINGTON BC INTERNET,9399,Legal expenses 338045,11.00,0.00,11.00
Children and Young Peoples Services,Head of Early Help Inclusion & Vulnerable Children.,088106,Ferryhill & N. Aycliffe Intensive Family Support Team,Supplies and Services,338045,Services,04-Mar-2022,000009964281757,DARLINGTON BC INTERNET,9399,Legal expenses 338045,11.00,0.00,11.00
Children and Young Peoples Services,Head of Early Help Inclusion & Vulnerable Children.,088106,Ferryhill & N. Aycliffe Intensive Family Support Team,Supplies and Services,338045,Services,04-Mar-2022,000009964281759,DARLINGTON BC INTERNET,9399,Legal expenses 338045,11.00,0.00,11.00
Children and Young Peoples Services,Head of Early Help Inclusion & Vulnerable Children.,088106,Ferryhill & N. Aycliffe Intensive Family Support Team,Supplies and Services,338045,Services,04-Mar-2022,000009964281761,Durham County CNCL,9399,Legal expenses 338045,-11.00,0.00,-11.00
Children and Young Peoples Services,Head of Early Help Inclusion & Vulnerable Children.,088106,Ferryhill & N. Aycliffe Intensive Family Support Team,Supplies and Services,338045,Services,04-Mar-2022,000009964281763,Durham County CNCL,9399,Legal expenses 338045,-11.00,0.00,-11.00
Children and Young Peoples Services,Head of Early Help Inclusion & Vulnerable Children.,088106,Ferryhill & N. Aycliffe Intensive Family Support Team,Supplies and Services,338045,Services,04-Mar-2022,000009964281765,Durham County CNCL,9399,Legal expenses 338045,-11.00,0.00,-11.00
Children and Young Peoples Services,Head of Childrens Social Care,085364,Children Looked After Team 1,Supplies and Services,340001,Postages E340,04-Mar-2022,000009964281823,POST OFFICE COUNTER,9402,Postages,4.72,0.00,4.72
Children and Young Peoples Services,Head of Childrens Social Care,085364,Children Looked After Team 1,Supplies and Services,338045,Services,04-Mar-2022,000009964281825,GATESHEAD COUNCIL INT,9399,Legal expenses 338045,11.00,0.00,11.00
Children and Young Peoples Services,Head of Childrens Social Care,085364,Children Looked After Team 1,Supplies and Services,338045,Services,04-Mar-2022,000009964281827,HM PASSPORT OFFICE,9399,Legal expenses 338045,49.00,0.00,49.00
Children and Young Peoples Services,Head of Childrens Social Care,085364,Children Looked After Team 1,Supplies and Services,338045,Services,04-Mar-2022,000009964281829,HM PASSPORT OFFICE,9399,Legal expenses 338045,49.00,0.00,49.00
Children and Young Peoples Services,Head of Childrens Social Care,085364,Children Looked After Team 1,Supplies and Services,338045,Services,04-Mar-2022,000009964281833,HM PASSPORT OFFICE,9399,Legal expenses 338045,49.00,0.00,49.00
Children and Young Peoples Services,Head of Childrens Social Care,085367,Children Looked After Team 4,Supplies and Services,338045,Services,04-Mar-2022,000009964281835,HM PASSPORT OFFICE,9399,Legal expenses 338045,75.50,0.00,75.50
Children and Young Peoples Services,Head of Childrens Social Care,085364,Children Looked After Team 1,Supplies and Services,384302,Miscellaneous Expenses,04-Mar-2022,000009964281839,GEN REGISTER OFFICE,9399,Activity expenses,11.00,0.00,11.00
Children and Young Peoples Services,Head of Childrens Social Care,085341,High Etherley Satelite Home,Supplies and Services,304403,Equipment and Materials,04-Mar-2022,000009964281841,www.lightinthebox,5999,Other consumables,35.17,0.00,35.17
Children and Young Peoples Services,Head of Childrens Social Care,085341,High Etherley Satelite Home,Supplies and Services,304403,Equipment and Materials,04-Mar-2022,000009964281843,AMZNMktplace,5999,Other consumables,35.98,6.00,29.98
Children and Young Peoples Services,Head of Childrens Social Care,085341,High Etherley Satelite Home,Supplies and Services,328041,Clothing uniforms and laundry E328,04-Mar-2022,000009964281845,BOOHOO.COM,5691,Clothing uniforms and laundry,29.49,0.00,29.49
Children and Young Peoples Services,Head of Childrens Social Care,085341,High Etherley Satelite Home,Supplies and Services,328041,Clothing uniforms and laundry E328,04-Mar-2022,000009964281847,PRETTYLITTLETHING.COM,5691,Clothing uniforms and laundry,33.24,0.00,33.24
Children and Young Peoples Services,Head of Childrens Social Care,085341,High Etherley Satelite Home,Supplies and Services,324117,Provisions E324,04-Mar-2022,000009964281849,LIDL GB SPENNYMOOR,5411,Catering costs - provisions,6.97,0.00,6.97
Neighbourhoods and Climate Change,Environmental Services,010367,C&G - South Grounds Maintenance,Supplies and Services,324117,Provisions E324,04-Mar-2022,000009964281863,SP RBLI,5399,Catering costs - provisions,392.38,0.00,392.38
Adult and Health Services,Head of Adults,055643,Hawthorn House LD Respite Unit,Supplies and Services,304403,Equipment and Materials,04-Mar-2022,000009964281881,AMZNMktplace,5999,Other consumables,16.34,2.73,13.61
Children and Young Peoples Services,Head of Childrens Social Care,085351,Framwellgate Moor CU,Supplies and Services,328041,Clothing uniforms and laundry E328,04-Mar-2022,000009964281887,ROSES R RED,5992,Clothing uniforms and laundry,30.00,0.00,30.00
Children and Young Peoples Services,Head of Childrens Social Care,085351,Framwellgate Moor CU,Supplies and Services,324117,Provisions E324,04-Mar-2022,000009964281889,STARBUCKS THINFORD,5499,Catering costs - provisions,25.25,0.00,25.25
Children and Young Peoples Services,Head of Childrens Social Care,085351,Framwellgate Moor CU,Supplies and Services,324117,Provisions E324,04-Mar-2022,000009964281891,SAINSBURYS LOCAL,5411,Catering costs - provisions,2.35,0.00,2.35
Children and Young Peoples Services,Head of Childrens Social Care,085333,Coxhoe Satelite Home,Supplies and Services,324117,Provisions E324,04-Mar-2022,000009964281895,ASDA SUPERSTORE 4987,5411,Catering costs - provisions,55.37,0.00,55.37
Children and Young Peoples Services,Head of Childrens Social Care,085333,Coxhoe Satelite Home,Supplies and Services,324117,Provisions E324,04-Mar-2022,000009964281897,ASDA SUPERSTORE 4987,5411,Catering costs - provisions,20.50,0.00,20.50
Regeneration Economy and Growth,Culture Sport and Tourism,010605,Woodhouse Close Leisure Complex,Supplies and Services,304259,Equipment and Materials,04-Mar-2022,000009964281931,AMZNMktplace,5999,Equipment-purchase and rental,13.99,2.33,11.66
Children and Young Peoples Services,Head of Childrens Social Care,085334,West Rainton Satelite Home,Supplies and Services,324117,Provisions E324,04-Mar-2022,000009964281955,TESCO STORES 2371,5411,Catering costs - provisions,129.55,0.00,129.55
Children and Young Peoples Services,Head of Education and Skills,078100,Curric and Professional Development 078100,Supplies and Services,304999,Equipment and Materials,04-Mar-2022,000009964281957,WWW.M-A.ORG.UK,5968,Misc equipment tools and materials,16.00,0.00,16.00
Children and Young Peoples Services,Head of Early Help Inclusion & Vulnerable Children.,088102,Consett & Stanley Intensive Family Support Team,Supplies and Services,340001,Postages E340,04-Mar-2022,000009964281961,POST OFFICE COUNTER,9402,Postages,1.53,0.00,1.53
Resources BK0010,Digital and Customer Services,065335,School Services - Implementations,Supplies and Services,304639,Equipment and Materials,04-Mar-2022,000009964281977,AMZNMktplace,5999,Technicians-supplies,12.99,2.17,10.82
Children and Young Peoples Services,Head of Early Help Inclusion & Vulnerable Children.,085956,Lumley,Supplies and Services,304259,Equipment and Materials,04-Mar-2022,000009964282025,AMZNMktplace,5999,Equipment-purchase and rental,87.84,14.64,73.20
Children and Young Peoples Services,Head of Early Help Inclusion & Vulnerable Children.,085956,Lumley,Supplies and Services,304259,Equipment and Materials,04-Mar-2022,000009964282025 - 1,AMZNMktplace,5999,Equipment-purchase and rental,0.08,,0.08
Dedicated Schools Grant BG0015,DSG High Needs Block,079040,HNB Management and support,Supplies and Services,324117,Provisions E324,04-Mar-2022,000009964282029,ASDA GROCERIES ONLINE,5411,Catering costs - provisions,15.75,0.00,15.75
Resources BK0010,Procurement Sales & Business Services,065503,Business Support - Spectrum,Supplies and Services,328041,Clothing uniforms and laundry E328,04-Mar-2022,000009964282033,ARGOS LTD,5310,Clothing uniforms and laundry,196.95,0.00,196.95
Resources BK0010,Procurement Sales & Business Services,065503,Business Support - Spectrum,Supplies and Services,328041,Clothing uniforms and laundry E328,04-Mar-2022,000009964282035,ARGOS LTD,5310,Clothing uniforms and laundry,89.00,0.00,89.00
Regeneration Economy and Growth,Development and Housing,030544,Rural Employability - Client Engagement,Third Party Payments,430100,Rendered by Private Contractors,04-Mar-2022,000009964282071,TAXIPLUS,7399,Payments to sub-contractors,49.60,0.00,49.60
Regeneration Economy and Growth,Development and Housing,030544,Rural Employability - Client Engagement,Employees,040149,Recruitment Instruction and Training,04-Mar-2022,000009964282073,CPD ONLINE COLLEGE,8299,Training-all costs,24.00,0.00,24.00
Children and Young Peoples Services,Head of Education and Skills,071802,Louisa Cent Nursery,Supplies and Services,324117,Provisions E324,04-Mar-2022,000009964282107,ASDA GROCERIES ONLINE,5411,Catering costs - provisions,191.26,0.00,191.26
Children and Young Peoples Services,Head of Education and Skills,071802,Louisa Cent Nursery,Supplies and Services,324117,Provisions E324,04-Mar-2022,000009964282109,ASDA GROCERIES ONLINE,5411,Catering costs - provisions,-2.40,0.00,-2.40
Neighbourhoods and Climate Change,Environmental Services,031200,North Pennines Core,Supplies and Services,342222,Computers and Communications,04-Mar-2022,000009964282117,1 AND 1 IONOS LTD,4816,Comp hardware purch-network servers,76.80,0.00,76.80
Children and Young Peoples Services,Head of Early Help Inclusion & Vulnerable Children.,085962,Aycliffe Secure - Durham,Supplies and Services,304999,Equipment and Materials,04-Mar-2022,000009964282137,HOME BARGAINS,5251,Misc equipment tools and materials,7.76,0.00,7.76
Resources BK0010,Procurement Sales & Business Services,065500,Business Support - Management,Supplies and Services,304403,Equipment and Materials,04-Mar-2022,000009964282173,AMZNMKTPLACE AMAZON.CO,5999,Other consumables,28.95,4.83,24.12
Children and Young Peoples Services,Head of Education and Skills,076001,Music Service,Employees,040149,Recruitment Instruction and Training,04-Mar-2022,000009964282229,Twinkl,8299,Training-all costs,-16.00,0.00,-16.00
Regeneration Economy and Growth,Development and Housing,030771,Durham Advance Flexible Fund,Supplies and Services,342053,Computers and Communications,04-Mar-2022,000009964282241,COMPUTER DISCOUNTS,5045,Computer software,499.99,0.00,499.99
Children and Young Peoples Services,Head of Early Help Inclusion & Vulnerable Children.,088112,Seaham & Central Durham Intensive Family Support Team,Supplies and Services,384302,Miscellaneous Expenses,04-Mar-2022,000009964282261,AMZNMktplace,5999,Activity expenses,3.99,0.67,3.32
Regeneration Economy and Growth,Corporate Property and Land,010525,Catering - Green Lane,Supplies and Services,324117,Provisions E324,04-Mar-2022,000009964375929,FREEMAN CATERING BUTCH,5422,Catering costs - provisions,30.14,0.00,30.14
Regeneration Economy and Growth,Corporate Property and Land,011296,Catering - Crimdon Dene Hub,Supplies and Services,324117,Provisions E324,04-Mar-2022,000009964375931,JR HOLLAND FOODSERVICE,5499,Catering costs - provisions,55.79,0.00,55.79
Regeneration Economy and Growth,Corporate Property and Land,011296,Catering - Crimdon Dene Hub,Supplies and Services,324117,Provisions E324,04-Mar-2022,000009964375933,JR HOLLAND FOODSERVICE,5499,Catering costs - provisions,31.27,0.00,31.27
Regeneration Economy and Growth,Corporate Property and Land,030691,Catering - Durham Dales Centre,Supplies and Services,324117,Provisions E324,04-Mar-2022,000009964375935,JR HOLLAND FOODSERVICE,5499,Catering costs - provisions,141.83,0.00,141.83
Adult and Health Services,Head of Adults,055643,Hawthorn House LD Respite Unit,Supplies and Services,324117,Provisions E324,04-Mar-2022,000009964375937,FREEMAN CATERING BUTCH,5422,Catering costs - provisions,25.50,0.00,25.50
Adult and Health Services,Head of Adults,055643,Hawthorn House LD Respite Unit,Supplies and Services,324117,Provisions E324,04-Mar-2022,000009964375939,JR HOLLAND FOODSERVICE,5499,Catering costs - provisions,23.40,0.00,23.40
Adult and Health Services,Head of Adults,055643,Hawthorn House LD Respite Unit,Supplies and Services,324117,Provisions E324,04-Mar-2022,000009964375941,JR HOLLAND FOODSERVICE,5499,Catering costs - provisions,22.05,0.00,22.05
Neighbourhoods and Climate Change,Environmental Services,011060,C&G - Hardwick Park Catering,Supplies and Services,324117,Provisions E324,04-Mar-2022,000009964375945,FREEMAN CATERING BUTCH,5422,Catering costs - provisions,59.02,0.00,59.02
Regeneration Economy and Growth,Corporate Property and Land,021234,Catering - Locomotion,Supplies and Services,384999,Miscellaneous Expenses,04-Mar-2022,000009964375947,G M PACKAGING UK LTD,5046,Other expenses,78.01,0.00,78.01
Regeneration Economy and Growth,Corporate Property and Land,021234,Catering - Locomotion,Supplies and Services,324117,Provisions E324,04-Mar-2022,000009964375949,FREEMAN CATERING BUTCH,5422,Catering costs - provisions,36.28,0.00,36.28
Regeneration Economy and Growth,Corporate Property and Land,021234,Catering - Locomotion,Supplies and Services,324117,Provisions E324,04-Mar-2022,000009964375951,JR HOLLAND FOODSERVICE,5499,Catering costs - provisions,38.23,0.00,38.23
Regeneration Economy and Growth,Culture Sport and Tourism,011263,Louisa Centre 011263,Supplies and Services,324117,Provisions E324,04-Mar-2022,000009964375953,JR HOLLAND FOODSERVICE,5499,Catering costs - provisions,15.00,0.00,15.00
Regeneration Economy and Growth,Culture Sport and Tourism,054812,Gala Theatre - Catering etc,Supplies and Services,324117,Provisions E324,04-Mar-2022,000009964375957,JR HOLLAND FOODSERVICE,5499,Catering costs - provisions,37.75,0.00,37.75
Regeneration Economy and Growth,Corporate Property and Land,011275,Catering -Durham Leadership Centre,Supplies and Services,324117,Provisions E324,04-Mar-2022,000009971228217,BATLEYS PERTH,5300,Catering costs - provisions,11.04,1.84,9.20
Regeneration Economy and Growth,Corporate Property and Land,011275,Catering -Durham Leadership Centre,Supplies and Services,324117,Provisions E324,04-Mar-2022,000009971228217 - 1,BATLEYS PERTH,5300,Catering costs - provisions,67.20,,67.20
Adult and Health Services,Head of Adults,055643,Hawthorn House LD Respite Unit,Supplies and Services,324117,Provisions E324,04-Mar-2022,000009971228241,BATLEYS PERTH,5300,Catering costs - provisions,39.60,6.60,33.00
Adult and Health Services,Head of Adults,055643,Hawthorn House LD Respite Unit,Supplies and Services,324117,Provisions E324,04-Mar-2022,000009971228241 - 1,BATLEYS PERTH,5300,Catering costs - provisions,90.69,,90.69
Adult and Health Services,Head of Adults,055643,Hawthorn House LD Respite Unit,Supplies and Services,324117,Provisions E324,04-Mar-2022,000009971228245,BATLEYS PERTH,5300,Catering costs - provisions,7.16,1.19,5.97
Regeneration Economy and Growth,Corporate Property and Land,021234,Catering - Locomotion,Supplies and Services,324117,Provisions E324,04-Mar-2022,000009971228253,BATLEYS PERTH,5300,Catering costs - provisions,-66.14,-10.45,-55.69
Resources BK0010,Digital and Customer Services,011103,Digital Solutions,Supplies and Services,342033,Computers and Communications,05-Mar-2022,000009964281401,FONT AWESOME STANDARD,7372,Computer hardware,74.99,0.00,74.99
Children and Young Peoples Services,Head of Childrens Social Care,085342,16 Hickstead Rise (previously 9 Cedar Ave),Supplies and Services,324117,Provisions E324,05-Mar-2022,000009964281435,B&M 681 - DURHAM,5399,Catering costs - provisions,50.58,0.00,50.58
Children and Young Peoples Services,Head of Childrens Social Care,085342,16 Hickstead Rise (previously 9 Cedar Ave),Supplies and Services,308011,Furniture,05-Mar-2022,000009964281437,DUNELM LTD,5714,Furniture repair and replacement,14.00,0.00,14.00
Children and Young Peoples Services,Head of Childrens Social Care,085342,16 Hickstead Rise (previously 9 Cedar Ave),Supplies and Services,308011,Furniture,05-Mar-2022,000009964281439,The Range,5719,Furniture repair and replacement,9.99,0.00,9.99
Children and Young Peoples Services,Head of Childrens Social Care,085342,16 Hickstead Rise (previously 9 Cedar Ave),Supplies and Services,348037,Subsistence E348,05-Mar-2022,000009964281441,MCDONALDS,5814,Subsistence,28.92,0.00,28.92
Regeneration Economy and Growth,Development and Housing,031623,Rough Sleeping,Supplies and Services,304403,Equipment and Materials,05-Mar-2022,000009964281475,ARGOS LTD,5310,Other consumables,48.00,0.00,48.00
Children and Young Peoples Services,Head of Childrens Social Care,085341,High Etherley Satelite Home,Supplies and Services,348037,Subsistence E348,05-Mar-2022,000009964281491,Just Eat,5814,Subsistence,29.00,0.00,29.00
Children and Young Peoples Services,Head of Childrens Social Care,085332,Middlestone Moor CU,Supplies and Services,304999,Equipment and Materials,05-Mar-2022,000009964281543,HOME BARGAINS,5251,Misc equipment tools and materials,26.04,0.00,26.04
Children and Young Peoples Services,Head of Childrens Social Care,085332,Middlestone Moor CU,Transport,235057,Public Transport,05-Mar-2022,000009964281545,WWW.GONORTHEAST.CO.UK,4111,Staff travelling,4.00,0.00,4.00
Children and Young Peoples Services,Head of Childrens Social Care,085332,Middlestone Moor CU,Supplies and Services,324117,Provisions E324,05-Mar-2022,000009964281547,CO-OP GROUP 108247,5411,Catering costs - provisions,5.00,0.00,5.00
Children and Young Peoples Services,Head of Childrens Social Care,085332,Middlestone Moor CU,Supplies and Services,324117,Provisions E324,05-Mar-2022,000009964281549,WM MORRISONS STORE,5411,Catering costs - provisions,7.50,0.00,7.50
Children and Young Peoples Services,Head of Early Help Inclusion & Vulnerable Children.,085962,Aycliffe Secure - Durham,Supplies and Services,348037,Subsistence E348,05-Mar-2022,000009964281667,WWW.THEOLIVEGARDEN.CO.,5812,Subsistence,89.10,0.00,89.10
Children and Young Peoples Services,Head of Early Help Inclusion & Vulnerable Children.,085956,Lumley,Supplies and Services,324117,Provisions E324,05-Mar-2022,000009964281701,TESCO STORES 6329,5411,Catering costs - provisions,52.68,0.00,52.68
Children and Young Peoples Services,Head of Childrens Social Care,085331,New Lea Childrens Home,Supplies and Services,304403,Equipment and Materials,05-Mar-2022,000009964281769,BARNARDOS,5947,Other consumables,1.00,0.00,1.00
Children and Young Peoples Services,Head of Childrens Social Care,085331,New Lea Childrens Home,Supplies and Services,304403,Equipment and Materials,05-Mar-2022,000009964281771,BARNARDOS,5947,Other consumables,6.00,0.00,6.00
Children and Young Peoples Services,Head of Childrens Social Care,085331,New Lea Childrens Home,Supplies and Services,304403,Equipment and Materials,05-Mar-2022,000009964281773,ConsettMain,5999,Other consumables,2.00,0.00,2.00
Children and Young Peoples Services,Head of Childrens Social Care,085331,New Lea Childrens Home,Supplies and Services,304403,Equipment and Materials,05-Mar-2022,000009964281775,ConsettMain,5999,Other consumables,1.50,0.00,1.50
Children and Young Peoples Services,Head of Childrens Social Care,085331,New Lea Childrens Home,Supplies and Services,324117,Provisions E324,05-Mar-2022,000009964281777,BARRYS BARGAIN STORE,5499,Catering costs - provisions,73.73,0.00,73.73
Children and Young Peoples Services,Head of Childrens Social Care,085331,New Lea Childrens Home,Supplies and Services,324117,Provisions E324,05-Mar-2022,000009964281779,BARRYS BARGAIN STORE,5499,Catering costs - provisions,10.60,0.00,10.60
Children and Young Peoples Services,Head of Childrens Social Care,085331,New Lea Childrens Home,Supplies and Services,328041,Clothing uniforms and laundry E328,05-Mar-2022,000009964281781,W BOYES & CO LTD CONSE,5310,Clothing uniforms and laundry,3.99,0.00,3.99
Children and Young Peoples Services,Head of Childrens Social Care,085331,New Lea Childrens Home,Supplies and Services,324117,Provisions E324,05-Mar-2022,000009964281785,B&M 704 - PRUDHOE,5399,Catering costs - provisions,37.47,0.00,37.47
Children and Young Peoples Services,Head of Childrens Social Care,085331,New Lea Childrens Home,Supplies and Services,324117,Provisions E324,05-Mar-2022,000009964281789,B&M 519 - CONSETT,5399,Catering costs - provisions,125.00,0.00,125.00
Children and Young Peoples Services,Head of Childrens Social Care,085331,New Lea Childrens Home,Supplies and Services,324117,Provisions E324,05-Mar-2022,000009964281791,Riverview Bakery,5462,Catering costs - provisions,35.90,0.00,35.90
Children and Young Peoples Services,Head of Childrens Social Care,085341,High Etherley Satelite Home,Supplies and Services,324117,Provisions E324,05-Mar-2022,000009964281851,LIDL GB SPENNYMOOR,5411,Catering costs - provisions,20.38,0.00,20.38
Regeneration Economy and Growth,Culture Sport and Tourism,054399,Local Delivery-Libraries,Supplies and Services,312009,Newspapers books and periodicals E312,05-Mar-2022,000009964281943,Amazon.co.uk 2X4FU6304,5969,Newspapers books and periodicals,6.99,0.00,6.99
Children and Young Peoples Services,Head of Childrens Social Care,085332,Middlestone Moor CU,Supplies and Services,342033,Computers and Communications,05-Mar-2022,000009964282127,TFH PIZZA BARN,7372,Computer hardware,19.48,0.00,19.48
Children and Young Peoples Services,Head of Childrens Social Care,085332,Middlestone Moor CU,Supplies and Services,324117,Provisions E324,05-Mar-2022,000009964282129,PPOINT_ WASHINGTON VIL,5411,Catering costs - provisions,5.79,0.00,5.79
Children and Young Peoples Services,Head of Childrens Social Care,085332,Middlestone Moor CU,Supplies and Services,348037,Subsistence E348,05-Mar-2022,000009964282131,SODEXO PRESTIGE,5812,Subsistence,7.90,0.00,7.90
Regeneration Economy and Growth,Business Durham CL0850,030689,Inward Investment and Aftercare,Supplies and Services,342033,Computers and Communications,06-Mar-2022,000009964281391,STK Shutterstock,7333,Computer hardware,19.00,0.00,19.00
Children and Young Peoples Services,Head of Childrens Social Care,085404,COMF bid Targeted interventions for CYPS,Supplies and Services,384999,Miscellaneous Expenses,06-Mar-2022,000009964281403,Amazon.co.uk 2X24Q2A34,5969,Other expenses,80.91,0.00,80.91
Regeneration Economy and Growth,Development and Housing,031623,Rough Sleeping,Supplies and Services,304403,Equipment and Materials,06-Mar-2022,000009964281477,AMZNMktplace,5999,Other consumables,28.98,0.00,28.98
Regeneration Economy and Growth,Development and Housing,031623,Rough Sleeping,Supplies and Services,304403,Equipment and Materials,06-Mar-2022,000009964281479,ASDA STORES 4333,5411,Other consumables,16.00,0.00,16.00
Regeneration Economy and Growth,Development and Housing,031623,Rough Sleeping,Supplies and Services,304403,Equipment and Materials,06-Mar-2022,000009964281483,TESCO STORES 6810,5411,Other consumables,23.82,0.00,23.82
Regeneration Economy and Growth,Development and Housing,031623,Rough Sleeping,Supplies and Services,304403,Equipment and Materials,06-Mar-2022,000009964281485,TESCO STORES 6810,5411,Other consumables,47.63,0.00,47.63
Children and Young Peoples Services,Head of Childrens Social Care,085332,Middlestone Moor CU,Supplies and Services,348037,Subsistence E348,06-Mar-2022,000009964281541,Just Eat,5814,Subsistence,45.10,0.00,45.10
Children and Young Peoples Services,Head of Childrens Social Care,085358,Orchard House Sacriston Solo Home,Supplies and Services,304403,Equipment and Materials,06-Mar-2022,000009964281631,AMZNMKTPLACE AMAZON.CO,5999,Other consumables,24.99,4.17,20.82
Children and Young Peoples Services,Head of Childrens Social Care,085358,Orchard House Sacriston Solo Home,Supplies and Services,304403,Equipment and Materials,06-Mar-2022,000009964281633,AMZNMKTPLACE AMAZON.CO,5999,Other consumables,44.97,7.50,37.47
Children and Young Peoples Services,Head of Childrens Social Care,085358,Orchard House Sacriston Solo Home,Supplies and Services,308011,Furniture,06-Mar-2022,000009964281635,IKEA LTD SHOP ONLINE,5712,Furniture repair and replacement,115.00,0.00,115.00
Children and Young Peoples Services,Head of Childrens Social Care,085342,16 Hickstead Rise (previously 9 Cedar Ave),Supplies and Services,324117,Provisions E324,06-Mar-2022,000009964281647,B&M 206 - NORTHGATE,5399,Catering costs - provisions,20.98,0.00,20.98
Children and Young Peoples Services,Head of Childrens Social Care,085342,16 Hickstead Rise (previously 9 Cedar Ave),Supplies and Services,324117,Provisions E324,06-Mar-2022,000009964281649,TESCO STORES 2916,5411,Catering costs - provisions,38.56,0.00,38.56
Children and Young Peoples Services,Head of Early Help Inclusion & Vulnerable Children.,085962,Aycliffe Secure - Durham,Supplies and Services,384999,Miscellaneous Expenses,06-Mar-2022,000009964281669,Amazon.co.uk 2X5WZ7EK4,5969,Other expenses,29.99,5.00,24.99
Children and Young Peoples Services,Head of Early Help Inclusion & Vulnerable Children.,085954,Walworth,Supplies and Services,324117,Provisions E324,06-Mar-2022,000009964281703,TESCO STORES 6329,5411,Catering costs - provisions,77.45,0.00,77.45
Children and Young Peoples Services,Head of Childrens Social Care,085331,New Lea Childrens Home,Supplies and Services,348037,Subsistence E348,06-Mar-2022,000009964281793,INFINATE AIR CAFE- SWE,5812,Subsistence,1.70,0.00,1.70
Children and Young Peoples Services,Head of Childrens Social Care,085331,New Lea Childrens Home,Supplies and Services,348037,Subsistence E348,06-Mar-2022,000009964281795,INFINITE AIRE CAFE- SA,5812,Subsistence,9.80,0.00,9.80
Children and Young Peoples Services,Head of Childrens Social Care,085331,New Lea Childrens Home,Supplies and Services,304999,Equipment and Materials,06-Mar-2022,000009964281797,WWW.INFINITEAIR.CO.UK,7991,Misc equipment tools and materials,12.95,0.00,12.95
Children and Young Peoples Services,Head of Childrens Social Care,085341,High Etherley Satelite Home,Supplies and Services,324117,Provisions E324,06-Mar-2022,000009964281853,ASDA GEORGE COM LEEDS,5411,Catering costs - provisions,55.50,0.00,55.50
Children and Young Peoples Services,Head of Early Help Inclusion & Vulnerable Children.,088103,Stanley & Moorside Family Centre,Supplies and Services,304259,Equipment and Materials,06-Mar-2022,000009964281963,AMZNMktplace,5999,Equipment-purchase and rental,94.95,15.85,79.10
Children and Young Peoples Services,Head of Early Help Inclusion & Vulnerable Children.,088103,Stanley & Moorside Family Centre,Supplies and Services,304259,Equipment and Materials,06-Mar-2022,000009964281965,AMZNMktplace,5999,Equipment-purchase and rental,9.04,0.00,9.04
Children and Young Peoples Services,Head of Early Help Inclusion & Vulnerable Children.,088103,Stanley & Moorside Family Centre,Supplies and Services,304259,Equipment and Materials,06-Mar-2022,000009964281967,AMZNMktplace,5999,Equipment-purchase and rental,9.04,0.00,9.04
Children and Young Peoples Services,Head of Early Help Inclusion & Vulnerable Children.,088103,Stanley & Moorside Family Centre,Supplies and Services,304259,Equipment and Materials,06-Mar-2022,000009964281969,AMZNMktplace,5999,Equipment-purchase and rental,95.94,16.02,79.92
Children and Young Peoples Services,Head of Early Help Inclusion & Vulnerable Children.,088103,Stanley & Moorside Family Centre,Supplies and Services,304259,Equipment and Materials,06-Mar-2022,000009964281971,AMZNMktplace,5999,Equipment-purchase and rental,18.08,0.00,18.08
Children and Young Peoples Services,Head of Childrens Social Care,085332,Middlestone Moor CU,Supplies and Services,304999,Equipment and Materials,06-Mar-2022,000009964282047,MICROSOFT CONSOLE 1 MO,5816,Misc equipment tools and materials,7.99,0.00,7.99
Neighbourhoods and Climate Change,Environmental Services,031200,North Pennines Core,Supplies and Services,342033,Computers and Communications,06-Mar-2022,000009964282119,SendinBlue,7372,Computer hardware,27.60,0.00,27.60
Regeneration Economy and Growth,Development and Housing,030735,Economic Development - Employability,Supplies and Services,308011,Furniture,06-Mar-2022,000009964282125,IKEA LTD 143 GATESHEAD,5712,Furniture repair and replacement,84.00,14.00,70.00
Children and Young Peoples Services,Head of Childrens Social Care,085334,West Rainton Satelite Home,Supplies and Services,328041,Clothing uniforms and laundry E328,06-Mar-2022,000009964282161,OCEAN BEACH PLEASURE P,7996,Clothing uniforms and laundry,20.00,0.00,20.00
Children and Young Peoples Services,Head of Childrens Social Care,085334,West Rainton Satelite Home,Transport,235057,Public Transport,06-Mar-2022,000009964282163,SOUTH TYNESIDE COUNCIL,7523,Staff travelling,2.70,0.00,2.70
Children and Young Peoples Services,Head of Childrens Social Care,085334,West Rainton Satelite Home,Supplies and Services,304403,Equipment and Materials,06-Mar-2022,000009964282165,SumUp South Shields,5999,Other consumables,6.30,0.00,6.30
Children and Young Peoples Services,Head of Early Help Inclusion & Vulnerable Children.,088107,Wheatley Hill & N. Aycliffe Family Centre,Supplies and Services,384302,Miscellaneous Expenses,06-Mar-2022,000009964282263,AMZN Mktp UK 2X67U8AS4,5942,Activity expenses,24.84,4.14,20.70
Children and Young Peoples Services,Head of Childrens Social Care,085551,Short Break Services-Park Hse Sher,Supplies and Services,324117,Provisions E324,06-Mar-2022,000009971140993,ICELAND FOODS,5411,Catering costs - provisions,102.30,0.00,102.30
Children and Young Peoples Services,Head of Childrens Social Care,085358,Orchard House Sacriston Solo Home,Supplies and Services,304403,Equipment and Materials,06-Mar-2022,000009971141005,AMZNMKTPLACE AMAZON.CO,5999,Other consumables,28.64,4.77,23.87
Children and Young Peoples Services,Head of Childrens Social Care,085358,Orchard House Sacriston Solo Home,Supplies and Services,304403,Equipment and Materials,06-Mar-2022,000009971141007,AMZNMKTPLACE AMAZON.CO,5999,Other consumables,61.99,10.33,51.66
Children and Young Peoples Services,Head of Childrens Social Care,085358,Orchard House Sacriston Solo Home,Supplies and Services,304403,Equipment and Materials,06-Mar-2022,000009971141011,AMZNMKTPLACE AMAZON.CO,5999,Other consumables,32.95,5.49,27.46
Children and Young Peoples Services,Head of Childrens Social Care,085342,16 Hickstead Rise (previously 9 Cedar Ave),Supplies and Services,328041,Clothing uniforms and laundry E328,06-Mar-2022,000009971141023,THE WORKS,5310,Clothing uniforms and laundry,20.00,0.00,20.00
Children and Young Peoples Services,Head of Childrens Social Care,085342,16 Hickstead Rise (previously 9 Cedar Ave),Supplies and Services,348037,Subsistence E348,06-Mar-2022,000009971141027,MCDONALDS,5814,Subsistence,23.36,0.00,23.36
Children and Young Peoples Services,Head of Childrens Social Care,085342,16 Hickstead Rise (previously 9 Cedar Ave),Supplies and Services,328041,Clothing uniforms and laundry E328,06-Mar-2022,000009971141029,PRIMARK,5651,Clothing uniforms and laundry,83.50,0.00,83.50
Regeneration Economy and Growth,Corporate Property and Land,010525,Catering - Green Lane,Supplies and Services,324117,Provisions E324,06-Mar-2022,000009971228203,BATLEYS PERTH,5300,Catering costs - provisions,115.74,19.29,96.45
Regeneration Economy and Growth,Corporate Property and Land,010525,Catering - Green Lane,Supplies and Services,324117,Provisions E324,06-Mar-2022,000009971228203 - 1,BATLEYS PERTH,5300,Catering costs - provisions,52.30,,52.30
Regeneration Economy and Growth,Corporate Property and Land,010525,Catering - Green Lane,Supplies and Services,324117,Provisions E324,06-Mar-2022,000009971228211,BATLEYS PERTH,5300,Catering costs - provisions,7.39,0.00,7.39
Regeneration Economy and Growth,Corporate Property and Land,030691,Catering - Durham Dales Centre,Supplies and Services,342033,Computers and Communications,07-Mar-2022,000008026096224,WWW.NISBETS.COM,5964,Computer hardware,80.42,0.00,80.42
Regeneration Economy and Growth,Corporate Property and Land,011296,Catering - Crimdon Dene Hub,Supplies and Services,324117,Provisions E324,07-Mar-2022,000008047638470,BATLEYS PERTH,5300,Catering costs - provisions,226.20,37.70,188.50
Regeneration Economy and Growth,Corporate Property and Land,011296,Catering - Crimdon Dene Hub,Supplies and Services,324117,Provisions E324,07-Mar-2022,000008047638470 - 1,BATLEYS PERTH,5300,Catering costs - provisions,41.68,,41.68
Regeneration Economy and Growth,Corporate Property and Land,011296,Catering - Crimdon Dene Hub,Supplies and Services,324117,Provisions E324,07-Mar-2022,000008047638472,BATLEYS PERTH,5300,Catering costs - provisions,11.14,0.00,11.14
Resources BK0010,Digital and Customer Services,011103,Digital Solutions,Supplies and Services,342033,Computers and Communications,07-Mar-2022,000009964281405,FONT AWESOME STANDARD,7372,Computer hardware,2.06,0.00,2.06
Children and Young Peoples Services,Head of Childrens Social Care,085358,Orchard House Sacriston Solo Home,Supplies and Services,372009,Subscriptions E372,07-Mar-2022,000009964281637,NETFLIX.COM,4899,Subscriptions 372009,13.99,0.00,13.99
Resources BK0010,Digital and Customer Services,065432,Web Development Group,Supplies and Services,342033,Computers and Communications,07-Mar-2022,000009971140665,WPMU DEV INCSUBFEE.COM,7372,Computer hardware,14.39,0.00,14.39
Resources BK0010,Legal & Democratic Services,069340,Litigation Child Care/Adult,Supplies and Services,372009,Subscriptions E372,07-Mar-2022,000009971140671,WWW.BARPROFESSIONALTRA,8111,Subscriptions 372009,438.00,0.00,438.00
Resources BK0010,Legal & Democratic Services,069326,Practice Management,Supplies and Services,304259,Equipment and Materials,07-Mar-2022,000009971140701,DARLINGTON BC INTERNET,9399,Equipment-purchase and rental,11.00,0.00,11.00
Children and Young Peoples Services,Head of Childrens Social Care,085332,Middlestone Moor CU,Supplies and Services,304999,Equipment and Materials,07-Mar-2022,000009971140727,WILKO RETAIL LIMITED,5399,Misc equipment tools and materials,8.00,0.00,8.00
Children and Young Peoples Services,Head of Childrens Social Care,085332,Middlestone Moor CU,Supplies and Services,324117,Provisions E324,07-Mar-2022,000009971140735,TESCO STORES 2371,5411,Catering costs - provisions,153.82,0.00,153.82
Children and Young Peoples Services,Head of Education and Skills,078100,Curric and Professional Development 078100,Supplies and Services,342033,Computers and Communications,07-Mar-2022,000009971140757,STK Shutterstock,7333,Computer hardware,22.80,0.00,22.80
Children and Young Peoples Services,Head of Early Help Inclusion & Vulnerable Children.,071489,Winter Family Fund,Supplies and Services,384700,Miscellaneous Expenses,07-Mar-2022,000009971140821,MAGUIRES,5713,Miscellaneous grants,475.00,79.17,395.83
Children and Young Peoples Services,Head of Early Help Inclusion & Vulnerable Children.,071489,Winter Family Fund,Supplies and Services,384700,Miscellaneous Expenses,07-Mar-2022,000009971140825,MAGUIRES,5713,Miscellaneous grants,451.00,75.17,375.83
Children and Young Peoples Services,Head of Early Help Inclusion & Vulnerable Children.,079599,Psychological-HQ,Employees,040149,Recruitment Instruction and Training,07-Mar-2022,000009971140859,UNI OF EDINBURGH,8220,Training-all costs,40.00,0.00,40.00
Children and Young Peoples Services,Head of Childrens Social Care,085511,Emergency Duty Team,Supplies and Services,352001,Conference Expenses,07-Mar-2022,000009971140871,TRAVELODGE,3615,Conferencesseminars fees etc,53.02,0.00,53.02
Children and Young Peoples Services,Head of Early Help Inclusion & Vulnerable Children.,074000,National Supporting Families Programme,Supplies and Services,304403,Equipment and Materials,07-Mar-2022,000009971140939,AMZNMktplace,5999,Other consumables,129.99,21.67,108.32
Children and Young Peoples Services,Head of Early Help Inclusion & Vulnerable Children.,074000,National Supporting Families Programme,Supplies and Services,384999,Miscellaneous Expenses,07-Mar-2022,000009971140945,Amazon.co.uk 2X6JU31J4,5969,Other expenses,179.00,29.83,149.17
Children and Young Peoples Services,Head of Childrens Social Care,085551,Short Break Services-Park Hse Sher,Supplies and Services,324117,Provisions E324,07-Mar-2022,000009971140999,ICELAND FOODS,5411,Catering costs - provisions,-6.75,0.00,-6.75
Children and Young Peoples Services,Head of Childrens Social Care,085358,Orchard House Sacriston Solo Home,Supplies and Services,304403,Equipment and Materials,07-Mar-2022,000009971141015,AMZNMKTPLACE AMAZON.CO,5999,Other consumables,15.99,2.67,13.32
Children and Young Peoples Services,Head of Education and Skills,071732,Dean Bank Childcare,Supplies and Services,304403,Equipment and Materials,07-Mar-2022,000009971141055,AMZNMktplace,5999,Other consumables,32.03,0.00,32.03
Children and Young Peoples Services,Head of Education and Skills,071732,Dean Bank Childcare,Supplies and Services,304403,Equipment and Materials,07-Mar-2022,000009971141057,AMZNMktplace,5999,Other consumables,53.97,0.00,53.97
Children and Young Peoples Services,Head of Education and Skills,071732,Dean Bank Childcare,Supplies and Services,324117,Provisions E324,07-Mar-2022,000009971141063,B&M 147 - FERRYHILL,5399,Catering costs - provisions,71.02,0.00,71.02
Children and Young Peoples Services,Head of Early Help Inclusion & Vulnerable Children.,085962,Aycliffe Secure - Durham,Supplies and Services,304403,Equipment and Materials,07-Mar-2022,000009971141085,AMZNMktplace,5999,Other consumables,4.20,0.70,3.50
Children and Young Peoples Services,Head of Early Help Inclusion & Vulnerable Children.,085962,Aycliffe Secure - Durham,Supplies and Services,304403,Equipment and Materials,07-Mar-2022,000009971141089,AMZNMktplace,5999,Other consumables,2.49,0.00,2.49
Children and Young Peoples Services,Head of Early Help Inclusion & Vulnerable Children.,085962,Aycliffe Secure - Durham,Supplies and Services,304403,Equipment and Materials,07-Mar-2022,000009971141091,AMZNMktplace,5999,Other consumables,5.95,0.99,4.96
Regeneration Economy and Growth,Development and Housing,030771,Durham Advance Flexible Fund,Transport,235057,Public Transport,07-Mar-2022,000009971141133,WWW.GONORTHEAST.CO.UK,4111,Staff travelling,17.00,0.00,17.00
Regeneration Economy and Growth,Development and Housing,030771,Durham Advance Flexible Fund,Transport,235057,Public Transport,07-Mar-2022,000009971141135,WWW.GONORTHEAST.CO.UK,4111,Staff travelling,4.50,0.00,4.50
Regeneration Economy and Growth,Development and Housing,030771,Durham Advance Flexible Fund,Transport,235057,Public Transport,07-Mar-2022,000009971141137,WWW.GONORTHEAST.CO.UK,4111,Staff travelling,4.50,0.00,4.50
Regeneration Economy and Growth,Development and Housing,030771,Durham Advance Flexible Fund,Transport,235057,Public Transport,07-Mar-2022,000009971141141,WWW.GONORTHEAST.CO.UK,4111,Staff travelling,17.00,0.00,17.00
Children and Young Peoples Services,Head of Early Help Inclusion & Vulnerable Children.,071445,Chester le Street One Point Hub,Transport,235057,Public Transport,07-Mar-2022,000009971141147,SUNDERLAND CC,7523,Staff travelling,-11.00,0.00,-11.00
Resources BK0010,People & Talent Management,010984,Training and Development,Employees,040149,Recruitment Instruction and Training,07-Mar-2022,000009971141157,PAYPAL NPORS LTD,8699,Training-all costs,24.00,0.00,24.00
Resources BK0010,People & Talent Management,010984,Training and Development,Employees,040149,Recruitment Instruction and Training,07-Mar-2022,000009971141161,PAYPAL NPORS LTD,8699,Training-all costs,24.00,0.00,24.00
Children and Young Peoples Services,Head of Childrens Social Care,085625,Families First Spennymoor,Supplies and Services,364301,Grants to Voluntary Organisations,07-Mar-2022,000009971141237,Hotel at Booking.com,7011,Hardship,153.09,0.00,153.09
Children and Young Peoples Services,Head of Childrens Social Care,085719,Covid Outbreak Funded Foster Carer Recruitment,Supplies and Services,304259,Equipment and Materials,07-Mar-2022,000009971141239,THE FLORIST SHOP,5992,Equipment-purchase and rental,215.00,0.00,215.00
Neighbourhoods and Climate Change,Environmental Services,010367,C&G - South Grounds Maintenance,Supplies and Services,304221,Equipment and Materials,07-Mar-2022,000009971141261,MKM BUILD SUPP (BISHOP,5211,Direct materials,347.18,0.00,347.18
Adult and Health Services,Head of Adults,055643,Hawthorn House LD Respite Unit,Supplies and Services,304403,Equipment and Materials,07-Mar-2022,000009971141277,AMZNMktplace,5999,Other consumables,149.10,24.85,124.25
Children and Young Peoples Services,Head of Education and Skills,071802,Louisa Cent Nursery,Supplies and Services,324117,Provisions E324,07-Mar-2022,000009971141285,ASDA SUPERSTORE,5411,Catering costs - provisions,2.03,0.00,2.03
Children and Young Peoples Services,Head of Childrens Social Care,085333,Coxhoe Satelite Home,Supplies and Services,324117,Provisions E324,07-Mar-2022,000009971141293,TESCO STORES 2371,5411,Catering costs - provisions,19.90,0.00,19.90
Children and Young Peoples Services,Head of Education and Skills,071732,Dean Bank Childcare,Supplies and Services,324117,Provisions E324,07-Mar-2022,000009971141339,ASDA GROCERIES ONLINE,5411,Catering costs - provisions,46.96,0.00,46.96
Neighbourhoods and Climate Change,Environmental Services,031202,North Pennines - Peatscapes,Supplies and Services,352001,Conference Expenses,07-Mar-2022,000009971141409,TAN HILL INN,7011,Conferencesseminars fees etc,33.90,0.00,33.90
Children and Young Peoples Services,Head of Childrens Social Care,085334,West Rainton Satelite Home,Supplies and Services,324117,Provisions E324,07-Mar-2022,000009971141431,TESCO STORES 2371,5411,Catering costs - provisions,122.24,0.00,122.24
Children and Young Peoples Services,Head of Education and Skills,078100,Curric and Professional Development 078100,Supplies and Services,384999,Miscellaneous Expenses,07-Mar-2022,000009971141441,Amazon.co.uk 2X7W87PW4,5969,Other expenses,13.74,0.00,13.74
Children and Young Peoples Services,Head of Childrens Social Care,085334,West Rainton Satelite Home,Supplies and Services,324117,Provisions E324,07-Mar-2022,000009971141451,TESCO STORES 2371,5411,Catering costs - provisions,139.27,0.00,139.27
Children and Young Peoples Services,Head of Childrens Social Care,085334,West Rainton Satelite Home,Supplies and Services,324117,Provisions E324,07-Mar-2022,000009971141459,TESCO STORES 2371,5411,Catering costs - provisions,-1.15,0.00,-1.15
Children and Young Peoples Services,Head of Early Help Inclusion & Vulnerable Children.,085952,Secure Education,Supplies and Services,324117,Provisions E324,07-Mar-2022,000009971141531,TESCO STORES 6329,5411,Catering costs - provisions,165.95,0.00,165.95
Resources BK0010,Corporate Finance & Commercial Services,066820,Occupational Health Service,Supplies and Services,372009,Subscriptions E372,07-Mar-2022,000009971141553,STERLING/HEALTHATWORK,7299,Subscriptions 372009,216.00,0.00,216.00
Resources BK0010,Procurement Sales & Business Services,065503,Business Support - Spectrum,Supplies and Services,308011,Furniture,07-Mar-2022,000009971141591,MAGUIRES,5713,Furniture repair and replacement,491.00,0.00,491.00
Resources BK0010,Procurement Sales & Business Services,065503,Business Support - Spectrum,Supplies and Services,308011,Furniture,07-Mar-2022,000009971141593,THE FLOORING STORE,5713,Furniture repair and replacement,425.00,0.00,425.00
Resources BK0010,Procurement Sales & Business Services,065503,Business Support - Spectrum,Supplies and Services,324117,Provisions E324,07-Mar-2022,000009971141597,ASDA STORES LTD,5411,Catering costs - provisions,101.32,0.00,101.32
Children and Young Peoples Services,Head of Education and Skills,071802,Louisa Cent Nursery,Supplies and Services,324117,Provisions E324,07-Mar-2022,000009971141745,ASDA SUPERSTORE,5411,Catering costs - provisions,8.00,0.00,8.00
Regeneration Economy and Growth,Development and Housing,031617,Project Beta Sustainability Fund,Supplies and Services,384999,Miscellaneous Expenses,07-Mar-2022,000009971141781,TESCO STORES 2371,5411,Other expenses,42.00,0.00,42.00
Children and Young Peoples Services,Head of Childrens Social Care,085332,Middlestone Moor CU,Supplies and Services,304999,Equipment and Materials,07-Mar-2022,000009971141835,HOME BARGAINS SPENNYMO,5251,Misc equipment tools and materials,22.23,0.00,22.23
Regeneration Economy and Growth,Culture Sport and Tourism,054233,Bishop Auckland Town Hall Library,Supplies and Services,324117,Provisions E324,07-Mar-2022,000009971141839,WILKO RETAIL LIMITED,5399,Catering costs - provisions,10.00,0.00,10.00
Regeneration Economy and Growth,Culture Sport and Tourism,054233,Bishop Auckland Town Hall Library,Supplies and Services,324117,Provisions E324,07-Mar-2022,000009971141841,HERON FOODS,5411,Catering costs - provisions,3.25,0.00,3.25
Regeneration Economy and Growth,Culture Sport and Tourism,054820,Gala Theatre - Overheads,Supplies and Services,324117,Provisions E324,07-Mar-2022,000009971141857,TESCO STORES 6029,5411,Catering costs - provisions,8.86,0.00,8.86
Regeneration Economy and Growth,Culture Sport and Tourism,054820,Gala Theatre - Overheads,Supplies and Services,304403,Equipment and Materials,07-Mar-2022,000009971141863,AMZNMktplace,5999,Other consumables,9.99,0.00,9.99
Resources BK0010,Procurement Sales & Business Services,065500,Business Support - Management,Supplies and Services,340001,Postages E340,07-Mar-2022,000009971141901,ROYAL MAIL REDIRECTION,9402,Postages,"1,557.00",0.00,1557.00
Resources BK0010,Procurement Sales & Business Services,065500,Business Support - Management,Supplies and Services,304403,Equipment and Materials,07-Mar-2022,000009971141905,AMZNMktplace,5999,Other consumables,28.56,4.76,23.80
Resources BK0010,Procurement Sales & Business Services,065500,Business Support - Management,Supplies and Services,304403,Equipment and Materials,07-Mar-2022,000009971141907,AMZNMktplace,5999,Other consumables,8.89,1.48,7.41
Children and Young Peoples Services,Head of Childrens Social Care,085551,Short Break Services-Park Hse Sher,Supplies and Services,304403,Equipment and Materials,07-Mar-2022,000009971141973,AMZNMktplace,5999,Other consumables,34.98,0.00,34.98
Neighbourhoods and Climate Change,Environmental Services,031200,North Pennines Core,Supplies and Services,308011,Furniture,07-Mar-2022,000009971141997,DUNELM SOFT FURNISHING,5714,Furniture repair and replacement,10.00,0.00,10.00
Neighbourhoods and Climate Change,Environmental Services,031200,North Pennines Core,Supplies and Services,308011,Furniture,07-Mar-2022,000009971142001,IKEA LTD 143 GATESHEAD,5712,Furniture repair and replacement,35.00,0.00,35.00
Neighbourhoods and Climate Change,Partnerships & Community Engagement Div.,060472,Humanitarian Support programme,Supplies and Services,308011,Furniture,07-Mar-2022,000009971142027,247blinds.co.uk,5714,Furniture repair and replacement,377.83,62.97,314.86
Neighbourhoods and Climate Change,Partnerships & Community Engagement Div.,060472,Humanitarian Support programme,Supplies and Services,308011,Furniture,07-Mar-2022,000009971142031,SP TERRYS FABRICS,5719,Furniture repair and replacement,123.93,20.66,103.27
Children and Young Peoples Services,Head of Early Help Inclusion & Vulnerable Children.,088112,Seaham & Central Durham Intensive Family Support Team,Supplies and Services,384302,Miscellaneous Expenses,07-Mar-2022,000009971142075,Amazon.co.uk 2X7MI2PZ4,5969,Activity expenses,31.86,5.31,26.55
Children and Young Peoples Services,Head of Early Help Inclusion & Vulnerable Children.,088112,Seaham & Central Durham Intensive Family Support Team,Supplies and Services,384302,Miscellaneous Expenses,07-Mar-2022,000009971142075 - 1,Amazon.co.uk 2X7MI2PZ4,5969,Activity expenses,12.28,,12.28
Regeneration Economy and Growth,Corporate Property and Land,010525,Catering - Green Lane,Supplies and Services,324117,Provisions E324,07-Mar-2022,000009971228213,JR HOLLAND FOODSERVICE,5499,Catering costs - provisions,50.33,0.00,50.33
Regeneration Economy and Growth,Corporate Property and Land,011275,Catering -Durham Leadership Centre,Supplies and Services,324117,Provisions E324,07-Mar-2022,000009971228219,JR HOLLAND FOODSERVICE,5499,Catering costs - provisions,58.90,0.00,58.90
Regeneration Economy and Growth,Culture Sport and Tourism,011265,Empire Theatre (Operations),Supplies and Services,324117,Provisions E324,07-Mar-2022,000009971228223,JR HOLLAND FOODSERVICE,5499,Catering costs - provisions,15.41,0.00,15.41
Regeneration Economy and Growth,Corporate Property and Land,011296,Catering - Crimdon Dene Hub,Supplies and Services,324117,Provisions E324,07-Mar-2022,000009971228229,JR HOLLAND FOODSERVICE,5499,Catering costs - provisions,49.32,0.00,49.32
Regeneration Economy and Growth,Culture Sport and Tourism,054235,Bishop Auckland Town Hall Cafe,Supplies and Services,324117,Provisions E324,07-Mar-2022,000009971228235,JR HOLLAND FOODSERVICE,5499,Catering costs - provisions,287.64,0.00,287.64
Regeneration Economy and Growth,Culture Sport and Tourism,054235,Bishop Auckland Town Hall Cafe,Supplies and Services,324117,Provisions E324,07-Mar-2022,000009971228239,JR HOLLAND FOODSERVICE,5499,Catering costs - provisions,6.50,0.00,6.50
Adult and Health Services,Head of Adults,055643,Hawthorn House LD Respite Unit,Supplies and Services,324117,Provisions E324,07-Mar-2022,000009971228249,JR HOLLAND FOODSERVICE,5499,Catering costs - provisions,19.26,0.00,19.26
Regeneration Economy and Growth,Corporate Property and Land,021235,Catering - Wharton Park,Supplies and Services,324117,Provisions E324,07-Mar-2022,000009971228257,JR HOLLAND FOODSERVICE,5499,Catering costs - provisions,35.77,0.00,35.77
Regeneration Economy and Growth,Culture Sport and Tourism,054812,Gala Theatre - Catering etc,Supplies and Services,324117,Provisions E324,07-Mar-2022,000009971228263,JR HOLLAND FOODSERVICE,5499,Catering costs - provisions,28.11,0.00,28.11
Regeneration Economy and Growth,Corporate Property and Land,021242,Catering - County Hall,Supplies and Services,324117,Provisions E324,07-Mar-2022,000009971228267,JR HOLLAND FOODSERVICE,5499,Catering costs - provisions,167.28,0.00,167.28
Regeneration Economy and Growth,Business Durham CL0850,030689,Inward Investment and Aftercare,Supplies and Services,342222,Computers and Communications,07-Mar-2022,000009974763769,FASTHOSTS,4816,Comp hardware purch-network servers,6.34,0.00,6.34
Children and Young Peoples Services,Head of Education and Skills,075029,Poverty Action Group,Supplies and Services,336005,Advertising E336,07-Mar-2022,000009974763875,TERRAQUEST SOLUTIONS L,5045,Advertising other than for staff,13.20,0.00,13.20
Regeneration Economy and Growth,Culture Sport and Tourism,030705,Visit County Durham 030705,Supplies and Services,384199,Miscellaneous Expenses,07-Mar-2022,000009974763893,FASTHOSTS,4816,Other hired and contracted services,6.34,1.06,5.28
Children and Young Peoples Services,Head of Education and Skills,071732,Dean Bank Childcare,Supplies and Services,324117,Provisions E324,07-Mar-2022,000009974764099,CO-OP GROUP 010503,5411,Catering costs - provisions,13.25,0.00,13.25
Children and Young Peoples Services,Head of Education and Skills,071732,Dean Bank Childcare,Supplies and Services,324117,Provisions E324,07-Mar-2022,000009974764101,Wm Morrisons Store Pic,5411,Catering costs - provisions,83.91,0.00,83.91
Regeneration Economy and Growth,Development and Housing,031500,Housing Solutions - Core,Supplies and Services,304259,Equipment and Materials,07-Mar-2022,000009974764227,WWW.DURHAM.GOV.UK,9399,Equipment-purchase and rental,11.00,0.00,11.00
Children and Young Peoples Services,Head of Childrens Social Care,085331,New Lea Childrens Home,Supplies and Services,328041,Clothing uniforms and laundry E328,07-Mar-2022,000009974764229,POUNDLAND LTD 1597,5310,Clothing uniforms and laundry,8.00,0.00,8.00
Children and Young Peoples Services,Head of Childrens Social Care,085331,New Lea Childrens Home,Supplies and Services,324117,Provisions E324,07-Mar-2022,000009974764231,WM MORRISONS STORE,5411,Catering costs - provisions,11.75,0.00,11.75
Neighbourhoods and Climate Change,Environmental Services,031202,North Pennines - Peatscapes,Transport,215995,Running Costs of Vehicles,07-Mar-2022,000009974764473,SHELL Edenside Garage,5541,Vehicle running expenses,7.00,0.00,7.00
Adult and Health Services,Head of Adults,052229,Countywide AMHP Team,Supplies and Services,338048,Services,07-Mar-2022,000009974764575,HMCTS GRIMSBY&SCUNTHOR,9222,Court costs 338048,81.00,0.00,81.00
Children and Young Peoples Services,Head of Childrens Social Care,085351,Framwellgate Moor CU,Supplies and Services,324117,Provisions E324,07-Mar-2022,000009974764681,SAINSBURYS LOCAL,5411,Catering costs - provisions,9.00,0.00,9.00
Regeneration Economy and Growth,Culture Sport and Tourism,054233,Bishop Auckland Town Hall Library,Supplies and Services,328041,Clothing uniforms and laundry E328,07-Mar-2022,000009974764725,THEWORKS,5310,Clothing uniforms and laundry,2.00,0.00,2.00
Regeneration Economy and Growth,Culture Sport and Tourism,054233,Bishop Auckland Town Hall Library,Supplies and Services,324117,Provisions E324,07-Mar-2022,000009974764731,WM MORRISONS STORE,5411,Catering costs - provisions,75.75,0.00,75.75
Neighbourhoods and Climate Change,Partnerships & Community Engagement Div.,060472,Humanitarian Support programme,Supplies and Services,308011,Furniture,07-Mar-2022,000009974764909,The Range,5719,Furniture repair and replacement,107.90,17.98,89.92
Regeneration Economy and Growth,Corporate Property and Land,030691,Catering - Durham Dales Centre,Supplies and Services,342033,Computers and Communications,07-Mar-2022,000009974764911,WWW.NISBETS.COM,5964,Computer hardware,696.87,0.00,696.87
Regeneration Economy and Growth,Corporate Property and Land,030691,Catering - Durham Dales Centre,Supplies and Services,324117,Provisions E324,07-Mar-2022,000009974821569,BATLEYS PERTH,5300,Catering costs - provisions,30.36,5.06,25.30
Regeneration Economy and Growth,Corporate Property and Land,030691,Catering - Durham Dales Centre,Supplies and Services,324117,Provisions E324,07-Mar-2022,000009974821569 - 1,BATLEYS PERTH,5300,Catering costs - provisions,108.37,,108.37
Regeneration Economy and Growth,Corporate Property and Land,030691,Catering - Durham Dales Centre,Supplies and Services,324117,Provisions E324,07-Mar-2022,000009974821571,BATLEYS PERTH,5300,Catering costs - provisions,9.65,1.61,8.04
Regeneration Economy and Growth,Culture Sport and Tourism,054812,Gala Theatre - Catering etc,Supplies and Services,324117,Provisions E324,07-Mar-2022,000009974821581,BATLEYS PERTH,5300,Catering costs - provisions,179.04,29.84,149.20
Regeneration Economy and Growth,Culture Sport and Tourism,054812,Gala Theatre - Catering etc,Supplies and Services,324117,Provisions E324,07-Mar-2022,000009974821581 - 1,BATLEYS PERTH,5300,Catering costs - provisions,97.98,,97.98
Resources BK0010,Digital and Customer Services,065432,Web Development Group,Supplies and Services,342033,Computers and Communications,08-Mar-2022,000009971140675,WPMU DEV INCSUBFEE.COM,7372,Computer hardware,0.40,0.00,0.40
Regeneration Economy and Growth,Culture Sport and Tourism,054967,Theatre - Technical Staffing,Supplies and Services,304403,Equipment and Materials,08-Mar-2022,000009971141067,AMZNMktplace,5999,Other consumables,338.94,56.49,282.45
Regeneration Economy and Growth,Culture Sport and Tourism,054967,Theatre - Technical Staffing,Supplies and Services,304403,Equipment and Materials,08-Mar-2022,000009971141067 - 1,AMZNMktplace,5999,Other consumables,0.03,,0.03
Children and Young Peoples Services,Head of Childrens Social Care,085612,Families First Consett,Charges,720130,Fees and Charges,08-Mar-2022,000009974763775,HM PASSPORT OFFICE,9399,Fees-legal,49.00,0.00,49.00
Children and Young Peoples Services,Head of Childrens Social Care,085612,Families First Consett,Charges,720130,Fees and Charges,08-Mar-2022,000009974763777,HM PASSPORT OFFICE,9399,Fees-legal,49.00,0.00,49.00
Children and Young Peoples Services,Head of Education and Skills,071801,Selby Cottage Childcare Centre,Supplies and Services,304999,Equipment and Materials,08-Mar-2022,000009974763791,Amazon Prime 2X8Y28XT4,5968,Misc equipment tools and materials,7.99,1.33,6.66
Children and Young Peoples Services,Head of Childrens Social Care,085404,COMF bid Targeted interventions for CYPS,Supplies and Services,304403,Equipment and Materials,08-Mar-2022,000009974763807,AMZNMktplace,5999,Other consumables,67.98,11.34,56.64
Children and Young Peoples Services,Head of Childrens Social Care,085404,COMF bid Targeted interventions for CYPS,Supplies and Services,304403,Equipment and Materials,08-Mar-2022,000009974763811,AMZNMktplace,5999,Other consumables,475.86,79.38,396.48
Children and Young Peoples Services,Head of Childrens Social Care,085404,COMF bid Targeted interventions for CYPS,Supplies and Services,304403,Equipment and Materials,08-Mar-2022,000009974763815,AMZNMKTPLACE AMAZON.CO,5999,Other consumables,475.86,79.38,396.48
Children and Young Peoples Services,Head of Childrens Social Care,085404,COMF bid Targeted interventions for CYPS,Supplies and Services,384999,Miscellaneous Expenses,08-Mar-2022,000009974763819,Amazon.co.uk 2X61Z1V54,5969,Other expenses,37.44,6.24,31.20
Children and Young Peoples Services,Head of Childrens Social Care,085404,COMF bid Targeted interventions for CYPS,Supplies and Services,384999,Miscellaneous Expenses,08-Mar-2022,000009974763823,Amazon.co.uk 2X7P90VC4,5969,Other expenses,62.40,10.40,52.00
Children and Young Peoples Services,Head of Early Help Inclusion & Vulnerable Children.,088101,Bullion Lane & Brandon Family Centre,Supplies and Services,304403,Equipment and Materials,08-Mar-2022,000009974763827,AMZNMktplace,5999,Other consumables,74.95,12.50,62.45
Children and Young Peoples Services,Head of Early Help Inclusion & Vulnerable Children.,088101,Bullion Lane & Brandon Family Centre,Supplies and Services,304403,Equipment and Materials,08-Mar-2022,000009974763829,AMZNMktplace,5999,Other consumables,29.98,5.00,24.98
Resources BK0010,Digital and Customer Services,065329,Operations - Primary Support,Supplies and Services,304403,Equipment and Materials,08-Mar-2022,000009974763833,AMZNMktplace,5999,Other consumables,10.39,0.00,10.39
Resources BK0010,Legal & Democratic Services,069326,Practice Management,Supplies and Services,304259,Equipment and Materials,08-Mar-2022,000009974763859,CITY OF NEWCASTLE INTE,9399,Equipment-purchase and rental,22.00,0.00,22.00
Resources BK0010,Legal & Democratic Services,069326,Practice Management,Supplies and Services,304259,Equipment and Materials,08-Mar-2022,000009974763863,GATESHEAD COUNCIL INT,9399,Equipment-purchase and rental,11.00,0.00,11.00
Neighbourhoods and Climate Change,Environmental Services,010383,C&G - South Street Cleansing,Supplies and Services,304221,Equipment and Materials,08-Mar-2022,000009974763887,CARRS BILLINGTON SPENN,5599,Direct materials,39.98,0.00,39.98
Regeneration Economy and Growth,Culture Sport and Tourism,030712,VCD - Project Delivery,Supplies and Services,384199,Miscellaneous Expenses,08-Mar-2022,000009974763899,PAYPAL WEBALON,5817,Other hired and contracted services,5.93,0.00,5.93
Children and Young Peoples Services,Head of Childrens Social Care,085341,High Etherley Satelite Home,Supplies and Services,384999,Miscellaneous Expenses,08-Mar-2022,000009974763915,Amazon.co.uk 2X83P4V24,5969,Other expenses,156.75,26.13,130.62
Regeneration Economy and Growth,Development and Housing,031623,Rough Sleeping,Supplies and Services,304403,Equipment and Materials,08-Mar-2022,000009974763933,TESCO STORES 6810,5411,Other consumables,200.00,0.00,200.00
Regeneration Economy and Growth,Development and Housing,031623,Rough Sleeping,Supplies and Services,304403,Equipment and Materials,08-Mar-2022,000009974763939,TESCO STORES 6810,5411,Other consumables,200.00,0.00,200.00
Regeneration Economy and Growth,Development and Housing,031623,Rough Sleeping,Supplies and Services,304403,Equipment and Materials,08-Mar-2022,000009974763943,TESCO STORES 6810,5411,Other consumables,200.00,0.00,200.00
Regeneration Economy and Growth,Development and Housing,031623,Rough Sleeping,Supplies and Services,304403,Equipment and Materials,08-Mar-2022,000009974763945,TESCO STORES 6810,5411,Other consumables,200.00,0.00,200.00
Regeneration Economy and Growth,Development and Housing,031623,Rough Sleeping,Supplies and Services,304403,Equipment and Materials,08-Mar-2022,000009974763947,TESCO STORES 6810,5411,Other consumables,200.00,0.00,200.00
Regeneration Economy and Growth,Development and Housing,031623,Rough Sleeping,Supplies and Services,304403,Equipment and Materials,08-Mar-2022,000009974763949,TESCO STORES 6810,5411,Other consumables,200.00,0.00,200.00
Regeneration Economy and Growth,Development and Housing,031623,Rough Sleeping,Supplies and Services,304403,Equipment and Materials,08-Mar-2022,000009974763953,TESCO STORES 6810,5411,Other consumables,200.00,0.00,200.00
Regeneration Economy and Growth,Development and Housing,031623,Rough Sleeping,Supplies and Services,304403,Equipment and Materials,08-Mar-2022,000009974763955,TESCO STORES 6810,5411,Other consumables,200.00,0.00,200.00
Regeneration Economy and Growth,Development and Housing,031623,Rough Sleeping,Supplies and Services,304403,Equipment and Materials,08-Mar-2022,000009974763957,TESCO STORES 6810,5411,Other consumables,200.00,0.00,200.00
Regeneration Economy and Growth,Development and Housing,031623,Rough Sleeping,Supplies and Services,304403,Equipment and Materials,08-Mar-2022,000009974763959,TESCO STORES 6810,5411,Other consumables,200.00,0.00,200.00
Children and Young Peoples Services,Head of Childrens Social Care,085341,High Etherley Satelite Home,Supplies and Services,304403,Equipment and Materials,08-Mar-2022,000009974763963,MAX SPIELMANN LTD,5999,Other consumables,18.50,0.00,18.50
Children and Young Peoples Services,Head of Childrens Social Care,085341,High Etherley Satelite Home,Supplies and Services,328041,Clothing uniforms and laundry E328,08-Mar-2022,000009974763967,W BOYES & CO LTD SOUTH,5310,Clothing uniforms and laundry,39.86,0.00,39.86
Children and Young Peoples Services,Head of Early Help Inclusion & Vulnerable Children.,085957,Secure Management,Supplies and Services,304403,Equipment and Materials,08-Mar-2022,000009974764021,AMZNMktplace,5999,Other consumables,18.00,3.00,15.00
Children and Young Peoples Services,Head of Early Help Inclusion & Vulnerable Children.,085957,Secure Management,Supplies and Services,304403,Equipment and Materials,08-Mar-2022,000009974764021 - 1,AMZNMktplace,5999,Other consumables,9.96,,9.96
Children and Young Peoples Services,Head of Early Help Inclusion & Vulnerable Children.,085952,Secure Education,Supplies and Services,308011,Furniture,08-Mar-2022,000009974764023,BABYLAND UK LTD,5719,Furniture repair and replacement,229.00,0.00,229.00
Children and Young Peoples Services,Head of Early Help Inclusion & Vulnerable Children.,085957,Secure Management,Supplies and Services,304403,Equipment and Materials,08-Mar-2022,000009974764025,AMZNMktplace,5999,Other consumables,65.97,11.01,54.96
Children and Young Peoples Services,Head of Early Help Inclusion & Vulnerable Children.,085957,Secure Management,Supplies and Services,304403,Equipment and Materials,08-Mar-2022,000009974764027,AMZNMktplace,5999,Other consumables,267.95,44.72,223.23
Children and Young Peoples Services,Head of Early Help Inclusion & Vulnerable Children.,074000,National Supporting Families Programme,Supplies and Services,308011,Furniture,08-Mar-2022,000009974764051,J DODDS CARPETS LTD,5713,Furniture repair and replacement,120.00,0.00,120.00
Regeneration Economy and Growth,Culture Sport and Tourism,054967,Theatre - Technical Staffing,Supplies and Services,340001,Postages E340,08-Mar-2022,000009974764107,TNT DIRECT WL,4215,Postages,19.27,0.00,19.27
Children and Young Peoples Services,Head of Early Help Inclusion & Vulnerable Children.,085962,Aycliffe Secure - Durham,Transport,235057,Public Transport,08-Mar-2022,000009974764143,Trainline.COM,4112,Staff travelling,252.46,0.00,252.46
Children and Young Peoples Services,Head of Early Help Inclusion & Vulnerable Children.,085962,Aycliffe Secure - Durham,Supplies and Services,384999,Miscellaneous Expenses,08-Mar-2022,000009974764147,Amazon.co.uk 2X0FK1X24,5969,Other expenses,29.59,4.93,24.66
Children and Young Peoples Services,Head of Early Help Inclusion & Vulnerable Children.,085962,Aycliffe Secure - Durham,Supplies and Services,304403,Equipment and Materials,08-Mar-2022,000009974764149,AMZNMktplace,5999,Other consumables,9.96,1.66,8.30
Regeneration Economy and Growth,Development and Housing,030776,LINKCD Flexible Fund,Supplies and Services,324117,Provisions E324,08-Mar-2022,000009974764161,TESCO STORES 2916,5411,Catering costs - provisions,5.20,0.00,5.20
Regeneration Economy and Growth,Development and Housing,030771,Durham Advance Flexible Fund,Transport,235057,Public Transport,08-Mar-2022,000009974764171,WWW.GONORTHEAST.CO.UK,4111,Staff travelling,34.00,0.00,34.00
Children and Young Peoples Services,Head of Early Help Inclusion & Vulnerable Children.,085956,Lumley,Transfer Payments,515002,Social Services Clients,08-Mar-2022,000009974764173,SP ISAWITFIRST.COM,5399,Pocket money,46.99,0.00,46.99
Children and Young Peoples Services,Head of Early Help Inclusion & Vulnerable Children.,085956,Lumley,Transfer Payments,515002,Social Services Clients,08-Mar-2022,000009974764175,IKRUSH,5691,Pocket money,24.98,0.00,24.98
Children and Young Peoples Services,Head of Early Help Inclusion & Vulnerable Children.,085965,Barnard,Transfer Payments,515002,Social Services Clients,08-Mar-2022,000009974764177,AMZNMktplace,5999,Pocket money,2.49,0.42,2.07
Children and Young Peoples Services,Head of Early Help Inclusion & Vulnerable Children.,085965,Barnard,Transfer Payments,515002,Social Services Clients,08-Mar-2022,000009974764181,MUSIC MAGPIE,5732,Pocket money,5.49,0.00,5.49
Children and Young Peoples Services,Head of Early Help Inclusion & Vulnerable Children.,085956,Lumley,Transfer Payments,515002,Social Services Clients,08-Mar-2022,000009974764183,PRETTYLITTLETHING.COM,5691,Pocket money,17.00,0.00,17.00
Children and Young Peoples Services,Head of Early Help Inclusion & Vulnerable Children.,085956,Lumley,Transfer Payments,515002,Social Services Clients,08-Mar-2022,000009974764185,Amazon.co.uk 2X9HA0VG4,5969,Pocket money,15.32,2.55,12.77
Children and Young Peoples Services,Head of Early Help Inclusion & Vulnerable Children.,085956,Lumley,Transfer Payments,515002,Social Services Clients,08-Mar-2022,000009974764187,Amazon.co.uk 2X9SS2V34,5969,Pocket money,6.00,1.00,5.00
Children and Young Peoples Services,Head of Early Help Inclusion & Vulnerable Children.,085965,Barnard,Transfer Payments,515002,Social Services Clients,08-Mar-2022,000009974764189,AMZNMktplace,5999,Pocket money,9.98,1.67,8.31
Neighbourhoods and Climate Change,Environmental Services,031238,North Pennines - Tees Swale,Supplies and Services,304999,Equipment and Materials,08-Mar-2022,000009974764209,MYERS BUILDING SUPPLIE,5211,Misc equipment tools and materials,198.90,0.00,198.90
Neighbourhoods and Climate Change,Environmental Services,031238,North Pennines - Tees Swale,Supplies and Services,304999,Equipment and Materials,08-Mar-2022,000009974764211,MYERS BUILDING SUPPLIE,5211,Misc equipment tools and materials,306.00,0.00,306.00
Children and Young Peoples Services,Head of Childrens Social Care,085331,New Lea Childrens Home,Supplies and Services,348037,Subsistence E348,08-Mar-2022,000009974764233,SKIFF INN,5812,Subsistence,45.30,0.00,45.30
Children and Young Peoples Services,Head of Childrens Social Care,085331,New Lea Childrens Home,Supplies and Services,348037,Subsistence E348,08-Mar-2022,000009974764235,DH9 CAFE,5814,Subsistence,16.20,0.00,16.20
Children and Young Peoples Services,Head of Childrens Social Care,085331,New Lea Childrens Home,Supplies and Services,304999,Equipment and Materials,08-Mar-2022,000009974764237,HOME BARGAINS,5251,Misc equipment tools and materials,1.79,0.00,1.79
Children and Young Peoples Services,Head of Early Help Inclusion & Vulnerable Children.,088109,Dean Bank and Tudhoe Family Centre,Supplies and Services,364301,Grants to Voluntary Organisations,08-Mar-2022,000009974764323,AMZNMktplace,5999,Hardship,106.32,17.73,88.59
Children and Young Peoples Services,Head of Early Help Inclusion & Vulnerable Children.,088109,Dean Bank and Tudhoe Family Centre,Supplies and Services,384302,Miscellaneous Expenses,08-Mar-2022,000009974764329,AMZNMktplace,5999,Activity expenses,64.95,10.85,54.10
Adult and Health Services,Head of Adults,055643,Hawthorn House LD Respite Unit,Supplies and Services,324117,Provisions E324,08-Mar-2022,000009974764407,ASDA SUPERSTORE 4987,5411,Catering costs - provisions,27.00,0.00,27.00
Children and Young Peoples Services,Head of Childrens Social Care,085351,Framwellgate Moor CU,Supplies and Services,324117,Provisions E324,08-Mar-2022,000009974764411,B&M 681 - DURHAM,5399,Catering costs - provisions,29.59,0.00,29.59
Children and Young Peoples Services,Head of Childrens Social Care,085351,Framwellgate Moor CU,Supplies and Services,304259,Equipment and Materials,08-Mar-2022,000009974764413,CURRYS DURHAM RET PK,5732,Equipment-purchase and rental,438.00,0.00,438.00
Children and Young Peoples Services,Head of Childrens Social Care,085351,Framwellgate Moor CU,Supplies and Services,304259,Equipment and Materials,08-Mar-2022,000009974764415,CURRYS DURHAM RET PK,5732,Equipment-purchase and rental,433.00,0.00,433.00
Children and Young Peoples Services,Head of Childrens Social Care,085351,Framwellgate Moor CU,Supplies and Services,304259,Equipment and Materials,08-Mar-2022,000009974764417,CURRYS DURHAM RET PK,5732,Equipment-purchase and rental,409.00,0.00,409.00
Regeneration Economy and Growth,Culture Sport and Tourism,054399,Local Delivery-Libraries,Supplies and Services,312009,Newspapers books and periodicals E312,08-Mar-2022,000009974764475,Amazon.co.uk 2X4NL1V64,5969,Newspapers books and periodicals,9.99,0.00,9.99
Regeneration Economy and Growth,Culture Sport and Tourism,054399,Local Delivery-Libraries,Supplies and Services,312009,Newspapers books and periodicals E312,08-Mar-2022,000009974764477,Amazon.co.uk 2X8OL7VO4,5969,Newspapers books and periodicals,21.98,0.00,21.98
Children and Young Peoples Services,Head of Childrens Social Care,085334,West Rainton Satelite Home,Supplies and Services,304999,Equipment and Materials,08-Mar-2022,000009974764489,HOME BARGAINS,5251,Misc equipment tools and materials,13.97,0.00,13.97
Children and Young Peoples Services,Head of Early Help Inclusion & Vulnerable Children.,085957,Secure Management,Supplies and Services,304259,Equipment and Materials,08-Mar-2022,000009974764559,AMZNMKTPLACE AMAZON.CO,5999,Equipment-purchase and rental,59.95,10.00,49.95
Resources BK0010,Finance & Transactional Services,065170,Welfare Rights 065170,Supplies and Services,304999,Equipment and Materials,08-Mar-2022,000009974764579,WESTMINSTER INSIGHT,5815,Misc equipment tools and materials,216.00,0.00,216.00
Children and Young Peoples Services,Head of Childrens Social Care,085357,LAC Bespoke Placements,Supplies and Services,304999,Equipment and Materials,08-Mar-2022,000009974764597,YPS BIRTLEYS HIDDEN GE,6513,Misc equipment tools and materials,"2,828.00",0.00,2828.00
Children and Young Peoples Services,Head of Childrens Social Care,085379,Care Leavers Team 2,Transport,235073,Public Transport,08-Mar-2022,000009974764601,WWW.GONORTHEAST.CO.UK,4111,Travel-clients/students/children,15.00,0.00,15.00
Resources BK0010,Procurement Sales & Business Services,065503,Business Support - Spectrum,Transport,235057,Public Transport,08-Mar-2022,000009974764605,WWW.GONORTHEAST.CO.UK,4111,Staff travelling,68.00,0.00,68.00
Regeneration Economy and Growth,Transport and Contracted Services,031704,Care Connect - CCTV Countywide,Supplies and Services,384956,Miscellaneous Expenses,08-Mar-2022,000009974764609,SECURITY INDUSTRY AUTH,9399,Licences,190.00,0.00,190.00
Children and Young Peoples Services,Head of Childrens Social Care,085333,Coxhoe Satelite Home,Supplies and Services,324117,Provisions E324,08-Mar-2022,000009974764687,TESCO STORES 2916,5411,Catering costs - provisions,118.59,0.00,118.59
Children and Young Peoples Services,Head of Childrens Social Care,085332,Middlestone Moor CU,Transport,235057,Public Transport,08-Mar-2022,000009974764717,ARRIVA UK BUS,4131,Staff travelling,15.00,0.00,15.00
Children and Young Peoples Services,Head of Childrens Social Care,085332,Middlestone Moor CU,Transport,235057,Public Transport,08-Mar-2022,000009974764719,ARRIVA UK BUS,4131,Staff travelling,15.00,0.00,15.00
Regeneration Economy and Growth,Development and Housing,030776,LINKCD Flexible Fund,Supplies and Services,328041,Clothing uniforms and laundry E328,08-Mar-2022,000009974764763,Old Cinema Launderette,7216,Clothing uniforms and laundry,5.00,0.00,5.00
Resources BK0010,Procurement Sales & Business Services,065500,Business Support - Management,Supplies and Services,304259,Equipment and Materials,08-Mar-2022,000009974764805,APPLE.COM/BILL,5735,Equipment-purchase and rental,0.79,0.00,0.79
Resources BK0010,Procurement Sales & Business Services,065500,Business Support - Management,Employees,040149,Recruitment Instruction and Training,08-Mar-2022,000009974764807,CREATIVE_FED,8699,Training-all costs,18.47,0.00,18.47
Resources BK0010,Procurement Sales & Business Services,065500,Business Support - Management,Supplies and Services,304403,Equipment and Materials,08-Mar-2022,000009974764809,AMZNMktplace,5999,Other consumables,35.94,6.00,29.94
Adult and Health Services,Head of Adults,055310,Positive Journeys (Tudhoe),Supplies and Services,328041,Clothing uniforms and laundry E328,08-Mar-2022,000009974764811,POUNDSTRETCHER 692,5331,Clothing uniforms and laundry,72.16,0.00,72.16
Adult and Health Services,Head of Adults,055310,Positive Journeys (Tudhoe),Supplies and Services,328041,Clothing uniforms and laundry E328,08-Mar-2022,000009974764813,POUNDSTRETCHER 692,5331,Clothing uniforms and laundry,22.21,0.00,22.21
Children and Young Peoples Services,Head of Education and Skills,076001,Music Service,Supplies and Services,304999,Equipment and Materials,08-Mar-2022,000009974764883,VMO Vimeo Plus,5968,Misc equipment tools and materials,82.80,0.00,82.80
Children and Young Peoples Services,Head of Early Help Inclusion & Vulnerable Children.,088113,Seaham & Laurel Avenue Family Centre,Supplies and Services,308011,Furniture,08-Mar-2022,000009974764921,IKEA LTD SHOP ONLINE,5712,Furniture repair and replacement,242.50,0.00,242.50
Children and Young Peoples Services,Head of Early Help Inclusion & Vulnerable Children.,088113,Seaham & Laurel Avenue Family Centre,Supplies and Services,304259,Equipment and Materials,08-Mar-2022,000009974764927,Amazon.co.uk 2X1RA9VQ4,5969,Equipment-purchase and rental,144.95,24.17,120.78
Children and Young Peoples Services,Head of Early Help Inclusion & Vulnerable Children.,088113,Seaham & Laurel Avenue Family Centre,Supplies and Services,304259,Equipment and Materials,08-Mar-2022,000009974764929,AMZNMktplace,5999,Equipment-purchase and rental,34.95,5.85,29.10
Regeneration Economy and Growth,Corporate Property and Land,011296,Catering - Crimdon Dene Hub,Supplies and Services,324117,Provisions E324,08-Mar-2022,000009974821557,JR HOLLAND FOODSERVICE,5499,Catering costs - provisions,3.60,0.00,3.60
Regeneration Economy and Growth,Corporate Property and Land,011296,Catering - Crimdon Dene Hub,Supplies and Services,324117,Provisions E324,08-Mar-2022,000009974821559,JR HOLLAND FOODSERVICE,5499,Catering costs - provisions,55.34,0.00,55.34
Regeneration Economy and Growth,Corporate Property and Land,030691,Catering - Durham Dales Centre,Supplies and Services,324117,Provisions E324,08-Mar-2022,000009974821573,JR HOLLAND FOODSERVICE,5499,Catering costs - provisions,9.25,0.00,9.25
Regeneration Economy and Growth,Culture Sport and Tourism,054235,Bishop Auckland Town Hall Cafe,Supplies and Services,324117,Provisions E324,08-Mar-2022,000009974821575,JR HOLLAND FOODSERVICE,5499,Catering costs - provisions,24.20,0.00,24.20
Regeneration Economy and Growth,Corporate Property and Land,021234,Catering - Locomotion,Supplies and Services,384999,Miscellaneous Expenses,08-Mar-2022,000009974821577,ON A ROLL SANDWICH COM,5199,Other expenses,215.27,0.00,215.27
Regeneration Economy and Growth,Culture Sport and Tourism,011263,Louisa Centre 011263,Supplies and Services,324117,Provisions E324,08-Mar-2022,000009974821579,JR HOLLAND FOODSERVICE,5499,Catering costs - provisions,25.79,0.00,25.79
Regeneration Economy and Growth,Culture Sport and Tourism,054812,Gala Theatre - Catering etc,Supplies and Services,324117,Provisions E324,08-Mar-2022,000009974821583,JR HOLLAND FOODSERVICE,5499,Catering costs - provisions,46.69,0.00,46.69
Regeneration Economy and Growth,Corporate Property and Land,021242,Catering - County Hall,Supplies and Services,384999,Miscellaneous Expenses,08-Mar-2022,000009974821585,ON A ROLL SANDWICH COM,5199,Other expenses,169.47,0.00,169.47
Regeneration Economy and Growth,Business Durham CL0850,030689,Inward Investment and Aftercare,Supplies and Services,342222,Computers and Communications,08-Mar-2022,000009979307433,FASTHOSTS,4816,Comp hardware purch-network servers,13.19,0.00,13.19
Children and Young Peoples Services,Head of Early Help Inclusion & Vulnerable Children.,088101,Bullion Lane & Brandon Family Centre,Supplies and Services,304403,Equipment and Materials,08-Mar-2022,000009979307459,AMZNMKTPLACE AMAZON.CO,5999,Other consumables,74.95,12.50,62.45
Adult and Health Services,Head of Adults,052890,Direct Payments,Supplies and Services,304403,Equipment and Materials,08-Mar-2022,000009979307461,AMZNMKTPLACE AMAZON.CO,5999,Other consumables,83.50,13.92,69.58
Regeneration Economy and Growth,Development and Housing,031623,Rough Sleeping,Supplies and Services,338099,Services,08-Mar-2022,000009979307531,Durham County CNCL,9399,Other services,76.09,0.00,76.09
Children and Young Peoples Services,Head of Childrens Social Care,085341,High Etherley Satelite Home,Supplies and Services,324117,Provisions E324,08-Mar-2022,000009979307537,WM MORRISONS STORE,5411,Catering costs - provisions,24.00,0.00,24.00
Children and Young Peoples Services,Head of Early Help Inclusion & Vulnerable Children.,085952,Secure Education,Supplies and Services,304259,Equipment and Materials,08-Mar-2022,000009979307587,DVLA DRIVER ONLINE,9399,Equipment-purchase and rental,34.00,0.00,34.00
Children and Young Peoples Services,Head of Early Help Inclusion & Vulnerable Children.,085954,Walworth,Supplies and Services,304259,Equipment and Materials,08-Mar-2022,000009979307597,JD SPORTS INTERNET,5941,Equipment-purchase and rental,-209.99,0.00,-209.99
Children and Young Peoples Services,Head of Education and Skills,071732,Dean Bank Childcare,Supplies and Services,324117,Provisions E324,08-Mar-2022,000009979307671,SAINSBURYS S/MKTS,5411,Catering costs - provisions,14.25,0.00,14.25
Children and Young Peoples Services,Head of Early Help Inclusion & Vulnerable Children.,071445,Chester le Street One Point Hub,Supplies and Services,328041,Clothing uniforms and laundry E328,08-Mar-2022,000009979307755,ARGOS LTD,5310,Clothing uniforms and laundry,162.95,0.00,162.95
Children and Young Peoples Services,Head of Early Help Inclusion & Vulnerable Children.,085965,Barnard,Transfer Payments,515002,Social Services Clients,08-Mar-2022,000009979307757,JD SPORTS INTERNET,5941,Pocket money,82.00,0.00,82.00
Children and Young Peoples Services,Head of Early Help Inclusion & Vulnerable Children.,085965,Barnard,Transfer Payments,515002,Social Services Clients,08-Mar-2022,000009979307759,JD SPORTS INTERNET,5941,Pocket money,89.00,0.00,89.00
Children and Young Peoples Services,Head of Early Help Inclusion & Vulnerable Children.,085962,Aycliffe Secure - Durham,Transfer Payments,515002,Social Services Clients,08-Mar-2022,000009979307761,JD SPORTS INTERNET,5941,Pocket money,75.00,0.00,75.00
Children and Young Peoples Services,Head of Early Help Inclusion & Vulnerable Children.,085956,Lumley,Transfer Payments,515002,Social Services Clients,08-Mar-2022,000009979307763,JD SPORTS INTERNET,5941,Pocket money,41.99,0.00,41.99
Children and Young Peoples Services,Head of Childrens Social Care,085364,Children Looked After Team 1,Supplies and Services,338045,Services,08-Mar-2022,000009979307869,GEN REGISTER OFFICE,9399,Legal expenses 338045,35.00,0.00,35.00
Children and Young Peoples Services,Head of Childrens Social Care,085366,Children Looked After Team 3,Supplies and Services,338045,Services,08-Mar-2022,000009979307871,GEN REGISTER OFFICE,9399,Legal expenses 338045,11.00,0.00,11.00
Children and Young Peoples Services,Head of Childrens Social Care,085366,Children Looked After Team 3,Supplies and Services,338045,Services,08-Mar-2022,000009979307873,GEN REGISTER OFFICE,9399,Legal expenses 338045,11.00,0.00,11.00
Regeneration Economy and Growth,Corporate Property and Land,011001,FM-Civic Bldgs-Green Lane Council Offices Spennymoor,Supplies and Services,304259,Equipment and Materials,08-Mar-2022,000009979307903,AMZNMKTPLACE AMAZON.CO,5999,Equipment-purchase and rental,5.52,0.92,4.60
Regeneration Economy and Growth,Corporate Property and Land,011001,FM-Civic Bldgs-Green Lane Council Offices Spennymoor,Supplies and Services,304259,Equipment and Materials,08-Mar-2022,000009979307903 - 1,AMZNMKTPLACE AMAZON.CO,5999,Equipment-purchase and rental,15.96,,15.96
Regeneration Economy and Growth,Business Durham CL0850,030671,Business Space 030671,Supplies and Services,342033,Computers and Communications,08-Mar-2022,000009979308043,WWW.NISBETS.COM,5964,Computer hardware,7.20,0.00,7.20
Regeneration Economy and Growth,Business Durham CL0850,030671,Business Space 030671,Supplies and Services,342033,Computers and Communications,08-Mar-2022,000009979308045,WWW.NISBETS.COM,5964,Computer hardware,51.31,0.00,51.31
Regeneration Economy and Growth,Development and Housing,030770,Durham Advance,Supplies and Services,324117,Provisions E324,08-Mar-2022,000009979308203,WM MORRISONS STORE,5411,Catering costs - provisions,0.99,0.00,0.99
Regeneration Economy and Growth,Corporate Property and Land,010525,Catering - Green Lane,Supplies and Services,324117,Provisions E324,08-Mar-2022,000009979372097,BATLEYS PERTH,5300,Catering costs - provisions,56.22,9.37,46.85
Regeneration Economy and Growth,Corporate Property and Land,010525,Catering - Green Lane,Supplies and Services,324117,Provisions E324,08-Mar-2022,000009979372097 - 1,BATLEYS PERTH,5300,Catering costs - provisions,38.40,,38.40
Neighbourhoods and Climate Change,Environmental Services,011060,C&G - Hardwick Park Catering,Supplies and Services,324117,Provisions E324,08-Mar-2022,000009979372133,BATLEYS PERTH,5300,Catering costs - provisions,266.22,44.37,221.85
Neighbourhoods and Climate Change,Environmental Services,011060,C&G - Hardwick Park Catering,Supplies and Services,324117,Provisions E324,08-Mar-2022,000009979372133 - 1,BATLEYS PERTH,5300,Catering costs - provisions,200.02,,200.02
Regeneration Economy and Growth,Corporate Property and Land,021234,Catering - Locomotion,Supplies and Services,324117,Provisions E324,08-Mar-2022,000009979372137,BATLEYS PERTH,5300,Catering costs - provisions,187.02,31.17,155.85
Regeneration Economy and Growth,Corporate Property and Land,021234,Catering - Locomotion,Supplies and Services,324117,Provisions E324,08-Mar-2022,000009979372137 - 1,BATLEYS PERTH,5300,Catering costs - provisions,36.51,,36.51
Regeneration Economy and Growth,Corporate Property and Land,021234,Catering - Locomotion,Supplies and Services,324117,Provisions E324,08-Mar-2022,000009979372139,BATLEYS PERTH,5300,Catering costs - provisions,38.21,6.37,31.84
Regeneration Economy and Growth,Corporate Property and Land,021234,Catering - Locomotion,Supplies and Services,324117,Provisions E324,08-Mar-2022,000009979372143,BATLEYS PERTH,5300,Catering costs - provisions,-47.71,-7.95,-39.76
Regeneration Economy and Growth,Corporate Property and Land,021242,Catering - County Hall,Supplies and Services,324117,Provisions E324,08-Mar-2022,000009979372147,BATLEYS PERTH,5300,Catering costs - provisions,16.14,2.69,13.45
Regeneration Economy and Growth,Corporate Property and Land,021242,Catering - County Hall,Supplies and Services,324117,Provisions E324,08-Mar-2022,000009979372147 - 1,BATLEYS PERTH,5300,Catering costs - provisions,104.14,,104.14
Children and Young Peoples Services,Head of Childrens Social Care,085364,Children Looked After Team 1,Supplies and Services,338045,Services,08-Mar-2022,000009984201581,GEN REGISTER OFFICE,9399,Legal expenses 338045,-35.00,0.00,-35.00
Children and Young Peoples Services,Head of Childrens Social Care,085333,Coxhoe Satelite Home,Supplies and Services,304999,Equipment and Materials,09-Mar-2022,000008026095878,ZORO UK,5072,Misc equipment tools and materials,123.96,0.00,123.96
Regeneration Economy and Growth,Corporate Property and Land,011296,Catering - Crimdon Dene Hub,Supplies and Services,324117,Provisions E324,09-Mar-2022,000008047638474,BATLEYS PERTH,5300,Catering costs - provisions,13.25,2.21,11.04
Children and Young Peoples Services,Head of Early Help Inclusion & Vulnerable Children.,085957,Secure Management,Supplies and Services,304403,Equipment and Materials,09-Mar-2022,000009974764029,AMZNMktplace,5999,Other consumables,108.70,18.12,90.58
Children and Young Peoples Services,Head of Early Help Inclusion & Vulnerable Children.,085957,Secure Management,Supplies and Services,304403,Equipment and Materials,09-Mar-2022,000009974764033,AMZNMktplace,5999,Other consumables,85.64,14.32,71.32
Neighbourhoods and Climate Change,Environmental Services,031228,North Pennines - Fellfoot Forward,Supplies and Services,384999,Miscellaneous Expenses,09-Mar-2022,000009974764339,Amazon.co.uk 2X59R4MH4,5969,Other expenses,4.78,0.80,3.98
Children and Young Peoples Services,Head of Childrens Social Care,085342,16 Hickstead Rise (previously 9 Cedar Ave),Supplies and Services,372009,Subscriptions E372,09-Mar-2022,000009974764423,NETFLIX.COM,4899,Subscriptions 372009,13.99,0.00,13.99
Children and Young Peoples Services,Head of Early Help Inclusion & Vulnerable Children.,085957,Secure Management,Supplies and Services,384302,Miscellaneous Expenses,09-Mar-2022,000009974764563,Microsoft Ultimate 1 M,5816,Activity expenses,10.99,0.00,10.99
Regeneration Economy and Growth,Business Durham CL0850,030689,Inward Investment and Aftercare,Supplies and Services,304999,Equipment and Materials,09-Mar-2022,000009979307435,REV.COM,7339,Misc equipment tools and materials,0.92,0.00,0.92
Regeneration Economy and Growth,Business Durham CL0850,030689,Inward Investment and Aftercare,Supplies and Services,304999,Equipment and Materials,09-Mar-2022,000009979307437,REV.COM,7339,Misc equipment tools and materials,4.59,0.00,4.59
Regeneration Economy and Growth,Business Durham CL0850,030689,Inward Investment and Aftercare,Supplies and Services,304999,Equipment and Materials,09-Mar-2022,000009979307439,MAILCHIMP MISC,5968,Misc equipment tools and materials,89.90,0.00,89.90
Children and Young Peoples Services,Head of Childrens Social Care,085404,COMF bid Targeted interventions for CYPS,Supplies and Services,384999,Miscellaneous Expenses,09-Mar-2022,000009979307463,Amazon.co.uk 2X1WA1HQ4,5969,Other expenses,21.69,0.00,21.69
Children and Young Peoples Services,Head of Childrens Social Care,085404,COMF bid Targeted interventions for CYPS,Supplies and Services,384999,Miscellaneous Expenses,09-Mar-2022,000009979307465,Amazon.co.uk 2X4LJ3H14,5969,Other expenses,325.35,0.00,325.35
Children and Young Peoples Services,Head of Childrens Social Care,085404,COMF bid Targeted interventions for CYPS,Supplies and Services,384999,Miscellaneous Expenses,09-Mar-2022,000009979307467,Amazon.co.uk 2X4MH0HZ4,5969,Other expenses,75.87,0.00,75.87
Resources BK0010,Digital and Customer Services,065481,Technical Services 065481,Supplies and Services,304999,Equipment and Materials,09-Mar-2022,000009979307469,FS.COM GBP,5072,Misc equipment tools and materials,375.00,0.00,375.00
Neighbourhoods and Climate Change,Environmental Services,010383,C&G - South Street Cleansing,Supplies and Services,328041,Clothing uniforms and laundry E328,09-Mar-2022,000009979307493,THOMAS OWEN & SONS /N/,5611,Clothing uniforms and laundry,6.78,0.00,6.78
Regeneration Economy and Growth,Culture Sport and Tourism,030705,Visit County Durham 030705,Supplies and Services,332047,Printing Stationery and Gen Off Exps,09-Mar-2022,000009979307497,AMZNMktplace,5999,Stationery,16.98,0.00,16.98
Children and Young Peoples Services,Head of Childrens Social Care,085342,16 Hickstead Rise (previously 9 Cedar Ave),Supplies and Services,340001,Postages E340,09-Mar-2022,000009979307501,POST OFFICE COUNTER,9402,Postages,2.69,0.00,2.69
Children and Young Peoples Services,Head of Childrens Social Care,085342,16 Hickstead Rise (previously 9 Cedar Ave),Supplies and Services,324117,Provisions E324,09-Mar-2022,000009979307503,Youngs Newsagents Ltd,5411,Catering costs - provisions,0.39,0.00,0.39
Children and Young Peoples Services,Head of Childrens Social Care,085332,Middlestone Moor CU,Supplies and Services,324117,Provisions E324,09-Mar-2022,000009979307507,HOME BARGAINS,5251,Catering costs - provisions,11.21,0.00,11.21
Children and Young Peoples Services,Head of Childrens Social Care,085332,Middlestone Moor CU,Supplies and Services,324117,Provisions E324,09-Mar-2022,000009979307509,LIDL GB BSHP AUCKLAND,5411,Catering costs - provisions,25.78,0.00,25.78
Children and Young Peoples Services,Head of Childrens Social Care,085332,Middlestone Moor CU,Supplies and Services,324117,Provisions E324,09-Mar-2022,000009979307511,TESCO STORES 2371,5411,Catering costs - provisions,219.49,0.00,219.49
Regeneration Economy and Growth,Development and Housing,031623,Rough Sleeping,Supplies and Services,304403,Equipment and Materials,09-Mar-2022,000009979307533,ASDA SUPERSTORE,5411,Other consumables,"1,500.00",0.00,1500.00
Regeneration Economy and Growth,Development and Housing,031623,Rough Sleeping,Supplies and Services,304403,Equipment and Materials,09-Mar-2022,000009979307535,ASDA SUPERSTORE,5411,Other consumables,99.65,0.00,99.65
Children and Young Peoples Services,Head of Early Help Inclusion & Vulnerable Children.,071489,Winter Family Fund,Supplies and Services,384700,Miscellaneous Expenses,09-Mar-2022,000009979307571,MAGUIRES,5713,Miscellaneous grants,482.00,0.00,482.00
Children and Young Peoples Services,Head of Early Help Inclusion & Vulnerable Children.,085957,Secure Management,Supplies and Services,304403,Equipment and Materials,09-Mar-2022,000009979307589,AMZNMktplace,5999,Other consumables,34.70,0.00,34.70
Children and Young Peoples Services,Head of Early Help Inclusion & Vulnerable Children.,085957,Secure Management,Supplies and Services,304403,Equipment and Materials,09-Mar-2022,000009979307591,AMZNMktplace,5999,Other consumables,5.49,0.00,5.49
Children and Young Peoples Services,Head of Early Help Inclusion & Vulnerable Children.,085957,Secure Management,Supplies and Services,304403,Equipment and Materials,09-Mar-2022,000009979307593,AMZNMktplace,5999,Other consumables,10.98,0.00,10.98
Children and Young Peoples Services,Head of Early Help Inclusion & Vulnerable Children.,085956,Lumley,Supplies and Services,328041,Clothing uniforms and laundry E328,09-Mar-2022,000009979307595,SPORTSDIRECT.COM,5691,Clothing uniforms and laundry,64.99,0.00,64.99
Regeneration Economy and Growth,Development and Housing,031576,B& B - Temp Accom,Supplies and Services,352001,Conference Expenses,09-Mar-2022,000009979307641,HOLIDAY INNS,3501,Conferencesseminars fees etc,340.00,0.00,340.00
Regeneration Economy and Growth,Development and Housing,031576,B& B - Temp Accom,Supplies and Services,352001,Conference Expenses,09-Mar-2022,000009979307643,HOLIDAY INNS,3501,Conferencesseminars fees etc,397.90,0.00,397.90
Neighbourhoods and Climate Change,Environmental Services,010551,Fleet - Chilton Fleet,Transport,215013,Running Costs of Vehicles,09-Mar-2022,000009979307663,POST OFFICE COUNTER,9402,Vehicle Excise Duty (VED),152.50,0.00,152.50
Resources BK0010,Digital and Customer Services,070204,School Services - Systems,Supplies and Services,372009,Subscriptions E372,09-Mar-2022,000009979307665,NOMINET UK,7392,Subscriptions 372009,23.40,3.90,19.50
Resources BK0010,Digital and Customer Services,070204,School Services - Systems,Supplies and Services,372009,Subscriptions E372,09-Mar-2022,000009979307667,NOMINET UK,7392,Subscriptions 372009,84.24,14.04,70.20
Children and Young Peoples Services,Head of Education and Skills,071732,Dean Bank Childcare,Supplies and Services,304259,Equipment and Materials,09-Mar-2022,000009979307673,Amazon Music 2X1S83ME4,5735,Equipment-purchase and rental,14.99,0.00,14.99
Children and Young Peoples Services,Head of Education and Skills,071732,Dean Bank Childcare,Supplies and Services,324117,Provisions E324,09-Mar-2022,000009979307675,B&M 035 - SHILDON,5399,Catering costs - provisions,43.11,0.00,43.11
Resources BK0010,Legal & Democratic Services,067910,Democratic Representation 067910,Supplies and Services,384965,Miscellaneous Expenses,09-Mar-2022,000009979307699,Durham City Studios,5999,Civic Functions,266.00,44.33,221.67
Regeneration Economy and Growth,Business Durham CL0850,030690,Durham Dales Centre - Tourist Information Centre,Supplies and Services,304221,Equipment and Materials,09-Mar-2022,000009979307713,A AND K HOSIERY LTD,5099,Direct materials,762.95,0.00,762.95
Neighbourhoods and Climate Change,Environmental Services,010301,C&G - North Grounds Maintenance,Supplies and Services,304403,Equipment and Materials,09-Mar-2022,000009979307739,BESCOL,5231,Other consumables,11.15,0.00,11.15
Regeneration Economy and Growth,Development and Housing,030771,Durham Advance Flexible Fund,Supplies and Services,348037,Subsistence E348,09-Mar-2022,000009979307753,iZ REfUSE C I C,5812,Subsistence,1.00,0.00,1.00
Children and Young Peoples Services,Head of Early Help Inclusion & Vulnerable Children.,085957,Secure Management,Supplies and Services,340001,Postages E340,09-Mar-2022,000009979307765,TSB Returns Ltd,4215,Postages,2.50,0.00,2.50
Children and Young Peoples Services,Head of Early Help Inclusion & Vulnerable Children.,085957,Secure Management,Supplies and Services,340001,Postages E340,09-Mar-2022,000009979307767,TSB Returns Ltd,4215,Postages,2.50,0.00,2.50
Children and Young Peoples Services,Head of Early Help Inclusion & Vulnerable Children.,085954,Walworth,Supplies and Services,384302,Miscellaneous Expenses,09-Mar-2022,000009979307769,AMZNMktplace,5999,Activity expenses,23.94,3.99,19.95
Children and Young Peoples Services,Head of Early Help Inclusion & Vulnerable Children.,085954,Walworth,Supplies and Services,384302,Miscellaneous Expenses,09-Mar-2022,000009979307769 - 1,AMZNMktplace,5999,Activity expenses,0.03,,0.03
Children and Young Peoples Services,Head of Early Help Inclusion & Vulnerable Children.,085954,Walworth,Supplies and Services,384302,Miscellaneous Expenses,09-Mar-2022,000009979307771,AMZNMktplace,5999,Activity expenses,10.95,0.00,10.95
Children and Young Peoples Services,Head of Early Help Inclusion & Vulnerable Children.,085954,Walworth,Supplies and Services,384302,Miscellaneous Expenses,09-Mar-2022,000009979307773,AMZNMktplace,5999,Activity expenses,16.98,2.83,14.15
Children and Young Peoples Services,Head of Early Help Inclusion & Vulnerable Children.,085954,Walworth,Supplies and Services,384302,Miscellaneous Expenses,09-Mar-2022,000009979307773 - 1,AMZNMktplace,5999,Activity expenses,6.94,,6.94
Children and Young Peoples Services,Head of Early Help Inclusion & Vulnerable Children.,085954,Walworth,Supplies and Services,384302,Miscellaneous Expenses,09-Mar-2022,000009979307775,AMZNMktplace,5999,Activity expenses,16.98,2.83,14.15
Children and Young Peoples Services,Head of Early Help Inclusion & Vulnerable Children.,085965,Barnard,Transfer Payments,515002,Social Services Clients,09-Mar-2022,000009979307775 - 1,AMZNMktplace,5999,Pocket money,6.99,,6.99
Children and Young Peoples Services,Head of Early Help Inclusion & Vulnerable Children.,085954,Walworth,Supplies and Services,304259,Equipment and Materials,09-Mar-2022,000009979307777,AMZNMktplace,5999,Equipment-purchase and rental,59.94,9.99,49.95
Children and Young Peoples Services,Head of Early Help Inclusion & Vulnerable Children.,085954,Walworth,Supplies and Services,304259,Equipment and Materials,09-Mar-2022,000009979307777 - 1,AMZNMktplace,5999,Equipment-purchase and rental,0.03,,0.03
Children and Young Peoples Services,Head of Early Help Inclusion & Vulnerable Children.,085954,Walworth,Supplies and Services,384302,Miscellaneous Expenses,09-Mar-2022,000009979307779,AMZNMktplace,5999,Activity expenses,6.99,0.00,6.99
Children and Young Peoples Services,Head of Early Help Inclusion & Vulnerable Children.,085962,Aycliffe Secure - Durham,Supplies and Services,324117,Provisions E324,09-Mar-2022,000009979307781,TESCO STORES 6329,5411,Catering costs - provisions,81.89,0.00,81.89
Resources BK0010,People & Talent Management,010984,Training and Development,Employees,040149,Recruitment Instruction and Training,09-Mar-2022,000009979307807,PAYPAL NPORS LTD,8699,Training-all costs,120.00,0.00,120.00
Children and Young Peoples Services,Head of Childrens Social Care,085331,New Lea Childrens Home,Supplies and Services,304999,Equipment and Materials,09-Mar-2022,000009979307829,HOME BARGAINS,5251,Misc equipment tools and materials,1.63,0.00,1.63
Children and Young Peoples Services,Head of Early Help Inclusion & Vulnerable Children.,088104,BA/BC/Crook Intensive Family Support Team,Supplies and Services,338045,Services,09-Mar-2022,000009979307861,Amazon.co.uk 2X0DF5514,5969,Legal expenses 338045,23.01,3.84,19.17
Children and Young Peoples Services,Head of Early Help Inclusion & Vulnerable Children.,088108,Spennymoor & Shildon Intensive Family Support Team,Supplies and Services,384302,Miscellaneous Expenses,09-Mar-2022,000009979307863,Amazon.co.uk 2X2U695H4,5969,Activity expenses,23.01,3.84,19.17
Children and Young Peoples Services,Head of Early Help Inclusion & Vulnerable Children.,088104,BA/BC/Crook Intensive Family Support Team,Supplies and Services,338045,Services,09-Mar-2022,000009979307865,Amazon.co.uk 2X4F825D4,5969,Legal expenses 338045,23.01,3.84,19.17
Children and Young Peoples Services,Head of Early Help Inclusion & Vulnerable Children.,088108,Spennymoor & Shildon Intensive Family Support Team,Supplies and Services,384302,Miscellaneous Expenses,09-Mar-2022,000009979307867,Amazon.co.uk 2X5M67HA4,5969,Activity expenses,115.92,19.32,96.60
Children and Young Peoples Services,Head of Early Help Inclusion & Vulnerable Children.,088108,Spennymoor & Shildon Intensive Family Support Team,Supplies and Services,384302,Miscellaneous Expenses,09-Mar-2022,000009979307867 - 1,Amazon.co.uk 2X5M67HA4,5969,Activity expenses,0.04,,0.04
Children and Young Peoples Services,Head of Childrens Social Care,085625,Families First Spennymoor,Supplies and Services,364301,Grants to Voluntary Organisations,09-Mar-2022,000009979307875,HALFORDS ON LINE,5533,Hardship,40.00,0.00,40.00
Children and Young Peoples Services,Head of Early Help Inclusion & Vulnerable Children.,088104,BA/BC/Crook Intensive Family Support Team,Supplies and Services,384302,Miscellaneous Expenses,09-Mar-2022,000009979307877,Amazon.co.uk 2X2A17HI4,5969,Activity expenses,138.97,23.16,115.81
Regeneration Economy and Growth,Development and Housing,031533,Syrian Refugee Humanitarian Support,Supplies and Services,348037,Subsistence E348,09-Mar-2022,000009979307879,LEBANEAT,5812,Subsistence,44.17,0.00,44.17
Children and Young Peoples Services,Head of Childrens Social Care,085341,High Etherley Satelite Home,Supplies and Services,304403,Equipment and Materials,09-Mar-2022,000009979307881,AMZNMktplace,5999,Other consumables,97.86,16.32,81.54
Neighbourhoods and Climate Change,Environmental Services,010367,C&G - South Grounds Maintenance,Supplies and Services,304221,Equipment and Materials,09-Mar-2022,000009979307887,MKM BUILD SUPP (BISHOP,5211,Direct materials,67.88,0.00,67.88
Neighbourhoods and Climate Change,Environmental Services,010367,C&G - South Grounds Maintenance,Supplies and Services,304999,Equipment and Materials,09-Mar-2022,000009979307889,Snowballs,5251,Misc equipment tools and materials,115.30,0.00,115.30
Adult and Health Services,Head of Adults,055643,Hawthorn House LD Respite Unit,Supplies and Services,324117,Provisions E324,09-Mar-2022,000009979307899,ASDA STORES LTD 4313,5411,Catering costs - provisions,10.00,0.00,10.00
Children and Young Peoples Services,Head of Childrens Social Care,085333,Coxhoe Satelite Home,Supplies and Services,324117,Provisions E324,09-Mar-2022,000009979307905,TESCO STORES 2371,5411,Catering costs - provisions,31.63,0.00,31.63
Children and Young Peoples Services,Head of Childrens Social Care,085333,Coxhoe Satelite Home,Supplies and Services,332047,Printing Stationery and Gen Off Exps,09-Mar-2022,000009979307907,WWW.RYMAN.CO.UK,5943,Stationery,230.93,0.00,230.93
Children and Young Peoples Services,Head of Childrens Social Care,085333,Coxhoe Satelite Home,Supplies and Services,304403,Equipment and Materials,09-Mar-2022,000009979307909,AMZNMktplace,5999,Other consumables,55.97,0.00,55.97
Regeneration Economy and Growth,Culture Sport and Tourism,010608,Teesdale Leisure Centre,Supplies and Services,304259,Equipment and Materials,09-Mar-2022,000009979307927,AMZNMktplace,5999,Equipment-purchase and rental,219.84,36.64,183.20
Regeneration Economy and Growth,Culture Sport and Tourism,010608,Teesdale Leisure Centre,Supplies and Services,304259,Equipment and Materials,09-Mar-2022,000009979307927 - 1,AMZNMktplace,5999,Equipment-purchase and rental,0.08,,0.08
Regeneration Economy and Growth,Development and Housing,031576,B& B - Temp Accom,Supplies and Services,364320,Grants to Voluntary Organisations,09-Mar-2022,000009979307953,HOLIDAY INNS,3501,Accommodation assistance,295.80,0.00,295.80
Regeneration Economy and Growth,Development and Housing,031576,B& B - Temp Accom,Supplies and Services,364320,Grants to Voluntary Organisations,09-Mar-2022,000009979307955,HOLIDAY INNS,3501,Accommodation assistance,375.80,0.00,375.80
Children and Young Peoples Services,Head of Education and Skills,078550,Discretionary Learning Support,Supplies and Services,304259,Equipment and Materials,09-Mar-2022,000009979307975,SMARTY CO UK,4814,Equipment-purchase and rental,6.00,0.00,6.00
Children and Young Peoples Services,Head of Childrens Social Care,085363,Childrens Permanence Team,Supplies and Services,338045,Services,09-Mar-2022,000009979307977,HM PASSPORT OFFICE,9399,Legal expenses 338045,49.00,0.00,49.00
Resources BK0010,Digital and Customer Services,065323,Operations - Installations,Supplies and Services,304639,Equipment and Materials,09-Mar-2022,000009979307995,Connect Distribution S,5722,Technicians-supplies,58.23,0.00,58.23
Children and Young Peoples Services,Head of Childrens Social Care,085342,16 Hickstead Rise (previously 9 Cedar Ave),Supplies and Services,304403,Equipment and Materials,09-Mar-2022,000009979307999,AMZNMktplace,5999,Other consumables,7.99,0.00,7.99
Children and Young Peoples Services,Head of Early Help Inclusion & Vulnerable Children.,085918,Price Training 75 Proudfoot Drive,Employees,040149,Recruitment Instruction and Training,09-Mar-2022,000009979308021,WWW.POWERHOUSEDIRECT.C,5199,Training-all costs,599.88,0.00,599.88
Children and Young Peoples Services,Head of Childrens Social Care,085357,LAC Bespoke Placements,Supplies and Services,352001,Conference Expenses,09-Mar-2022,000009979308029,Hotel at Booking.com,7011,Conferencesseminars fees etc,"2,890.34",0.00,2890.34
Resources BK0010,Procurement Sales & Business Services,065503,Business Support - Spectrum,Supplies and Services,324117,Provisions E324,09-Mar-2022,000009979308031,ASDA STORES LTD,5411,Catering costs - provisions,200.00,0.00,200.00
Children and Young Peoples Services,Head of Childrens Social Care,085551,Short Break Services-Park Hse Sher,Supplies and Services,304403,Equipment and Materials,09-Mar-2022,000009979308039,AMZNMktplace,5999,Other consumables,30.94,0.00,30.94
Children and Young Peoples Services,Head of Childrens Social Care,085351,Framwellgate Moor CU,Supplies and Services,340001,Postages E340,09-Mar-2022,000009979308059,POST OFFICE COUNTER,9402,Postages,2.69,0.00,2.69
Children and Young Peoples Services,Head of Childrens Social Care,085351,Framwellgate Moor CU,Employees,040149,Recruitment Instruction and Training,09-Mar-2022,000009979308061,MILL HOUSE RIDING CENT,8299,Training-all costs,30.00,0.00,30.00
